Workbook

Sheet Instrucciones
A7: GUÍA DE APOYO PARA LA IMPLEMENTACIÓN DE LA PRUEBA CLIMÁTICA DE INFRAESTRUCTURAS
B9: INSTRUCCIONES
B10: Introducir los datos en las celdas indicadas de cada una de las pestañas.
B12: El primer paso consiste en completar los datos de la pestaña 'Inputs_Datos'
B13: A continuación, en función del tipo de proyecto, se deberán rellenar algunos de la pestaña 'Análisis Mitigación'
B14: Todas las celdas de la pestaña 'Análisis Adaptación' se autocompletan.
B15: Las pestañas 'Instrucciones', 'INFO Mitigación' e 'INFO Adaptación' son solo informativa.
B17: Celdas a cumplimentar:
C18: Dato numérico/escrito
C19: Dato a introducir entre los considerados en el desplegable
B21: Celdas que se autocompletan:
C22: Datos numéricos referidos a otras celdas a cumplimentar
C23: Factores de emisión y unidades de los factores de emisión
C24: Resultado total y unidades
B26: Esta herramienta está basada en la Guía de Apoyo para la Implementación de la prueba climática de infraestructuras en donde se puede comprobar la metodología utilizada para el cálculo de las prueba de mitigación y de adaptación

Sheet Listas (hidden)
A1: TIPOLOGÍA DE PROYECTO
A3: Área | E3: Edificios | J3: Agua | R3: Energía
A4: Edificios | E4: Mejora de la eficiencia energética en edificios | J4: Pequeñas y medianas estaciones de depuración de aguas residuales | R4: Infraestructuras de almacenamiento energético
A5: Residuos | E5: Mejora genérica de edificios | J5: Grandes estaciones de depuración de aguas residuales | R5: Infraestructura para la generación de energía renovable
A6: Agua | E6: Mejoras en el entorno de los edificios | J6: Actuaciones sobre sistemas de abastecimiento | R6: Transporte y distribución
A7: Energía | E7: Construcción de edificios | J7: Actuaciones de preservación, preparación y protección de los recursos hídricos
A8: Territorio | E8: Ampliación de edificios | J8: Instalaciones de distribución
A9: Soluciones Basadas en la Naturaleza | E9: Rehabilitación integral | J9: Pantalán | R9: Territorio
A10: Infraestructura Verde | J10: Estructuras marítimas | R10: Galerías subterráneas/mineras
J11: Estructuras fluviales | R11: Escollera de contención
E12: Residuos | J12: Escollera de protección
E13: Puntos de recogida de residuos | J13: Estaciones de tratamiento de aguas potables
E14: Instalación de clasificación y reciclaje | J14: Estaciones de bombeo | R14: Soluciones Basadas en la Naturaleza
E15: Instalación de gestión de residuos | J15: Encauzamiento | R15: Adaptación cambio climático
E16: Plantas de valorización de residuos | R16: Adaptación de terrenos/descontaminación
R19: Infraestructura Verde
R20: Infraestructura Verde
A21: MUNICIPIOS | C21: PROBABILIDAD
A23: Municipio | C23: Casi seguro | E23: Moderado | G23: NivalProb | I23: Costeros
A24: Allande | C24: Avilés | E24: Carreño | G24: Amieva | I24: Caravia
A25: Aller | C25: Muros de Nalón | E25: Cudillero | G25: Cabrales | I25: Carreño
A26: Amieva | C26: Navia | E26: Gijón | G26: Cangas del Narcea | I26: Castrillón
A27: Avilés | C27: Ribadesella | E27: Llanes | G27: Cangas de Onís | I27: Castropol
A28: Belmonte de Miranda | C28: Soto del Barco | E28: Valdés | G28: Caso | I28: Coaña
A29: Bimenes | G29: Degaña | I29: Colunga
A30: Boal | G30: Ibias | I30: Cudillero
A31: Cabrales | G31: Lena | I31: El Franco
A32: Cabranes | G32: Onís | I32: Gijón
A33: Candamo | G33: Peñamellera Alta | I33: Gozón
A34: Cangas del Narcea | G34: Peñamellera Baja | I34: Llanes
A35: Cangas de Onís | G35: Ponga | I35: Tapia de Casariego
A36: Caravia | G36: Quirós | I36: Valdés
A37: Carreño | G37: Sobrescobio | I37: Villaviciosa
A38: Caso | G38: Somiedo
A39: Castrillón | G39: Teverga
A40: Castropol
A41: Coaña
A42: Colunga
A43: Corvera de Asturias
A44: Cudillero
A45: Degaña
A46: El Franco
A47: Gijón
A48: Gozón
A49: Grado
A50: Grandas de Salime
A51: Ibias
A52: Illano
A53: Illas
A54: Langreo
A55: Laviana
A56: Lena
A57: Llanera
A58: Llanes
A59: Mieres
A60: Morcín
A61: Muros de Nalón
A62: Nava
A63: Navia
A64: Negueira de Muñiz
A65: Noreña
A66: Onís
A67: Oviedo
A68: Parres
A69: Peñamellera Alta
A70: Peñamellera Baja
A71: Pesoz
A72: Piloña
A73: Ponga
A74: Pravia
A75: Proaza
A76: Quirós
A77: Las Regueras
A78: Ribadedeva
A79: Ribadesella
A80: Ribera de Arriba
A81: Riosa
A82: Salas
A83: Santa Eulalia de Oscos
A84: San Martín del Rey Aurelio
A85: San Martín de Oscos
A86: San Tirso de Abres
A87: Santo Adriano
A88: Sariego
A89: Siero
A90: Sobrescobio
A91: Somiedo
A92: Soto del Barco
A93: Tapia de Casariego
A94: Taramundi
A95: Teverga
A96: Tineo
A97: Valdés
A98: Vegadeo
A99: Villanueva de Oscos
A100: Villaviciosa
A101: Villayón
A102: Yernes y Tameza

Sheet Inputs_Datos
A8: MITIGACIÓN
B11: 🔹 A. DATOS GENERALES DEL PROYECTO
C13: Campo | D13: Información (a rellenar)
C14: Nombre del proyecto
C15: Área | D15: Territorio
C16: Tipo de infraestructura | D16: Escollera de contención
C17: Localización: Municipio | D17: Noreña
C18: Responsable del análisis
C19: Fecha

Sheet INFO Mitigación
A8: MITIGACIÓN
B11: 🔹 A. DATOS GENERALES DEL PROYECTO
C13: Campo | D13: Información del proyecto
C14: Área | D14: =+Inputs_Datos!D15 -> Territorio
C15: Tipo de infraestructura | D15: =+Inputs_Datos!D16 -> Escollera de contención
C16: Localización: Municipio | D16: =+Inputs_Datos!D17 -> Noreña
B19: 🔹 B. OBJETIVO DEL ANÁLISIS
C21: Esta plantilla aplica las orientaciones técnicas de la Comisión Europea (2021-2027) para integrar la mitigación al cambio climático en proyectos de infraestructuras. El objetivo es evaluar la necesidad de realizar o no una evluación de la huella de carbono (Fase 1) y determinar si se requiere de un análisis más detallado sobre las emisiones de gases de efecto invernadero (Fase 2).
B26: 🔹 C. ESQUEMA DE FASES

Sheet Análisis Mitigación
A8: MITIGACIÓN
B10: 🔹 FASE 1 - CLASIFICACIÓN DE PROYECTOS (COMPROBACIÓN PREVIA)
C12: 1. CATEGORIZACIÓN DEL PROYECTO
C14: Campo | D14: Resultados
C15: Área | D15: ='INFO Mitigación'!D14 -> Territorio
C16: Tipo de infraestructura | D16: ='INFO Mitigación'!D15 -> Escollera de contención
C17: Se incluye en alguna de las categorías de proyecto de la primera sección de la Tabla 2 de la Guía | D17: =VLOOKUP($D$16,Tabla_Sensibilidad12[Categoría de proyecto de infraestructura]:Tabla_Sensibilidad12[No coincide con ninguna de las dos secciones y es necesario evaluar si podría superar las 20.000 t CO2e/año],2,0) -> NO
C18: Se incluye en alguna de las categorías de proyecto de la segunda sección de la Tabla 2 de la Guía | D18: =VLOOKUP($D$16,Tabla_Sensibilidad12[Categoría de proyecto de infraestructura]:Tabla_Sensibilidad12[No coincide con ninguna de las dos secciones y es necesario evaluar si podría superar las 20.000 t CO2e/año],3,0) -> NO
C19: No coincide con ninguna de las dos secciones y es necesario evaluar si podría superar las 20.000 t CO2e/año | D19: =VLOOKUP($D$16,Tabla_Sensibilidad12[Categoría de proyecto de infraestructura]:Tabla_Sensibilidad12[No coincide con ninguna de las dos secciones y es necesario evaluar si podría superar las 20.000 t CO2e/año],4,0) -> NO10
C20: RESULTADO | D20: =IF(D19="SÍ","Estimar superación del umbral de emisiones",IF(OR(D18="SÍ"),"Pasar a fase 2","Se concluye el proceso")) -> Se concluye el proceso
C23: 2. EVALUACIÓN PREVIA DE LA SUPERACIÓN DEL UMBRAL DE EMISIONES (20.000 t CO2e/año)
D25: EDIFICIOS
C26: Superficie total edificada (m2) | D26: 0
C27: Uso previsto del edificio | D27: Comercial
C28: Estimación de emisiones anuales (t CO2e/año) | D28: =D26*VLOOKUP(D27,'Tablas Mitigación'!C60:D67,2,FALSE) -> 0
C29: RESULTADO | D29: =IF(D28<20000,"Se concluye el proceso","Es necesario un análisis detallado (fase 2)") -> Se concluye el proceso
D31: ESTACIONES DE DEPURACIÓN DE AGUAS RESIDUALES
C32: Habitantes-equivalentes previstos | D32: 0
C33: Consumo eléctrico previsto (kWh/año) | D33: =D32*'Tablas Mitigación'!G61*(1+'Tablas Mitigación'!G62) -> 0
C34: Estimación de emisiones anuales (t CO2e/año) | D34: =D33*'Tablas Mitigación'!G121*(1+'Tablas Mitigación'!G63)/1000000 -> 0
C35: RESULTADO | D35: =IF(D34<20000,"Se concluye el proceso","Es necesario un análisis detallado (fase 2)") -> Se concluye el proceso
B38: 🔹 FASE 2 - ANÁLISIS DETALLADO
C40: 1. CÁLCULO DE EMISIONES
D42: GRANDES ESTACIONES DE DEPURACIÓN DE AGUAS RESIDUALES | H42: INFRAESTRUCTURAS DE ALMACENAMIENTO ENERGÉTICO | L42: INFRAESTRUCTURA PARA LA GENERACIÓN DE ENERGÍA RENOVABLE | Q42: TRANSPORTE Y DISTRIBUCIÓN DE ENERGÍA ELÉCTRICA
D43: Campo | E43: Información (a rellenar) | H43: Campo | I43: Información (a rellenar) | L43: Campo | M43: Información (a rellenar) | Q43: Campo | R43: Información (a rellenar)
C44: Datos generales | D44: Habitantes equivalentes | E44: 20000 | H44: Tipo de combustible | I44: Gasóleo B (litros) | L44: Tipo de energía | M44: Energía intermitente (Solar, eólica, marítima) | P44: Datos generales | Q44: Nivel de tensión | R44: Consumo de electricidad en Alta Tensión
C45: Emisiones absolutas | D45: Tipo de tratamiento | E45: Tratamiento secundario con digestión anaerobia | H45: Consumo de combustible (L) | I45: 2000 | L45: Producción anual de energía (Kwh) | M45: 8000000 | Q45: Factor eléctrico | R45: =VLOOKUP(R44,'Tablas Mitigación'!F117:G121,2,0) -> 213
D46: Vertido de lodos | E46: Vertedero | H46: Factor de emisión alcance 1 | I46: =VLOOKUP(I44,'Tablas Mitigación'!C116:D125,2,0) -> 2.721 | L46: Factor de emisión | M46: =VLOOKUP(M44,'Tablas Mitigación'!I117:J118,2,0) -> 342 | P46: Emisiones por SF6 | Q46: SF6 (kg) | R46: 500
D47: Factor de emisión | E47: =_xlfn._xlws.FILTER(Tabla_Sensibilidad4[Emisiones indirectas (tCO2e/Hab-eq/año)3], (Tabla_Sensibilidad4[Tipo de tratamiento]=E45)*(Tabla_Sensibilidad4[Vertido de lodos]=E46),"") -> 0.073 | H47: Emisiones alcance 1 | I47: =I45*I46/1000 -> 5.442 | L47: Emisiones absolutas (tCO2e) | M47: 0 | Q47: Emisiones por SF6 | R47: =R46*0.005*23500/1000 -> 58.75
D48: Emisiones absolutas (tCO2e) | E48: =E44*E47 -> 1460 | H48: Nivel de tensión eléctrica | I48: Consumo de electricidad en Media Tensión | L48: Emisiones de referencia (tCO2e) | M48: =M45*M46/1000000 -> 2736 | P48: Emisiones absolutas | Q48: Energía transportada con el proyecto (MWh/año) | R48: 100000
C49: Emisiones de referencia | D49: Tipo de tratamiento | E49: Fosas sépticas | H49: Consumo eléctrico (kWh/año) | I49: 1000000 | L49: RESULTADO (emisiones relativas) (tCO2e) | M49: =M47-M48 -> -2736 | Q49: % de pérdida | R49: =VLOOKUP(R44,'Tablas Mitigación'!F125:G127,2,0) -> 0.02
D50: Vertido de lodos | E50: Sin especificar | H50: Factor de emisión alcance 2 | I50: =VLOOKUP(I48,'Tablas Mitigación'!F117:G121,2,0) -> 217 | Q50: Emisiones por pérdidas de red (tCO2/año) | R50: =R49*R48*R45/1000 -> 426
D51: Factor de emisión | E51: =_xlfn._xlws.FILTER(Tabla_Sensibilidad4[Emisiones indirectas (tCO2e/Hab-eq/año)3], (Tabla_Sensibilidad4[Tipo de tratamiento]=E49)*(Tabla_Sensibilidad4[Vertido de lodos]=E50),"") -> 0.202 | H51: Emisiones alcance 2 | I51: =I49*I50/1000000 -> 217 | Q51: Energía consumida por instalaciones asociadas (MWh/año) | R51: 3000
D52: Emisiones de referencia (tCO2e) | E52: =E44*E51 -> 4040 | H52: Emisiones absolutas (tCO2e) | I52: =I47+I51 -> 222.442 | Q52: Emisiones por consumo de instalaciones (tCO2/año) | R52: =R51*R45/1000 -> 639
D53: RESULTADO (emisiones relativas) (tCO2e) | E53: =E48-E52 -> -2580 | H53: Emisiones de referencia (tCO2e) | I53: 0 | Q53: Emisiones absolutas (tCO2e) | R53: =R50+R52+R47 -> 1123.75
H54: RESULTADO (emisiones relativas) (tCO2e) | I54: =I52 -> 222.442 | P54: Emisiones de referencia | Q54: % de pérdidas sin el proyecto | R54: =R49*2 -> 0.04
Q55: Demanda anterior | R55: 50000
Q56: Emisiones por pérdidas de red (tCO2/año) | R56: =R54*R55*R45/1000 -> 426
Q57: Energía consumida por instalaciones asociadas (MWh/año) | R57: 2000
Q58: Emisiones por consumo de instalaciones (tCO2/año) | R58: =R57*R45/1000 -> 426
Q59: Emisiones de referencia (tCO2e) | R59: =R56+R58+R47 -> 910.75
C60: 2. COSTE SOMBRA | Q60: RESULTADO (emisiones relativas) (tCO2e) | R60: =R53-R59 -> 213
C62: Campo | D62: Información (a rellenar)
C63: Año de inicio | D63: 2030
C64: Año de fin | D64: 2050
C65: Emisiones del proyecto (tCO2e)
C66: RESULTADO (€) | D66: =SUMIFS('Tablas Mitigación'!D134:D164,'Tablas Mitigación'!C134:C164,">="&D63,'Tablas Mitigación'!C134:C164,"<="&D64)*D65 -> 0
C69: 3. ACTIVIDADES CONSIDERADAS ALINEADAS CON LOS OBJETIVOS CLIMÁTICOS POR EL BEI
C71: Generación de energía | D71: Generación de energía renovable.
D72: Energía a partir de residuos que cumpla con los Emission Performance Standard, y aplique los principios de la jerarquía de residuos Recuperación de calor.
C73: Edificios | D73: Nuevos edificios que cumplan con la Directiva de Eficiencia Energética de Edificios.
D74: Renovación de edificios que cumplan con la Directiva de Eficiencia Energética de Edificios.
C75: Tratamiento de aguas residuales | D75: Rehabilitación o nuevas estaciones de tratamiento de aguas residuales y de digestión de lodos.
C76: Gestión de residuos sólidos | D76: Plantas de incineración de residuos que cumplan con los Emission Performance Standard y apliquen los principios de jerarquía de residuos.
D77: Rehabilitación de vertederos para controlar las emisiones de metano de forma que se genere energía o en su defecto, se queme en antorcha.

Sheet Tablas Mitigación (hidden)
A8: MITIGACIÓN
B10: 1.1. TABLA DE CLASIFICACIÓN DE PROYECTOS
C12: Área | D12: Categoría de proyecto de infraestructura | E12: Categorías de proyecto que no requieren de evaluación de huella de carbono | F12: Categorías de proyecto que sí requieren de evaluación de huella de carbono | G12: No coincide con ninguna de las dos secciones y es necesario evaluar si podría superar las 20.000 t CO2e/año
C13: Edificios | D13: Mejora de la eficiencia energética en edificios | E13: NO | F13: NO | G13: SÍ
C14: Edificios | D14: Mejora genérica de edificios | E14: NO | F14: NO | G14: SÍ
C15: Edificios | D15: Mejoras en el entorno de los edificios | E15: NO | F15: NO | G15: SÍ
C16: Edificios | D16: Construcción de edificios | E16: NO | F16: NO | G16: SÍ
C17: Edificios | D17: Ampliación de edificios | E17: NO | F17: NO | G17: SÍ
C18: Edificios | D18: Rehabilitación integral | E18: NO | F18: NO | G18: SÍ
C19: Residuos | D19: Puntos de recogida de residuos | E19: NO | F19: NO | G19: NO1
C20: Residuos | D20: Instalación de clasificación y reciclaje | E20: SÍ | F20: - | G20: -
C21: Residuos | D21: Instalación de gestión de residuos | E21: SÍ | F21: - | G21: -
C22: Residuos | D22: Plantas de valorización de residuos | E22: SÍ | F22: - | G22: -
C23: Agua | D23: Pequeñas y medianas estaciones de depuración de aguas residuales | E23: SÍ | F23: - | G23: -
C24: Agua | D24: Grandes estaciones de depuración de aguas residuales | E24: NO | F24: SÍ | G24: -
C25: Agua | D25: Actuaciones sobre sistemas de abastecimiento | E25: SÍ | F25: - | G25: -
C26: Agua | D26: Actuaciones de preservación, preparación y protección de los recursos hídricos | E26: NO | F26: NO | G26: NO2
C27: Agua | D27: Instalaciones de distribución | E27: SÍ | F27: - | G27: -
C28: Agua | D28: Pantalán | E28: NO | F28: NO | G28: NO3
C29: Agua | D29: Estructuras marítimas | E29: NO | F29: NO | G29: NO4
C30: Agua | D30: Estructuras fluviales | E30: NO | F30: NO | G30: NO5
C31: Agua | D31: Escollera de protección | E31: NO | F31: NO | G31: NO6
C32: Agua | D32: Estaciones de tratamiento de aguas potables | E32: NO | F32: NO | G32: SÍ
C33: Agua | D33: Estaciones de bombeo | E33: NO | F33: NO | G33: NO7
C34: Agua | D34: Encauzamiento | E34: NO | F34: NO | G34: NO8
C35: Energía | D35: Infraestructuras de almacenamiento energético | E35: NO | F35: SÍ | G35: -
C36: Energía | D36: Infraestructura para la generación de energía renovable | E36: NO | F36: SÍ | G36: -
C37: Energía | D37: Transporte y distribución | E37: NO | F37: SÍ | G37: -
C38: Territorio | D38: Galerías subterráneas/mineras | E38: NO | F38: NO | G38: NO9
C39: Territorio | D39: Escollera de contención | E39: NO | F39: NO | G39: NO10
C40: Soluciones Basadas en la Naturaleza | D40: Adaptación cambio climático | E40: NO | F40: NO | G40: NO11
C41: Soluciones Basadas en la Naturaleza | D41: Adaptación de terrenos/descontaminación | E41: NO | F41: NO | G41: NO12
C42: Infraestructura Verde | D42: Infraestructura verde | E42: NO | F42: NO | G42: NO13
C44: 1 Aunque no concuerde exactamente con una tipología de proyecto listada en la tabla 2, las instalaciones de clasificación y reciclaje y las de valorización concluyen en fase 1, por lo que los puntos de recogida de residuos también. Además, no tienen emisiones de alcance 1 y 2 o son muy bajas
C45: 2 No se trata de proyectos de infraestructura que genere emisiones anuales significativas, por lo que no es necesario evaluar si excede las 20.000 toneladas o no, con la excepción de proyectos específicos de grandes instalaciones de bombeo, como trasvases.
C46: 3 Los pantalanes no son infraestructuras que generen en su construcción u operación emisiones anuales significativas, por lo que no es necesario evaluar si excede las 20.000 toneladas o no.
C47: 4 Se asume que se trata de actuaciones sobre estructuras marítimas existentes (diques, escolleras) y que no se trata de proyectos de nueva construcción de un puerto, por ejemplo, por lo que no es necesario evaluar si excede las 20.000 toneladas o no debido a las bajas emisiones anuales previstas.
C48: 5 Es muy improbable que las actuaciones o elementos de infraestructura en el entorno fluvial puedan generar emisiones anuales significativas, por lo que no es necesario evaluar si excede las 20.000 toneladas o no.
C49: 6 Las escolleras no son infraestructuras que generen en su construcción u operación emisiones anuales significativas, por lo que no es necesario evaluar si excede las 20.000 toneladas o no.
C50: 7 Es muy improbable que una estación de bombeo genere emisiones superiores al umbral, por lo que no es necesario evaluar si excede las 20.000 toneladas o no.
C51: 8 Es muy improbable que un encauzamiento genere emisiones superiores al umbral, por lo que no es necesario evaluar si excede las 20.000 toneladas o no.
C52: 9 Se trata de rehabilitación de zonas degradadas por la actividad minera, no de proyectos de industria minera, por lo que no es necesario evaluar si excede las 20.000 toneladas o no.
C53: 10 Las escolleras no son infraestructuras que generen en su construcción u operación emisiones anuales significativas, por lo que no es necesario evaluar si excede las 20.000 toneladas o no.
C54: 11 No se trata de infraestructuras que generen en su construcción u operación emisiones anuales significativas, por lo que no es necesario evaluar si excede las 20.000 toneladas o no.
C55: 12 No se trata de infraestructuras que generen en su construcción u operación emisiones anuales significativas, por lo que no es necesario evaluar si excede las 20.000 toneladas o no.
C56: 13 No se trata de infraestructuras que generen en su construcción u operación emisiones anuales significativas, por lo que no es necesario evaluar si excede las 20.000 toneladas o no.
B58: 1.2. EVALUACIÓN PRELIMINAR DEL UMBRAL DE EMISIONES
C59: 1.2.1 Factores de emisión por uso de edificio | F59: 1.2.1 Estimación de consumo eléctrico de EDAR
C60: Uso | D60: Factor (t CO2/m2) | F60: Uso | G60: kWh/hab-eq/año
C61: Logística/Almacenamiento | D61: 0.018955 | F61: EDAR | G61: 49 | H61: IDAE, 2010
C62: Oficinas | D62: 0.0223 | F62: Factor de seguridad | G62: 0.2
C63: Viviendas | D63: 0.031666 | F63: Factor de alcance 1+2 | G63: 0.2
C64: Hotel | D64: 0.030105
C65: Hospital/Centro de Salud/Clínica | D65: 0.037464
C66: Comercial | D66: 0.030328
C67: Mejora de estaciones de autobús | D67: 0.0223
B72: 2. TABLAS DE FACTORES DE EMISIÓN
C74: 2.1 Tipo de proceso y vertido de lodo
C75: Tipo de tratamiento | D75: Huella de carbono del tratamiento de aguas (tCO2e/Hab-eq/año) | E75: Emisiones indirectas (tCO2e/Hab-eq/año) | F75: Vertido de lodos | G75: Huella de carbono del tratamiento de aguas (tCO2e/Hab-eq/año)2 | H75: Emisiones indirectas (tCO2e/Hab-eq/año)3
C76: Fosas sépticas | D76: 0.091 | E76: 0 | F76: Vertedero | G76: 0.194 | H76: 0.285
C77: Fosas sépticas | D77: 0.091 | E77: 0 | F77: Planta de tratamiento de lodos sépticos | G77: 0.083 | H77: 0.174
C78: Fosas sépticas | D78: 0.091 | E78: 0 | F78: Planta de tratamiento de aguas residuales | G78: 0.055 | H78: 0.146
C79: Fosas sépticas | D79: 0.091 | E79: 0 | F79: Sin especificar | G79: 0.111 | H79: 0.202
C80: Tratamiento primario | D80: 0.039 | E80: 0.0044 | F80: Vertedero | G80: 0.067 | H80: 0.11
C81: Tratamiento primario | D81: 0.039 | E81: 0.0044 | F81: Planta de tratamiento de lodos sépticos | G81: 0.045 | H81: 0.088
C82: Tratamiento primario | D82: 0.039 | E82: 0.0044 | F82: Planta de tratamiento de aguas residuales | G82: 0.033 | H82: 0.076
C83: Tratamiento primario | D83: 0.039 | E83: 0.0044 | F83: Sin especificar | G83: 0.022 | H83: 0.065
C84: Tratamiento primario con digestión anaerobia | D84: 0.039 | E84: 0.0024 | F84: Vertedero | G84: 0.03 | H84: 0.071
C85: Tratamiento primario con digestión anaerobia | D85: 0.039 | E85: 0.0024 | F85: Planta de tratamiento de lodos sépticos | G85: 0.02 | H85: 0.061
C86: Tratamiento primario con digestión anaerobia | D86: 0.039 | E86: 0.0024 | F86: Planta de tratamiento de aguas residuales | G86: 0.015 | H86: 0.056
C87: Tratamiento primario con digestión anaerobia | D87: 0.039 | E87: 0.0024 | F87: Sin especificar | G87: 0.01 | H87: 0.051
C88: Tratamiento secundario sin digestión anaerobia | D88: 0.014 | E88: 0.0134 | F88: Vertedero | G88: 0.112 | H88: 0.139
C89: Tratamiento secundario sin digestión anaerobia | D89: 0.014 | E89: 0.0134 | F89: Planta de tratamiento de lodos sépticos | G89: 0.075 | H89: 0.102
C90: Tratamiento secundario sin digestión anaerobia | D90: 0.014 | E90: 0.0134 | F90: Planta de tratamiento de aguas residuales | G90: 0.056 | H90: 0.083
C91: Tratamiento secundario sin digestión anaerobia | D91: 0.014 | E91: 0.0134 | F91: Sin especificar | G91: 0.037 | H91: 0.064
C92: Tratamiento secundario con digestión anaerobia | D92: 0.014 | E92: 0.0073 | F92: Vertedero | G92: 0.052 | H92: 0.073
C93: Tratamiento secundario con digestión anaerobia | D93: 0.014 | E93: 0.0073 | F93: Planta de tratamiento de lodos sépticos | G93: 0.035 | H93: 0.056
C94: Tratamiento secundario con digestión anaerobia | D94: 0.014 | E94: 0.0073 | F94: Planta de tratamiento de aguas residuales | G94: 0.026 | H94: 0.047
C95: Tratamiento secundario con digestión anaerobia | D95: 0.014 | E95: 0.0073 | F95: Sin especificar | G95: 0.017 | H95: 0.038
C96: Tratamiento secundario con digestión anaerobia mejorada | D96: 0.014 | E96: 0.0064 | F96: Vertedero | G96: 0.041 | H96: 0.061
C97: Tratamiento secundario con digestión anaerobia mejorada | D97: 0.014 | E97: 0.0064 | F97: Planta de tratamiento de lodos sépticos | G97: 0.027 | H97: 0.047
C98: Tratamiento secundario con digestión anaerobia mejorada | D98: 0.014 | E98: 0.0064 | F98: Planta de tratamiento de aguas residuales | G98: 0.02 | H98: 0.04
C99: Tratamiento secundario con digestión anaerobia mejorada | D99: 0.014 | E99: 0.0064 | F99: Sin especificar | G99: 0.013 | H99: 0.033
C100: Tratamiento terciario sin digestión anaerobia | D100: 0.01 | E100: 0.0156 | F100: Vertedero | G100: 0.112 | H100: 0.138
C101: Tratamiento terciario sin digestión anaerobia | D101: 0.01 | E101: 0.0156 | F101: Planta de tratamiento de lodos sépticos | G101: 0.075 | H101: 0.101
C102: Tratamiento terciario sin digestión anaerobia | D102: 0.01 | E102: 0.0156 | F102: Planta de tratamiento de aguas residuales | G102: 0.056 | H102: 0.082
C103: Tratamiento terciario sin digestión anaerobia | D103: 0.01 | E103: 0.0156 | F103: Sin especificar | G103: 0.037 | H103: 0.063
C104: Tratamiento terciario con digestión anaerobia | D104: 0.01 | E104: 0.0086 | F104: Vertedero | G104: 0.05 | H104: 0.069
C105: Tratamiento terciario con digestión anaerobia | D105: 0.01 | E105: 0.0086 | F105: Planta de tratamiento de lodos sépticos | G105: 0.034 | H105: 0.053
C106: Tratamiento terciario con digestión anaerobia | D106: 0.01 | E106: 0.0086 | F106: Planta de tratamiento de aguas residuales | G106: 0.025 | H106: 0.044
C107: Tratamiento terciario con digestión anaerobia | D107: 0.01 | E107: 0.0086 | F107: Sin especificar | G107: 0.017 | H107: 0.036
C108: Tratamiento terciario con digestión anaerobia mejorada | D108: 0.01 | E108: 0.0075 | F108: Vertedero | G108: 0.041 | H108: 0.059
C109: Tratamiento terciario con digestión anaerobia mejorada | D109: 0.01 | E109: 0.0075 | F109: Planta de tratamiento de lodos sépticos | G109: 0.027 | H109: 0.045
C110: Tratamiento terciario con digestión anaerobia mejorada | D110: 0.01 | E110: 0.0075 | F110: Planta de tratamiento de aguas residuales | G110: 0.02 | H110: 0.038
C111: Tratamiento terciario con digestión anaerobia mejorada | D111: 0.01 | E111: 0.0075 | F111: Sin especificar | G111: 0.013 | H111: 0.031
C114: 2.2 Combustión estacionaria | F114: 2.3 Consumo eléctrico | I114: 2.4 Emisiones de referencia de renovables
C115: Combustible | D115: FE 2022 (kg/unidad) | F115: Factor de emisión (g CO2e/kWh) | I115: Factor de emisión combinado de red (gCO2/kWh)
C116: Gasóleo C (litros) | D116: 2.721 | F116: País | G116: España | I116: País | J116: España
C117: Gasóleo B (litros) | D117: 2.721 | F117: Generación de electricidad intermitente | G117: 329 | I117: Energía constante (hidráulica, geotérmica) | J117: 236
C118: Gas natural (kWh PCS) | D118: 0.182 | F118: Generación de electricidad constante/consumo de electricidad | G118: 209 | I118: Energía intermitente (Solar, eólica, marítima) | J118: 342
C119: Fuelóleo (litros) | D119: 3.124 | F119: Consumo de electricidad en Alta Tensión | G119: 213
C120: GLP (litros) | D120: 1.545 | F120: Consumo de electricidad en Media Tensión | G120: 217
C121: Queroseno (litros) | D121: 2.5 | F121: Consumo de electricidad en Baja Tensión | G121: 223
C122: Gas propano (kg) | D122: 2.966
C123: Gas butano (kg) | D123: 2.966 | F123: 2.5 Pérdidas de red consumo eléctrico | I123: 2.6 Fugas de SF6
C124: Gas manufacturado (kg) | D124: 0.881 | F124: Pérdidas de red (%) | I124: Ratio de fuga conservador (% SF6/año) | J124: Factor de conversión de SF6 a CO2 (t/t)
C125: Biogás (kg) | D125: 0.001 | F125: Consumo de electricidad en Alta Tensión | G125: 0.02 | I125: 0,5% anual | J125: 23500
F126: Consumo de electricidad en Media Tensión | G126: 0.04
F127: Consumo de electricidad en Baja Tensión | G127: 0.07
B130: 3. COSTE SOMBRA DEL CARBONO
C132: Coste sombra del carbono para las emisiones y reducciones de GEI
C133: Año | D133: EUR/tCO2e
C134: 2020 | D134: 80
C135: 2021 | D135: 97
C136: 2022 | D136: 114
C137: 2023 | D137: 131
C138: 2024 | D138: 148
C139: 2025 | D139: 165
C140: 2026 | D140: 182
C141: 2027 | D141: 199
C142: 2028 | D142: 216
C143: 2029 | D143: 233
C144: 2030 | D144: 250
C145: 2031 | D145: 278
C146: 2032 | D146: 306
C147: 2033 | D147: 334
C148: 2034 | D148: 362
C149: 2035 | D149: 390
C150: 2036 | D150: 417
C151: 2037 | D151: 444
C152: 2038 | D152: 471
C153: 2039 | D153: 498
C154: 2040 | D154: 525
C155: 2041 | D155: 552
C156: 2042 | D156: 579
C157: 2043 | D157: 606
C158: 2044 | D158: 633
C159: 2045 | D159: 660
C160: 2046 | D160: 688
C161: 2047 | D161: 716
C162: 2048 | D162: 744
C163: 2049 | D163: 772
C164: 2050 | D164: 800

Sheet INFO Adaptación
A8: ADAPTACIÓN
B11: 🔹 A. OBJETIVO DEL ANÁLISIS
C13: Esta plantilla aplica las orientaciones técnicas de la Comisión Europea (2021-2027) para integrar la adaptación al cambio climático en proyectos de infraestructuras. El objetivo es evaluar la vulnerabilidad (Fase 1), riesgos (Fase 2) y definir medidas de adaptación, generando un nivel final de resiliencia del proyecto.
B17: 🔹 B. ESQUEMA DE FASES

Sheet Análisis Adaptación
A8: ADAPTACIÓN
B10: 🔹 FASE 1 - ANÁLISIS DE VULNERABILIDAD (COMPROBACIÓN PREVIA)
C13: Área | D13: =+Inputs_Datos!D15 -> Territorio
C14: Tipo de infraestructura | D14: =+Inputs_Datos!D16 -> Escollera de contención
C15: Municipio | D15: =+Inputs_Datos!D17 -> Noreña
C18: SENSIBILIDAD | F18: EXPOSICIÓN
C20: Peligro Climático | D20: Sensibilidad | F20: Peligro Climático | G20: Exposición | J20: Exposición Final
C21: Aumento del Nivel del Mar | D21: =IF(G22="No aplica","No aplica",(INDEX(Tabla_Sensibilidad[[Aumento del Nivel del Mar]:[Eventos Meteo. Extremos]],MATCH(1,(Tabla_Sensibilidad[Área]='Análisis Adaptación'!$D$13)*(Tabla_Sensibilidad[Categoría de operaciones de infraestructura]='Análisis Adaptación'!$D$14),0),MATCH('Análisis Adaptación'!C21,Tabla_Sensibilidad[[#Headers],[Aumento del Nivel del Mar]:[Eventos Meteo. Extremos]],0)))) -> No aplica | G21: Clima Actual | H21: Clima Futuro
C22: Inundaciones Costeras | D22: =IF(G23="No aplica","No aplica",(INDEX(Tabla_Sensibilidad[[Aumento del Nivel del Mar]:[Eventos Meteo. Extremos]],MATCH(1,(Tabla_Sensibilidad[Área]='Análisis Adaptación'!$D$13)*(Tabla_Sensibilidad[Categoría de operaciones de infraestructura]='Análisis Adaptación'!$D$14),0),MATCH('Análisis Adaptación'!C22,Tabla_Sensibilidad[[#Headers],[Aumento del Nivel del Mar]:[Eventos Meteo. Extremos]],0)))) -> No aplica | F22: Aumento del Nivel del Mar | G22: =INDEX(Tabla_Exposición_Actual[[Aumento del Nivel del Mar]:[Eventos Meteo. Extremos]],MATCH($D$15,Tabla_Exposición_Actual[Municipio],0),MATCH('Análisis Adaptación'!F22,Tabla_Exposición_Actual[[#Headers],[Aumento del Nivel del Mar]:[Eventos Meteo. Extremos]],0)) -> No aplica | H22: =INDEX(Tabla_Exposición_Futuro[[Aumento del Nivel del Mar]:[Eventos Meteo. Extremos]],MATCH($D$15,Tabla_Exposición_Futuro[Municipio],0),MATCH('Análisis Adaptación'!F22,Tabla_Exposición_Futuro[[#Headers],[Aumento del Nivel del Mar]:[Eventos Meteo. Extremos]],0)) -> No aplica | J22: =IF(AND(G22="No aplica",H22="No aplica"),"No aplica",CHOOSE(MAX(IFERROR(VLOOKUP(G22,Tabla_Equivalencias[],2,FALSE),0),IFERROR(VLOOKUP('Análisis Adaptación'!H22,Tabla_Equivalencias[],2,FALSE),0)),"Bajo","Medio","Alto")) -> No aplica
C23: Eventos Extremos Costeros | D23: =IF(G24="No aplica","No aplica",(INDEX(Tabla_Sensibilidad[[Aumento del Nivel del Mar]:[Eventos Meteo. Extremos]],MATCH(1,(Tabla_Sensibilidad[Área]='Análisis Adaptación'!$D$13)*(Tabla_Sensibilidad[Categoría de operaciones de infraestructura]='Análisis Adaptación'!$D$14),0),MATCH('Análisis Adaptación'!C23,Tabla_Sensibilidad[[#Headers],[Aumento del Nivel del Mar]:[Eventos Meteo. Extremos]],0)))) -> No aplica | F23: Inundaciones Costeras | G23: =INDEX(Tabla_Exposición_Actual[[Aumento del Nivel del Mar]:[Eventos Meteo. Extremos]],MATCH($D$15,Tabla_Exposición_Actual[Municipio],0),MATCH('Análisis Adaptación'!F23,Tabla_Exposición_Actual[[#Headers],[Aumento del Nivel del Mar]:[Eventos Meteo. Extremos]],0)) -> No aplica | H23: =INDEX(Tabla_Exposición_Futuro[[Aumento del Nivel del Mar]:[Eventos Meteo. Extremos]],MATCH($D$15,Tabla_Exposición_Futuro[Municipio],0),MATCH('Análisis Adaptación'!F23,Tabla_Exposición_Futuro[[#Headers],[Aumento del Nivel del Mar]:[Eventos Meteo. Extremos]],0)) -> No aplica | J23: =IF(AND(G23="No aplica",H23="No aplica"),"No aplica",CHOOSE(MAX(IFERROR(VLOOKUP(G23,Tabla_Equivalencias[],2,FALSE),0),IFERROR(VLOOKUP('Análisis Adaptación'!H23,Tabla_Equivalencias[],2,FALSE),0)),"Bajo","Medio","Alto")) -> No aplica
C24: Cambio Régimen Lluvias | D24: =INDEX(Tabla_Sensibilidad[[Aumento del Nivel del Mar]:[Eventos Meteo. Extremos]],MATCH(1,(Tabla_Sensibilidad[Área]='Análisis Adaptación'!$D$13)*(Tabla_Sensibilidad[Categoría de operaciones de infraestructura]='Análisis Adaptación'!$D$14),0),MATCH('Análisis Adaptación'!C24,Tabla_Sensibilidad[[#Headers],[Aumento del Nivel del Mar]:[Eventos Meteo. Extremos]],0)) -> Bajo | F24: Eventos Extremos Costeros | G24: =INDEX(Tabla_Exposición_Actual[[Aumento del Nivel del Mar]:[Eventos Meteo. Extremos]],MATCH($D$15,Tabla_Exposición_Actual[Municipio],0),MATCH('Análisis Adaptación'!F24,Tabla_Exposición_Actual[[#Headers],[Aumento del Nivel del Mar]:[Eventos Meteo. Extremos]],0)) -> No aplica | H24: =INDEX(Tabla_Exposición_Futuro[[Aumento del Nivel del Mar]:[Eventos Meteo. Extremos]],MATCH($D$15,Tabla_Exposición_Futuro[Municipio],0),MATCH('Análisis Adaptación'!F24,Tabla_Exposición_Futuro[[#Headers],[Aumento del Nivel del Mar]:[Eventos Meteo. Extremos]],0)) -> No aplica | J24: =IF(AND(G24="No aplica",H24="No aplica"),"No aplica",CHOOSE(MAX(IFERROR(VLOOKUP(G24,Tabla_Equivalencias[],2,FALSE),0),IFERROR(VLOOKUP('Análisis Adaptación'!H24,Tabla_Equivalencias[],2,FALSE),0)),"Bajo","Medio","Alto")) -> No aplica
C25: Inundación Fluvio-Marinas | D25: =INDEX(Tabla_Sensibilidad[[Aumento del Nivel del Mar]:[Eventos Meteo. Extremos]],MATCH(1,(Tabla_Sensibilidad[Área]='Análisis Adaptación'!$D$13)*(Tabla_Sensibilidad[Categoría de operaciones de infraestructura]='Análisis Adaptación'!$D$14),0),MATCH('Análisis Adaptación'!C25,Tabla_Sensibilidad[[#Headers],[Aumento del Nivel del Mar]:[Eventos Meteo. Extremos]],0)) -> Medio | F25: Cambio Régimen Lluvias | G25: =INDEX(Tabla_Exposición_Actual[[Aumento del Nivel del Mar]:[Eventos Meteo. Extremos]],MATCH($D$15,Tabla_Exposición_Actual[Municipio],0),MATCH('Análisis Adaptación'!F25,Tabla_Exposición_Actual[[#Headers],[Aumento del Nivel del Mar]:[Eventos Meteo. Extremos]],0)) -> Bajo | H25: =INDEX(Tabla_Exposición_Futuro[[Aumento del Nivel del Mar]:[Eventos Meteo. Extremos]],MATCH($D$15,Tabla_Exposición_Futuro[Municipio],0),MATCH('Análisis Adaptación'!F25,Tabla_Exposición_Futuro[[#Headers],[Aumento del Nivel del Mar]:[Eventos Meteo. Extremos]],0)) -> Bajo | J25: =IF(AND(G25="No aplica",H25="No aplica"),"No aplica",CHOOSE(MAX(IFERROR(VLOOKUP(G25,Tabla_Equivalencias[],2,FALSE),0),IFERROR(VLOOKUP('Análisis Adaptación'!H25,Tabla_Equivalencias[],2,FALSE),0)),"Bajo","Medio","Alto")) -> Bajo
C26: Inundación Torrencial | D26: =INDEX(Tabla_Sensibilidad[[Aumento del Nivel del Mar]:[Eventos Meteo. Extremos]],MATCH(1,(Tabla_Sensibilidad[Área]='Análisis Adaptación'!$D$13)*(Tabla_Sensibilidad[Categoría de operaciones de infraestructura]='Análisis Adaptación'!$D$14),0),MATCH('Análisis Adaptación'!C26,Tabla_Sensibilidad[[#Headers],[Aumento del Nivel del Mar]:[Eventos Meteo. Extremos]],0)) -> Medio | F26: Inundación Fluvio-Marinas | G26: =INDEX(Tabla_Exposición_Actual[[Aumento del Nivel del Mar]:[Eventos Meteo. Extremos]],MATCH($D$15,Tabla_Exposición_Actual[Municipio],0),MATCH('Análisis Adaptación'!F26,Tabla_Exposición_Actual[[#Headers],[Aumento del Nivel del Mar]:[Eventos Meteo. Extremos]],0)) -> Bajo | H26: =INDEX(Tabla_Exposición_Futuro[[Aumento del Nivel del Mar]:[Eventos Meteo. Extremos]],MATCH($D$15,Tabla_Exposición_Futuro[Municipio],0),MATCH('Análisis Adaptación'!F26,Tabla_Exposición_Futuro[[#Headers],[Aumento del Nivel del Mar]:[Eventos Meteo. Extremos]],0)) -> Bajo | J26: =IF(AND(G26="No aplica",H26="No aplica"),"No aplica",CHOOSE(MAX(IFERROR(VLOOKUP(G26,Tabla_Equivalencias[],2,FALSE),0),IFERROR(VLOOKUP('Análisis Adaptación'!H26,Tabla_Equivalencias[],2,FALSE),0)),"Bajo","Medio","Alto")) -> Bajo
C27: Cambios Régimen Nival | D27: =INDEX(Tabla_Sensibilidad[[Aumento del Nivel del Mar]:[Eventos Meteo. Extremos]],MATCH(1,(Tabla_Sensibilidad[Área]='Análisis Adaptación'!$D$13)*(Tabla_Sensibilidad[Categoría de operaciones de infraestructura]='Análisis Adaptación'!$D$14),0),MATCH('Análisis Adaptación'!C27,Tabla_Sensibilidad[[#Headers],[Aumento del Nivel del Mar]:[Eventos Meteo. Extremos]],0)) -> Bajo | F27: Inundación Torrencial | G27: =INDEX(Tabla_Exposición_Actual[[Aumento del Nivel del Mar]:[Eventos Meteo. Extremos]],MATCH($D$15,Tabla_Exposición_Actual[Municipio],0),MATCH('Análisis Adaptación'!F27,Tabla_Exposición_Actual[[#Headers],[Aumento del Nivel del Mar]:[Eventos Meteo. Extremos]],0)) -> Bajo | H27: =INDEX(Tabla_Exposición_Futuro[[Aumento del Nivel del Mar]:[Eventos Meteo. Extremos]],MATCH($D$15,Tabla_Exposición_Futuro[Municipio],0),MATCH('Análisis Adaptación'!F27,Tabla_Exposición_Futuro[[#Headers],[Aumento del Nivel del Mar]:[Eventos Meteo. Extremos]],0)) -> Bajo | J27: =IF(AND(G27="No aplica",H27="No aplica"),"No aplica",CHOOSE(MAX(IFERROR(VLOOKUP(G27,Tabla_Equivalencias[],2,FALSE),0),IFERROR(VLOOKUP('Análisis Adaptación'!H27,Tabla_Equivalencias[],2,FALSE),0)),"Bajo","Medio","Alto")) -> Bajo
C28: Aumento Temp. | D28: =INDEX(Tabla_Sensibilidad[[Aumento del Nivel del Mar]:[Eventos Meteo. Extremos]],MATCH(1,(Tabla_Sensibilidad[Área]='Análisis Adaptación'!$D$13)*(Tabla_Sensibilidad[Categoría de operaciones de infraestructura]='Análisis Adaptación'!$D$14),0),MATCH('Análisis Adaptación'!C28,Tabla_Sensibilidad[[#Headers],[Aumento del Nivel del Mar]:[Eventos Meteo. Extremos]],0)) -> Medio | F28: Cambios Régimen Nival | G28: =INDEX(Tabla_Exposición_Actual[[Aumento del Nivel del Mar]:[Eventos Meteo. Extremos]],MATCH($D$15,Tabla_Exposición_Actual[Municipio],0),MATCH('Análisis Adaptación'!F28,Tabla_Exposición_Actual[[#Headers],[Aumento del Nivel del Mar]:[Eventos Meteo. Extremos]],0)) -> Bajo | H28: =INDEX(Tabla_Exposición_Futuro[[Aumento del Nivel del Mar]:[Eventos Meteo. Extremos]],MATCH($D$15,Tabla_Exposición_Futuro[Municipio],0),MATCH('Análisis Adaptación'!F28,Tabla_Exposición_Futuro[[#Headers],[Aumento del Nivel del Mar]:[Eventos Meteo. Extremos]],0)) -> Bajo | J28: =IF(AND(G28="No aplica",H28="No aplica"),"No aplica",CHOOSE(MAX(IFERROR(VLOOKUP(G28,Tabla_Equivalencias[],2,FALSE),0),IFERROR(VLOOKUP('Análisis Adaptación'!H28,Tabla_Equivalencias[],2,FALSE),0)),"Bajo","Medio","Alto")) -> Bajo
C29: Olas de Calor | D29: =INDEX(Tabla_Sensibilidad[[Aumento del Nivel del Mar]:[Eventos Meteo. Extremos]],MATCH(1,(Tabla_Sensibilidad[Área]='Análisis Adaptación'!$D$13)*(Tabla_Sensibilidad[Categoría de operaciones de infraestructura]='Análisis Adaptación'!$D$14),0),MATCH('Análisis Adaptación'!C29,Tabla_Sensibilidad[[#Headers],[Aumento del Nivel del Mar]:[Eventos Meteo. Extremos]],0)) -> Medio | F29: Aumento Temp. | G29: =INDEX(Tabla_Exposición_Actual[[Aumento del Nivel del Mar]:[Eventos Meteo. Extremos]],MATCH($D$15,Tabla_Exposición_Actual[Municipio],0),MATCH('Análisis Adaptación'!F29,Tabla_Exposición_Actual[[#Headers],[Aumento del Nivel del Mar]:[Eventos Meteo. Extremos]],0)) -> Medio | H29: =INDEX(Tabla_Exposición_Futuro[[Aumento del Nivel del Mar]:[Eventos Meteo. Extremos]],MATCH($D$15,Tabla_Exposición_Futuro[Municipio],0),MATCH('Análisis Adaptación'!F29,Tabla_Exposición_Futuro[[#Headers],[Aumento del Nivel del Mar]:[Eventos Meteo. Extremos]],0)) -> Alto | J29: =IF(AND(G29="No aplica",H29="No aplica"),"No aplica",CHOOSE(MAX(IFERROR(VLOOKUP(G29,Tabla_Equivalencias[],2,FALSE),0),IFERROR(VLOOKUP('Análisis Adaptación'!H29,Tabla_Equivalencias[],2,FALSE),0)),"Bajo","Medio","Alto")) -> Alto
C30: Movimientos de Ladera | D30: =INDEX(Tabla_Sensibilidad[[Aumento del Nivel del Mar]:[Eventos Meteo. Extremos]],MATCH(1,(Tabla_Sensibilidad[Área]='Análisis Adaptación'!$D$13)*(Tabla_Sensibilidad[Categoría de operaciones de infraestructura]='Análisis Adaptación'!$D$14),0),MATCH('Análisis Adaptación'!C30,Tabla_Sensibilidad[[#Headers],[Aumento del Nivel del Mar]:[Eventos Meteo. Extremos]],0)) -> Medio | F30: Olas de Calor | G30: =INDEX(Tabla_Exposición_Actual[[Aumento del Nivel del Mar]:[Eventos Meteo. Extremos]],MATCH($D$15,Tabla_Exposición_Actual[Municipio],0),MATCH('Análisis Adaptación'!F30,Tabla_Exposición_Actual[[#Headers],[Aumento del Nivel del Mar]:[Eventos Meteo. Extremos]],0)) -> Medio | H30: =INDEX(Tabla_Exposición_Futuro[[Aumento del Nivel del Mar]:[Eventos Meteo. Extremos]],MATCH($D$15,Tabla_Exposición_Futuro[Municipio],0),MATCH('Análisis Adaptación'!F30,Tabla_Exposición_Futuro[[#Headers],[Aumento del Nivel del Mar]:[Eventos Meteo. Extremos]],0)) -> Alto | J30: =IF(AND(G30="No aplica",H30="No aplica"),"No aplica",CHOOSE(MAX(IFERROR(VLOOKUP(G30,Tabla_Equivalencias[],2,FALSE),0),IFERROR(VLOOKUP('Análisis Adaptación'!H30,Tabla_Equivalencias[],2,FALSE),0)),"Bajo","Medio","Alto")) -> Alto
C31: Cambios Rég. Vientos | D31: =INDEX(Tabla_Sensibilidad[[Aumento del Nivel del Mar]:[Eventos Meteo. Extremos]],MATCH(1,(Tabla_Sensibilidad[Área]='Análisis Adaptación'!$D$13)*(Tabla_Sensibilidad[Categoría de operaciones de infraestructura]='Análisis Adaptación'!$D$14),0),MATCH('Análisis Adaptación'!C31,Tabla_Sensibilidad[[#Headers],[Aumento del Nivel del Mar]:[Eventos Meteo. Extremos]],0)) -> Bajo | F31: Movimientos de Ladera | G31: =INDEX(Tabla_Exposición_Actual[[Aumento del Nivel del Mar]:[Eventos Meteo. Extremos]],MATCH($D$15,Tabla_Exposición_Actual[Municipio],0),MATCH('Análisis Adaptación'!F31,Tabla_Exposición_Actual[[#Headers],[Aumento del Nivel del Mar]:[Eventos Meteo. Extremos]],0)) -> Alto | H31: =INDEX(Tabla_Exposición_Futuro[[Aumento del Nivel del Mar]:[Eventos Meteo. Extremos]],MATCH($D$15,Tabla_Exposición_Futuro[Municipio],0),MATCH('Análisis Adaptación'!F31,Tabla_Exposición_Futuro[[#Headers],[Aumento del Nivel del Mar]:[Eventos Meteo. Extremos]],0)) -> Alto | J31: =IF(AND(G31="No aplica",H31="No aplica"),"No aplica",CHOOSE(MAX(IFERROR(VLOOKUP(G31,Tabla_Equivalencias[],2,FALSE),0),IFERROR(VLOOKUP('Análisis Adaptación'!H31,Tabla_Equivalencias[],2,FALSE),0)),"Bajo","Medio","Alto")) -> Alto
C32: Eventos Meteo. Extremos | D32: =INDEX(Tabla_Sensibilidad[[Aumento del Nivel del Mar]:[Eventos Meteo. Extremos]],MATCH(1,(Tabla_Sensibilidad[Área]='Análisis Adaptación'!$D$13)*(Tabla_Sensibilidad[Categoría de operaciones de infraestructura]='Análisis Adaptación'!$D$14),0),MATCH('Análisis Adaptación'!C32,Tabla_Sensibilidad[[#Headers],[Aumento del Nivel del Mar]:[Eventos Meteo. Extremos]],0)) -> Medio | F32: Cambios Rég. Vientos | G32: =INDEX(Tabla_Exposición_Actual[[Aumento del Nivel del Mar]:[Eventos Meteo. Extremos]],MATCH($D$15,Tabla_Exposición_Actual[Municipio],0),MATCH('Análisis Adaptación'!F32,Tabla_Exposición_Actual[[#Headers],[Aumento del Nivel del Mar]:[Eventos Meteo. Extremos]],0)) -> Bajo | H32: =INDEX(Tabla_Exposición_Futuro[[Aumento del Nivel del Mar]:[Eventos Meteo. Extremos]],MATCH($D$15,Tabla_Exposición_Futuro[Municipio],0),MATCH('Análisis Adaptación'!F32,Tabla_Exposición_Futuro[[#Headers],[Aumento del Nivel del Mar]:[Eventos Meteo. Extremos]],0)) -> Medio | J32: =IF(AND(G32="No aplica",H32="No aplica"),"No aplica",CHOOSE(MAX(IFERROR(VLOOKUP(G32,Tabla_Equivalencias[],2,FALSE),0),IFERROR(VLOOKUP('Análisis Adaptación'!H32,Tabla_Equivalencias[],2,FALSE),0)),"Bajo","Medio","Alto")) -> Medio
F33: Eventos Meteo. Extremos | G33: =INDEX(Tabla_Exposición_Actual[[Aumento del Nivel del Mar]:[Eventos Meteo. Extremos]],MATCH($D$15,Tabla_Exposición_Actual[Municipio],0),MATCH('Análisis Adaptación'!F33,Tabla_Exposición_Actual[[#Headers],[Aumento del Nivel del Mar]:[Eventos Meteo. Extremos]],0)) -> Bajo | H33: =INDEX(Tabla_Exposición_Futuro[[Aumento del Nivel del Mar]:[Eventos Meteo. Extremos]],MATCH($D$15,Tabla_Exposición_Futuro[Municipio],0),MATCH('Análisis Adaptación'!F33,Tabla_Exposición_Futuro[[#Headers],[Aumento del Nivel del Mar]:[Eventos Meteo. Extremos]],0)) -> Medio | J33: =IF(AND(G33="No aplica",H33="No aplica"),"No aplica",CHOOSE(MAX(IFERROR(VLOOKUP(G33,Tabla_Equivalencias[],2,FALSE),0),IFERROR(VLOOKUP('Análisis Adaptación'!H33,Tabla_Equivalencias[],2,FALSE),0)),"Bajo","Medio","Alto")) -> Medio
C36: VULNERABILIDAD
C38: Peligro Climático | D38: Vulnerabilidad
C39: Aumento del Nivel del Mar | D39: =IF(J22="No aplica",J22,IF(D21="Alto",IF(J22="Alto","Alto",IF(J22="Medio","Alto","Medio")),IF(D21="Medio",IF(J22="Alto","Alto",IF(J22="Medio","Medio","Bajo")),IF(D21="Bajo",IF(J22="Alto","Medio","Bajo"),"")))) -> No aplica
C40: Inundaciones Costeras | D40: =IF(J23="No aplica",J23,IF(D22="Alto",IF(J23="Alto","Alto",IF(J23="Medio","Alto","Medio")),IF(D22="Medio",IF(J23="Alto","Alto",IF(J23="Medio","Medio","Bajo")),IF(D22="Bajo",IF(J23="Alto","Medio","Bajo"),"")))) -> No aplica
C41: Eventos Extremos Costeros | D41: =IF(J24="No aplica",J24,IF(D23="Alto",IF(J24="Alto","Alto",IF(J24="Medio","Alto","Medio")),IF(D23="Medio",IF(J24="Alto","Alto",IF(J24="Medio","Medio","Bajo")),IF(D23="Bajo",IF(J24="Alto","Medio","Bajo"),"")))) -> No aplica | F41: =IF(COUNTIF($D$39:$D$50,"Alto")>0,"⚠️ El proyecto pasa a Fase 2 (análisis detallado)","✔️ Concluye el proceso del pilar de adaptación") -> ⚠️ El proyecto pasa a Fase 2 (análisis detallado)
C42: Cambio Régimen Lluvias | D42: =IF(J25="No aplica",J25,IF(J25="Alto",IF(J25="Alto","Alto",IF(J25="Medio","Alto","Medio")),IF(D24="Medio",IF(J25="Alto","Alto",IF(J25="Medio","Medio","Bajo")),IF(D24="Bajo",IF(J25="Alto","Medio","Bajo"),"")))) -> Bajo | F42: Nota metodolóigica: En el caso de que exista un peligro climático cuya vulnerabilidad sea "alta", el proyecto pasa a Fase 2.
C43: Inundación Fluvio-Marinas | D43: =IF(J26="No aplica",J26,IF(D25="Alto",IF(J26="Alto","Alto",IF(J26="Medio","Alto","Medio")),IF(D25="Medio",IF(J26="Alto","Alto",IF(J26="Medio","Medio","Bajo")),IF(D25="Bajo",IF(J26="Alto","Medio","Bajo"),"")))) -> Bajo
C44: Inundación Torrencial | D44: Bajo
C45: Cambios Régimen Nival | D45: Bajo
C46: Aumento Temp. | D46: Alto
C47: Olas de Calor | D47: Alto
C48: Movimientos de Ladera | D48: Alto
C49: Cambios Rég. Vientos | D49: Bajo
C50: Eventos Meteo. Extremos | D50: Medio
C52: *Nota: Si no hay dato de exposición final disponible, la vulnerabilidad coincide con la sensibilidad del peligro.
C53: * Para los peligros climáticos relacionados con la costa (aumento del nivel del mar, inundaciones costeras y eventos extremos costeros), únicamente se tendrán en cuenta en caso de que el proyecto se sitúe a menos de 1 km de la costa. En caso de que esté situado en un municipio costero pero a más de 1 km de la costa se considerará que el peligro no aplica.
B56: 🔹 FASE 2 - EVALUACIÓN DE RIESGOS (ANÁLISIS DETALLADO)
C60: PROBABILIDAD | F60: IMPACTO
C63: Peligro Climático | D63: Probabilidad | F63: Peligro Climático | G63: Impacto
C64: Aumento del nivel del mar | D64: =+IF(F41="⚠️ El proyecto pasa a Fase 2 (análisis detallado)",VLOOKUP($D$15,'Tablas Adaptación'!G138:H216,2,0),"No aplica") -> No aplica | F64: Aumento del nivel del mar | G64: =IF(D64="No aplica","No aplica",(INDEX(Tabla2[[Aumento del nivel del mar]:[Eventos meteorológicos extremos]],MATCH($D$14,Tabla2[Categoría del proyecto],0),MATCH(F64,Tabla2[[#Headers],[Aumento del nivel del mar]:[Eventos meteorológicos extremos]],0)))) -> No aplica
C65: Inundaciones costeras | D65: =IF(F41="⚠️ El proyecto pasa a Fase 2 (análisis detallado)",VLOOKUP($D$15,'Tablas Adaptación'!C230:D308,2,0),"No aplica") -> No aplica | F65: Inundaciones costeras | G65: =IF(D65="No aplica","No aplica",(INDEX(Tabla2[[Aumento del nivel del mar]:[Eventos meteorológicos extremos]],MATCH($D$14,Tabla2[Categoría del proyecto],0),MATCH(F65,Tabla2[[#Headers],[Aumento del nivel del mar]:[Eventos meteorológicos extremos]],0)))) -> No aplica
C66: Eventos extremos costeros (temporales) | D66: =IF(F41="⚠️ El proyecto pasa a Fase 2 (análisis detallado)",VLOOKUP($D$15,'Tablas Adaptación'!F230:G308,2,0),"No aplica") -> No aplica | F66: Eventos extremos costeros (temporales) | G66: =IF(D66="No aplica","No aplica",(INDEX(Tabla2[[Aumento del nivel del mar]:[Eventos meteorológicos extremos]],MATCH($D$14,Tabla2[Categoría del proyecto],0),MATCH(F66,Tabla2[[#Headers],[Aumento del nivel del mar]:[Eventos meteorológicos extremos]],0)))) -> No aplica
C67: Cambios en el régimen de precipitaciones | D67: =+IF(F41="⚠️ El proyecto pasa a Fase 2 (análisis detallado)","Improbable","No aplica") -> Improbable | F67: Cambio en el régimen de precipitaciones | G67: =IF(D67="No aplica","No aplica",INDEX(Tabla2[[Aumento del nivel del mar]:[Eventos meteorológicos extremos]],MATCH($D$14,Tabla2[Categoría del proyecto],0),MATCH(F67,Tabla2[[#Headers],[Aumento del nivel del mar]:[Eventos meteorológicos extremos]],0))) -> Moderado
C68: Inundaciones fluviomarinas | D68: =IF(F41="⚠️ El proyecto pasa a Fase 2 (análisis detallado)",VLOOKUP($D$15,'Tablas Adaptación'!C148:D226,2,0),"No aplica") -> Moderado | F68: Inundaciones fluviomarinas | G68: =IF(D68="No aplica","No aplica",INDEX(Tabla2[[Aumento del nivel del mar]:[Eventos meteorológicos extremos]],MATCH($D$14,Tabla2[Categoría del proyecto],0),MATCH(F68,Tabla2[[#Headers],[Aumento del nivel del mar]:[Eventos meteorológicos extremos]],0))) -> Moderado
C69: Inundaciones torrenciales | D69: =D68 -> Moderado | F69: Inundaciones torrenciales | G69: =IF(D69="No aplica","No aplica",INDEX(Tabla2[[Aumento del nivel del mar]:[Eventos meteorológicos extremos]],MATCH($D$14,Tabla2[Categoría del proyecto],0),MATCH(F69,Tabla2[[#Headers],[Aumento del nivel del mar]:[Eventos meteorológicos extremos]],0))) -> Moderado
C70: Cambios en el régimen nival | D70: =IF(F41="⚠️ El proyecto pasa a Fase 2 (análisis detallado)",VLOOKUP($D$15,'Tablas Adaptación'!I230:J308,2,0),"No aplica") -> Raro | F70: Cambios en el régimen nival | G70: =IF(D70="No aplica","No aplica",INDEX(Tabla2[[Aumento del nivel del mar]:[Eventos meteorológicos extremos]],MATCH($D$14,Tabla2[Categoría del proyecto],0),MATCH(F70,Tabla2[[#Headers],[Aumento del nivel del mar]:[Eventos meteorológicos extremos]],0))) -> Leve
C71: Incremento de la temperatura | D71: =+IF(F41="⚠️ El proyecto pasa a Fase 2 (análisis detallado)","Probable","No aplica") -> Probable | F71: Incremento de la temperatura | G71: =IF(D71="No aplica","No aplica",INDEX(Tabla2[[Aumento del nivel del mar]:[Eventos meteorológicos extremos]],MATCH($D$14,Tabla2[Categoría del proyecto],0),MATCH(F71,Tabla2[[#Headers],[Aumento del nivel del mar]:[Eventos meteorológicos extremos]],0))) -> Moderado
C72: Olas de calor | D72: =+IF(F41="⚠️ El proyecto pasa a Fase 2 (análisis detallado)","Probable","No aplica") -> Probable | F72: Olas de calor | G72: =IF(D72="No aplica","No aplica",INDEX(Tabla2[[Aumento del nivel del mar]:[Eventos meteorológicos extremos]],MATCH($D$14,Tabla2[Categoría del proyecto],0),MATCH(F72,Tabla2[[#Headers],[Aumento del nivel del mar]:[Eventos meteorológicos extremos]],0))) -> Moderado
C73: Movimientos de ladera | D73: =+IF(F41="⚠️ El proyecto pasa a Fase 2 (análisis detallado)",VLOOKUP($D$15,'Tablas Adaptación'!J138:K216,2,0),"No aplica") -> Raro | F73: Movimientos de ladera | G73: =IF(D73="No aplica","No aplica",INDEX(Tabla2[[Aumento del nivel del mar]:[Eventos meteorológicos extremos]],MATCH($D$14,Tabla2[Categoría del proyecto],0),MATCH(F73,Tabla2[[#Headers],[Aumento del nivel del mar]:[Eventos meteorológicos extremos]],0))) -> Moderado
C74: Cambio en el régimen de vientos | D74: =+IF(F41="⚠️ El proyecto pasa a Fase 2 (análisis detallado)","Probable","No aplica") -> Probable | F74: Cambios en el régimen de vientos | G74: =IF(D74="No aplica","No aplica",INDEX(Tabla2[[Aumento del nivel del mar]:[Eventos meteorológicos extremos]],MATCH($D$14,Tabla2[Categoría del proyecto],0),MATCH(F74,Tabla2[[#Headers],[Aumento del nivel del mar]:[Eventos meteorológicos extremos]],0))) -> Moderado
C75: Eventos meteorológicos extremos | D75: =IF(F41="⚠️ El proyecto pasa a Fase 2 (análisis detallado)",VLOOKUP($D$15,'Tablas Adaptación'!M138:N216,2,0),"No aplica") -> Raro | F75: Eventos meteorológicos extremos | G75: =IF(D75="No aplica","No aplica",INDEX(Tabla2[[Aumento del nivel del mar]:[Eventos meteorológicos extremos]],MATCH($D$14,Tabla2[Categoría del proyecto],0),MATCH(F75,Tabla2[[#Headers],[Aumento del nivel del mar]:[Eventos meteorológicos extremos]],0))) -> Moderado
C80: RIESGO
C83: Peligro Climático | D83: Riesgo
C84: Aumento del nivel del mar | D84: =IF(D64="No aplica","No aplica",(IF(D64="Casi seguro",IF(G64="Grave","Extremo",IF(G64="Moderado","Extremo","Alto")),IF(D64="Probable",IF(G64="Grave","Extremo",IF(G64="Moderado","Alto",IF(G64="Leve","Alto","Medio"))),IF(D64="Moderado",IF(G64="Grave","Extremo",IF(G64="Moderado","Alto",IF(G64="Leve","Medio","Bajo"))),IF(D64="Improbable",IF(G64="Grave","Alto",IF(G64="Moderado","Medio","Bajo")),IF(D64="Raro",IF(G64="Grave","Alto",IF(G64="Moderado","Medio","Bajo")),""))))))) -> No aplica
C85: Inundaciones costeras | D85: =IF(D65="No aplica","No aplica",(IF(D65="Casi seguro",IF(G65="Grave","Extremo",IF(G65="Moderado","Extremo","Alto")),IF(D65="Probable",IF(G65="Grave","Extremo",IF(G65="Moderado","Alto",IF(G65="Leve","Alto","Medio"))),IF(D65="Moderado",IF(G65="Grave","Extremo",IF(G65="Moderado","Alto",IF(G65="Leve","Medio","Bajo"))),IF(D65="Improbable",IF(G65="Grave","Alto",IF(G65="Moderado","Medio","Bajo")),IF(D65="Raro",IF(G65="Grave","Alto",IF(G65="Moderado","Medio","Bajo")),""))))))) -> No aplica
C86: Eventos extremos costeros (temporales) | D86: =IF(D66="No aplica","No aplica",(IF(D66="Casi seguro",IF(G66="Grave","Extremo",IF(G66="Moderado","Extremo","Alto")),IF(D66="Probable",IF(G66="Grave","Extremo",IF(G66="Moderado","Alto",IF(G66="Leve","Alto","Medio"))),IF(D66="Moderado",IF(G66="Grave","Extremo",IF(G66="Moderado","Alto",IF(G66="Leve","Medio","Bajo"))),IF(D66="Improbable",IF(G66="Grave","Alto",IF(G66="Moderado","Medio","Bajo")),IF(D66="Raro",IF(G66="Grave","Alto",IF(G66="Moderado","Medio","Bajo")),""))))))) -> No aplica
C87: Cambio en el régimen de precipitaciones | D87: =IF(D67="No aplica","No aplica",IF(D67="Casi seguro",IF(G67="Grave","Extremo",IF(G67="Moderado","Extremo","Alto")),IF(D67="Probable",IF(G67="Grave","Extremo",IF(G67="Moderado","Alto",IF(G67="Leve","Alto","Medio"))),IF(D67="Moderado",IF(G67="Grave","Extremo",IF(G67="Moderado","Alto",IF(G67="Leve","Medio","Bajo"))),IF(D67="Improbable",IF(G67="Grave","Alto",IF(G67="Moderado","Medio","Bajo")),IF(D67="Raro",IF(G67="Grave","Alto",IF(G67="Moderado","Medio","Bajo")),"")))))) -> Medio
C88: Inundaciones fluviomarinas | D88: Alto
C89: Inundaciones torrenciales | D89: Alto
C90: Cambios en el régimen nival | D90: Bajo
C91: Incremento de la temperatura | D91: Alto
C92: Olas de calor | D92: Alto | F92: =IF(COUNTIF($D$87:$D$97,"Extremo")>0,"⚠️ Se necesitan medidas de adaptación en los peligros con riesgo extremo","✔️ No es necesario proponer medidas de adaptación") -> ✔️ No es necesario proponer medidas de adaptación
C93: Movimientos de ladera | D93: Medio
C94: Cambios en el régimen de vientos | D94: Alto | F94: Nota metodológica: Se propondrán medidas de adaptación en los peligros climáticos cuyo riesgo sea "extremo".
C95: Eventos meteorológicos extremos | D95: Medio
C99: Peligro Climático | D99: Propuesta de medidas de adaptación que será necesario adaptar a las características del proyecto y del territorio
C100: Aumento del nivel del mar | D100: =+IF(D84="Extremo",INDEX(Tabla_Medidas[[Aumento del Nivel del Mar]:[Eventos Meteo. Extremos]],MATCH(1,(Tabla_Medidas[Área]='Análisis Adaptación'!$D$13)*(Tabla_Medidas[Categoría de operaciones de infraestructura]='Análisis Adaptación'!$D$14),0),MATCH('Análisis Adaptación'!C21,Tabla_Medidas[[#Headers],[Aumento del Nivel del Mar]:[Eventos Meteo. Extremos]],0)),"No son necesarias medidas de adaptación") -> No son necesarias medidas de adaptación
C101: Inundaciones costeras | D101: =IF(D85="Extremo",INDEX(Tabla_Medidas[[Aumento del Nivel del Mar]:[Eventos Meteo. Extremos]],MATCH(1,(Tabla_Medidas[Área]='Análisis Adaptación'!$D$13)*(Tabla_Medidas[Categoría de operaciones de infraestructura]='Análisis Adaptación'!$D$14),0),MATCH('Análisis Adaptación'!C22,Tabla_Medidas[[#Headers],[Aumento del Nivel del Mar]:[Eventos Meteo. Extremos]],0)),"No son necesarias medidas de adaptación") -> No son necesarias medidas de adaptación
C102: Eventos extremos costeros (temporales) | D102: =IF(D86="Extremo",INDEX(Tabla_Medidas[[Aumento del Nivel del Mar]:[Eventos Meteo. Extremos]],MATCH(1,(Tabla_Medidas[Área]='Análisis Adaptación'!$D$13)*(Tabla_Medidas[Categoría de operaciones de infraestructura]='Análisis Adaptación'!$D$14),0),MATCH('Análisis Adaptación'!C23,Tabla_Medidas[[#Headers],[Aumento del Nivel del Mar]:[Eventos Meteo. Extremos]],0)),"No son necesarias medidas de adaptación") -> No son necesarias medidas de adaptación
C103: Cambio en el régimen de precipitaciones | D103: =IF(D87="Extremo",INDEX(Tabla_Medidas[[Aumento del Nivel del Mar]:[Eventos Meteo. Extremos]],MATCH(1,(Tabla_Medidas[Área]='Análisis Adaptación'!$D$13)*(Tabla_Medidas[Categoría de operaciones de infraestructura]='Análisis Adaptación'!$D$14),0),MATCH('Análisis Adaptación'!C24,Tabla_Medidas[[#Headers],[Aumento del Nivel del Mar]:[Eventos Meteo. Extremos]],0)),"No son necesarias medidas de adaptación") -> No son necesarias medidas de adaptación
C104: Inundaciones fluviomarinas | D104: =IF(D88="Extremo",INDEX(Tabla_Medidas[[Aumento del Nivel del Mar]:[Eventos Meteo. Extremos]],MATCH(1,(Tabla_Medidas[Área]='Análisis Adaptación'!$D$13)*(Tabla_Medidas[Categoría de operaciones de infraestructura]='Análisis Adaptación'!$D$14),0),MATCH('Análisis Adaptación'!C25,Tabla_Medidas[[#Headers],[Aumento del Nivel del Mar]:[Eventos Meteo. Extremos]],0)),"No son necesarias medidas de adaptación") -> No son necesarias medidas de adaptación
C105: Inundaciones torrenciales | D105: =IF(D89="Extremo",INDEX(Tabla_Medidas[[Aumento del Nivel del Mar]:[Eventos Meteo. Extremos]],MATCH(1,(Tabla_Medidas[Área]='Análisis Adaptación'!$D$13)*(Tabla_Medidas[Categoría de operaciones de infraestructura]='Análisis Adaptación'!$D$14),0),MATCH('Análisis Adaptación'!C26,Tabla_Medidas[[#Headers],[Aumento del Nivel del Mar]:[Eventos Meteo. Extremos]],0)),"No son necesarias medidas de adaptación") -> No son necesarias medidas de adaptación
C106: Cambios en el régimen nival | D106: =IF(D90="Extremo",INDEX(Tabla_Medidas[[Aumento del Nivel del Mar]:[Eventos Meteo. Extremos]],MATCH(1,(Tabla_Medidas[Área]='Análisis Adaptación'!$D$13)*(Tabla_Medidas[Categoría de operaciones de infraestructura]='Análisis Adaptación'!$D$14),0),MATCH('Análisis Adaptación'!C27,Tabla_Medidas[[#Headers],[Aumento del Nivel del Mar]:[Eventos Meteo. Extremos]],0)),"No son necesarias medidas de adaptación") -> No son necesarias medidas de adaptación
C107: Incremento de la temperatura | D107: =IF(D91="Extremo",INDEX(Tabla_Medidas[[Aumento del Nivel del Mar]:[Eventos Meteo. Extremos]],MATCH(1,(Tabla_Medidas[Área]='Análisis Adaptación'!$D$13)*(Tabla_Medidas[Categoría de operaciones de infraestructura]='Análisis Adaptación'!$D$14),0),MATCH('Análisis Adaptación'!C28,Tabla_Medidas[[#Headers],[Aumento del Nivel del Mar]:[Eventos Meteo. Extremos]],0)),"No son necesarias medidas de adaptación") -> No son necesarias medidas de adaptación
C108: Olas de calor | D108: =IF(D92="Extremo",INDEX(Tabla_Medidas[[Aumento del Nivel del Mar]:[Eventos Meteo. Extremos]],MATCH(1,(Tabla_Medidas[Área]='Análisis Adaptación'!$D$13)*(Tabla_Medidas[Categoría de operaciones de infraestructura]='Análisis Adaptación'!$D$14),0),MATCH('Análisis Adaptación'!C29,Tabla_Medidas[[#Headers],[Aumento del Nivel del Mar]:[Eventos Meteo. Extremos]],0)),"No son necesarias medidas de adaptación") -> No son necesarias medidas de adaptación
C109: Movimientos de ladera | D109: =IF(D93="Extremo",INDEX(Tabla_Medidas[[Aumento del Nivel del Mar]:[Eventos Meteo. Extremos]],MATCH(1,(Tabla_Medidas[Área]='Análisis Adaptación'!$D$13)*(Tabla_Medidas[Categoría de operaciones de infraestructura]='Análisis Adaptación'!$D$14),0),MATCH('Análisis Adaptación'!C30,Tabla_Medidas[[#Headers],[Aumento del Nivel del Mar]:[Eventos Meteo. Extremos]],0)),"No son necesarias medidas de adaptación") -> No son necesarias medidas de adaptación
C110: Cambios en el régimen de vientos | D110: =+IF(D94="Extremo",INDEX(Tabla_Medidas[[Aumento del Nivel del Mar]:[Eventos Meteo. Extremos]],MATCH(1,(Tabla_Medidas[Área]='Análisis Adaptación'!$D$13)*(Tabla_Medidas[Categoría de operaciones de infraestructura]='Análisis Adaptación'!$D$14),0),MATCH('Análisis Adaptación'!C31,Tabla_Medidas[[#Headers],[Aumento del Nivel del Mar]:[Eventos Meteo. Extremos]],0)),"No son necesarias medidas de adaptación") -> No son necesarias medidas de adaptación
C111: Eventos meteorológicos extremos | D111: =IF(D95="Extremo",INDEX(Tabla_Medidas[[Aumento del Nivel del Mar]:[Eventos Meteo. Extremos]],MATCH(1,(Tabla_Medidas[Área]='Análisis Adaptación'!$D$13)*(Tabla_Medidas[Categoría de operaciones de infraestructura]='Análisis Adaptación'!$D$14),0),MATCH('Análisis Adaptación'!C32,Tabla_Medidas[[#Headers],[Aumento del Nivel del Mar]:[Eventos Meteo. Extremos]],0)),"No son necesarias medidas de adaptación") -> No son necesarias medidas de adaptación

Sheet Tablas Adaptación (hidden)
B3: 1. TABLA DE SENSIBILIDAD
C6: Área | D6: Categoría de operaciones de infraestructura | E6: Aumento del Nivel del Mar | F6: Inundaciones Costeras | G6: Eventos Extremos Costeros | H6: Cambio Régimen Lluvias | I6: Inundación Fluvio-Marinas | J6: Inundación Torrencial | K6: Cambios Régimen Nival | L6: Aumento Temp. | M6: Olas de Calor | N6: Movimientos de Ladera | O6: Cambios Rég. Vientos | P6: Eventos Meteo. Extremos
C7: Edificios | D7: Mejora de la eficiencia energética en edificios | E7: Medio | F7: Medio | G7: Medio | H7: Bajo | I7: Medio | J7: Medio | K7: Bajo | L7: Bajo | M7: Bajo | N7: Medio | O7: Bajo | P7: Medio
C8: Edificios | D8: Mejora genérica de edificios | E8: Medio | F8: Medio | G8: Medio | H8: Bajo | I8: Medio | J8: Medio | K8: Bajo | L8: Medio | M8: Bajo | N8: Medio | O8: Bajo | P8: Medio
C9: Edificios | D9: Mejoras en el entorno de los edificios | E9: Medio | F9: Medio | G9: Medio | H9: Bajo | I9: Medio | J9: Medio | K9: Bajo | L9: Bajo | M9: Bajo | N9: Medio | O9: Bajo | P9: Medio
C10: Edificios | D10: Construcción de edificios | E10: Medio | F10: Medio | G10: Medio | H10: Bajo | I10: Medio | J10: Medio | K10: Bajo | L10: Medio | M10: Bajo | N10: Medio | O10: Bajo | P10: Medio
C11: Edificios | D11: Ampliación de edificios | E11: Medio | F11: Medio | G11: Medio | H11: Bajo | I11: Medio | J11: Medio | K11: Bajo | L11: Medio | M11: Bajo | N11: Medio | O11: Bajo | P11: Medio
C12: Edificios | D12: Rehabilitación integral | E12: Medio | F12: Medio | G12: Medio | H12: Bajo | I12: Medio | J12: Medio | K12: Bajo | L12: Medio | M12: Bajo | N12: Medio | O12: Bajo | P12: Medio
C13: Residuos | D13: Puntos de recogida de residuos | E13: Medio | F13: Medio | G13: Medio | H13: Bajo | I13: Medio | J13: Medio | K13: Bajo | L13: Medio | M13: Medio | N13: Medio | O13: Bajo | P13: Medio
C14: Residuos | D14: Instalación de clasificación y reciclaje | E14: Medio | F14: Medio | G14: Medio | H14: Bajo | I14: Medio | J14: Medio | K14: Bajo | L14: Medio | M14: Medio | N14: Medio | O14: Bajo | P14: Medio
C15: Residuos | D15: Instalación de gestión de residuos | E15: Medio | F15: Medio | G15: Medio | H15: Bajo | I15: Medio | J15: Medio | K15: Bajo | L15: Medio | M15: Medio | N15: Medio | O15: Bajo | P15: Medio
C16: Residuos | D16: Plantas de valorización de residuos | E16: Medio | F16: Medio | G16: Medio | H16: Bajo | I16: Medio | J16: Medio | K16: Bajo | L16: Bajo | M16: Bajo | N16: Medio | O16: Bajo | P16: Medio
C17: Agua | D17: Pequeñas y medianas estaciones de depuración de aguas residuales | E17: Medio | F17: Medio | G17: Medio | H17: Bajo | I17: Medio | J17: Medio | K17: Bajo | L17: Medio | M17: Medio | N17: Medio | O17: Bajo | P17: Medio
C18: Agua | D18: Grandes estaciones de depuración de aguas residuales | E18: Medio | F18: Medio | G18: Medio | H18: Bajo | I18: Medio | J18: Medio | K18: Bajo | L18: Medio | M18: Medio | N18: Medio | O18: Bajo | P18: Medio
C19: Agua | D19: Actuaciones sobre sistemas de abastecimiento | E19: Alto | F19: Alto | G19: Alto | H19: Bajo | I19: Alto | J19: Alto | K19: Bajo | L19: Medio | M19: Medio | N19: Medio | O19: Bajo | P19: Alto
C20: Agua | D20: Actuaciones de preservación, preparación y protección de los recursos hídricos | E20: Medio | F20: Medio | G20: Medio | H20: Bajo | I20: Medio | J20: Medio | K20: Bajo | L20: Medio | M20: Medio | N20: Medio | O20: Bajo | P20: Medio
C21: Agua | D21: Instalaciones de distribución | E21: Alto | F21: Alto | G21: Alto | H21: Bajo | I21: Alto | J21: Alto | K21: Bajo | L21: Medio | M21: Medio | N21: Medio | O21: Bajo | P21: Alto
C22: Agua | D22: Pantalán | E22: Alto | F22: Alto | G22: Alto | H22: Bajo | I22: Medio | J22: Medio | K22: Bajo | L22: Bajo | M22: Bajo | N22: Bajo | O22: Bajo | P22: Alto
C23: Agua | D23: Estructuras marítimas | E23: Alto | F23: Alto | G23: Alto | H23: Bajo | I23: Alto | J23: Alto | K23: Bajo | L23: Bajo | M23: Bajo | N23: Bajo | O23: Bajo | P23: Alto
C24: Agua | D24: Estructuras fluviales | E24: Medio | F24: Medio | G24: Medio | H24: Bajo | I24: Medio | J24: Medio | K24: Bajo | L24: Bajo | M24: Bajo | N24: Bajo | O24: Bajo | P24: Medio
C25: Agua | D25: Escollera de protección | E25: Alto | F25: Alto | G25: Alto | H25: Bajo | I25: Alto | J25: Alto | K25: Bajo | L25: Bajo | M25: Bajo | N25: Bajo | O25: Bajo | P25: Alto
C26: Agua | D26: Estaciones de tratamiento de aguas potables | E26: Alto | F26: Alto | G26: Alto | H26: Bajo | I26: Alto | J26: Alto | K26: Bajo | L26: Medio | M26: Medio | N26: Medio | O26: Bajo | P26: Alto
C27: Agua | D27: Estaciones de bombeo | E27: Medio | F27: Medio | G27: Medio | H27: Bajo | I27: Medio | J27: Medio | K27: Bajo | L27: Medio | M27: Medio | N27: Medio | O27: Bajo | P27: Medio
C28: Agua | D28: Encauzamiento | E28: Alto | F28: Alto | G28: Alto | H28: Bajo | I28: Alto | J28: Alto | K28: Bajo | L28: Medio | M28: Medio | N28: Medio | O28: Bajo | P28: Alto
C29: Energía | D29: Infraestructuras de almacenamiento energético | E29: Medio | F29: Medio | G29: Medio | H29: Bajo | I29: Medio | J29: Medio | K29: Bajo | L29: Bajo | M29: Bajo | N29: Medio | O29: Bajo | P29: Medio
C30: Energía | D30: Infraestructura para la generación de energía renovable | E30: Medio | F30: Medio | G30: Medio | H30: Bajo | I30: Medio | J30: Medio | K30: Bajo | L30: Bajo | M30: Bajo | N30: Medio | O30: Bajo | P30: Medio
C31: Energía | D31: Transporte y distribución | E31: Medio | F31: Medio | G31: Medio | H31: Bajo | I31: Medio | J31: Medio | K31: Bajo | L31: Bajo | M31: Bajo | N31: Medio | O31: Bajo | P31: Medio
C32: Territorio | D32: Galerías subterráneas/mineras | E32: Medio | F32: Medio | G32: Medio | H32: Medio | I32: Medio | J32: Medio | K32: Bajo | L32: Bajo | M32: Bajo | N32: Medio | O32: Bajo | P32: Medio
C33: Territorio | D33: Escollera de contención | E33: Medio | F33: Medio | G33: Medio | H33: Bajo | I33: Medio | J33: Medio | K33: Bajo | L33: Medio | M33: Medio | N33: Medio | O33: Bajo | P33: Medio
C34: Soluciones Basadas en la Naturaleza | D34: Adaptación cambio climático | E34: Bajo | F34: Bajo | G34: Bajo | H34: Bajo | I34: Bajo | J34: Bajo | K34: Bajo | L34: Bajo | M34: Bajo | N34: Bajo | O34: Bajo | P34: Bajo
C35: Soluciones Basadas en la Naturaleza | D35: Adaptación de terrenos/descontaminación | E35: Medio | F35: Medio | G35: Medio | H35: Medio | I35: Medio | J35: Medio | K35: Bajo | L35: Medio | M35: Medio | N35: Medio | O35: Bajo | P35: Medio
C36: Infraestructura Verde | D36: Infraestructura verde | E36: Medio | F36: Medio | G36: Medio | H36: Medio | I36: Medio | J36: Medio | K36: Bajo | L36: Medio | M36: Medio | N36: Medio | O36: Medio | P36: Medio
B40: 2. TABLA DE EXPOSICIÓN
C42: ACTUAL | Q42: FUTURO
C44: Municipio | D44: Aumento del Nivel del Mar | E44: Inundaciones Costeras | F44: Eventos Extremos Costeros | G44: Cambio Régimen Lluvias | H44: Inundación Fluvio-Marinas | I44: Inundación Torrencial | J44: Cambios Régimen Nival | K44: Aumento Temp. | L44: Olas de Calor | M44: Movimientos de Ladera | N44: Cambios Rég. Vientos | O44: Eventos Meteo. Extremos | Q44: Municipio | R44: Aumento del Nivel del Mar | S44: Inundaciones Costeras | T44: Eventos Extremos Costeros | U44: Cambio Régimen Lluvias | V44: Inundación Fluvio-Marinas | W44: Inundación Torrencial | X44: Cambios Régimen Nival | Y44: Aumento Temp. | Z44: Olas de Calor | AA44: Movimientos de Ladera | AB44: Cambios Rég. Vientos | AC44: Eventos Meteo. Extremos
C45: Allande | D45: No aplica | E45: No aplica | F45: No aplica | G45: Medio | H45: Bajo | I45: Bajo | J45: Bajo | K45: Medio | L45: Alto | M45: Alto | N45: Bajo | O45: Bajo | Q45: Allande | R45: No aplica | S45: No aplica | T45: No aplica | U45: Medio | V45: Bajo | W45: Bajo | X45: Bajo | Y45: Alto | Z45: Alto | AA45: Alto | AB45: Medio | AC45: Medio
C46: Aller | D46: No aplica | E46: No aplica | F46: No aplica | G46: Medio | H46: Bajo | I46: Bajo | J46: Bajo | K46: Alto | L46: Alto | M46: Alto | N46: Bajo | O46: Bajo | Q46: Aller | R46: No aplica | S46: No aplica | T46: No aplica | U46: Medio | V46: Bajo | W46: Bajo | X46: Bajo | Y46: Alto | Z46: Alto | AA46: Alto | AB46: Medio | AC46: Medio
C47: Amieva | D47: No aplica | E47: No aplica | F47: No aplica | G47: Medio | H47: Bajo | I47: Bajo | J47: Bajo | K47: Alto | L47: Alto | M47: Alto | N47: Bajo | O47: Bajo | Q47: Amieva | R47: No aplica | S47: No aplica | T47: No aplica | U47: Medio | V47: Bajo | W47: Bajo | X47: Alto | Y47: Alto | Z47: Alto | AA47: Alto | AB47: Medio | AC47: Medio
C48: Avilés | D48: Bajo | E48: Alto | F48: Bajo | G48: Bajo | H48: Alto | I48: Alto | J48: Bajo | K48: Bajo | L48: Medio | M48: Bajo | N48: Bajo | O48: Bajo | Q48: Avilés | R48: Alto | S48: Alto | T48: Alto | U48: Bajo | V48: Alto | W48: Alto | X48: Bajo | Y48: Medio | Z48: Alto | AA48: Bajo | AB48: Alto | AC48: Alto
C49: Belmonte de Miranda | D49: No aplica | E49: No aplica | F49: No aplica | G49: Bajo | H49: Bajo | I49: Bajo | J49: Bajo | K49: Medio | L49: Alto | M49: Alto | N49: Bajo | O49: Bajo | Q49: Belmonte de Miranda | R49: No aplica | S49: No aplica | T49: No aplica | U49: Bajo | V49: Bajo | W49: Bajo | X49: Bajo | Y49: Alto | Z49: Alto | AA49: Alto | AB49: Medio | AC49: Medio
C50: Bimenes | D50: No aplica | E50: No aplica | F50: No aplica | G50: Medio | H50: Bajo | I50: Bajo | J50: Bajo | K50: Medio | L50: Bajo | M50: Medio | N50: Bajo | O50: Bajo | Q50: Bimenes | R50: No aplica | S50: No aplica | T50: No aplica | U50: Medio | V50: Bajo | W50: Bajo | X50: Bajo | Y50: Alto | Z50: Alto | AA50: Medio | AB50: Medio | AC50: Medio
C51: Boal | D51: No aplica | E51: No aplica | F51: No aplica | G51: Medio | H51: Bajo | I51: Bajo | J51: Bajo | K51: Medio | L51: Medio | M51: Medio | N51: Bajo | O51: Bajo | Q51: Boal | R51: No aplica | S51: No aplica | T51: No aplica | U51: Medio | V51: Bajo | W51: Bajo | X51: Bajo | Y51: Alto | Z51: Alto | AA51: Medio | AB51: Medio | AC51: Medio
C52: Cabrales | D52: No aplica | E52: No aplica | F52: No aplica | G52: Medio | H52: Bajo | I52: Bajo | J52: Bajo | K52: Medio | L52: Medio | M52: Alto | N52: Bajo | O52: Bajo | Q52: Cabrales | R52: No aplica | S52: No aplica | T52: No aplica | U52: Medio | V52: Bajo | W52: Bajo | X52: Alto | Y52: Medio | Z52: Alto | AA52: Alto | AB52: Medio | AC52: Medio
C53: Cabranes | D53: No aplica | E53: No aplica | F53: No aplica | G53: Medio | H53: Bajo | I53: Bajo | J53: Bajo | K53: Medio | L53: Bajo | M53: Medio | N53: Bajo | O53: Bajo | Q53: Cabranes | R53: No aplica | S53: No aplica | T53: No aplica | U53: Medio | V53: Bajo | W53: Bajo | X53: Bajo | Y53: Alto | Z53: Alto | AA53: Medio | AB53: Medio | AC53: Medio
C54: Candamo | D54: No aplica | E54: No aplica | F54: No aplica | G54: Bajo | H54: Alto | I54: Alto | J54: Bajo | K54: Bajo | L54: Medio | M54: Medio | N54: Bajo | O54: Bajo | Q54: Candamo | R54: No aplica | S54: No aplica | T54: No aplica | U54: Bajo | V54: Alto | W54: Alto | X54: Bajo | Y54: Medio | Z54: Alto | AA54: Medio | AB54: Medio | AC54: Medio
C55: Cangas del Narcea | D55: No aplica | E55: No aplica | F55: No aplica | G55: Medio | H55: Bajo | I55: Bajo | J55: Bajo | K55: Alto | L55: Alto | M55: Alto | N55: Bajo | O55: Bajo | Q55: Cangas del Narcea | R55: No aplica | S55: No aplica | T55: No aplica | U55: Medio | V55: Bajo | W55: Bajo | X55: Alto | Y55: Alto | Z55: Alto | AA55: Alto | AB55: Medio | AC55: Medio
C56: Cangas de Onís | D56: No aplica | E56: No aplica | F56: No aplica | G56: Medio | H56: Medio | I56: Medio | J56: Bajo | K56: Medio | L56: Alto | M56: Alto | N56: Bajo | O56: Bajo | Q56: Cangas de Onís | R56: No aplica | S56: No aplica | T56: No aplica | U56: Medio | V56: Medio | W56: Medio | X56: Alto | Y56: Alto | Z56: Alto | AA56: Alto | AB56: Medio | AC56: Medio
C57: Caravia | D57: Bajo | E57: Bajo | F57: Bajo | G57: Medio | H57: Bajo | I57: Bajo | J57: Bajo | K57: Bajo | L57: Bajo | M57: Medio | N57: Bajo | O57: Bajo | Q57: Caravia | R57: Alto | S57: Bajo | T57: Alto | U57: Medio | V57: Bajo | W57: Bajo | X57: Bajo | Y57: Medio | Z57: Alto | AA57: Medio | AB57: Alto | AC57: Alto
C58: Carreño | D58: Bajo | E58: Bajo | F58: Bajo | G58: Bajo | H58: Medio | I58: Medio | J58: Bajo | K58: Bajo | L58: Medio | M58: Bajo | N58: Bajo | O58: Bajo | Q58: Carreño | R58: Alto | S58: Bajo | T58: Alto | U58: Bajo | V58: Medio | W58: Medio | X58: Bajo | Y58: Medio | Z58: Alto | AA58: Bajo | AB58: Alto | AC58: Alto
C59: Caso | D59: No aplica | E59: No aplica | F59: No aplica | G59: Medio | H59: Bajo | I59: Bajo | J59: Bajo | K59: Alto | L59: Alto | M59: Alto | N59: Bajo | O59: Bajo | Q59: Caso | R59: No aplica | S59: No aplica | T59: No aplica | U59: Medio | V59: Bajo | W59: Bajo | X59: Alto | Y59: Alto | Z59: Alto | AA59: Alto | AB59: Medio | AC59: Medio
C60: Castrillón | D60: Bajo | E60: Bajo | F60: Bajo | G60: Bajo | H60: Alto | I60: Alto | J60: Bajo | K60: Bajo | L60: Medio | M60: Bajo | N60: Bajo | O60: Bajo | Q60: Castrillón | R60: Alto | S60: Bajo | T60: Alto | U60: Bajo | V60: Alto | W60: Alto | X60: Bajo | Y60: Medio | Z60: Alto | AA60: Bajo | AB60: Alto | AC60: Alto
C61: Castropol | D61: Bajo | E61: Bajo | F61: Bajo | G61: Bajo | H61: Bajo | I61: Bajo | J61: Bajo | K61: Bajo | L61: Medio | M61: Medio | N61: Bajo | O61: Bajo | Q61: Castropol | R61: Alto | S61: Bajo | T61: Alto | U61: Bajo | V61: Bajo | W61: Bajo | X61: Bajo | Y61: Medio | Z61: Alto | AA61: Medio | AB61: Alto | AC61: Alto
C62: Coaña | D62: Bajo | E62: Bajo | F62: Bajo | G62: Bajo | H62: Alto | I62: Alto | J62: Bajo | K62: Bajo | L62: Medio | M62: Medio | N62: Bajo | O62: Bajo | Q62: Coaña | R62: Alto | S62: Bajo | T62: Alto | U62: Bajo | V62: Alto | W62: Alto | X62: Bajo | Y62: Medio | Z62: Alto | AA62: Medio | AB62: Alto | AC62: Alto
C63: Colunga | D63: Bajo | E63: Bajo | F63: Bajo | G63: Medio | H63: Bajo | I63: Bajo | J63: Bajo | K63: Bajo | L63: Medio | M63: Medio | N63: Bajo | O63: Bajo | Q63: Colunga | R63: Alto | S63: Bajo | T63: Alto | U63: Medio | V63: Bajo | W63: Bajo | X63: Bajo | Y63: Medio | Z63: Alto | AA63: Medio | AB63: Alto | AC63: Alto
C64: Corvera de Asturias | D64: No aplica | E64: No aplica | F64: No aplica | G64: Bajo | H64: Alto | I64: Alto | J64: Bajo | K64: Bajo | L64: Medio | M64: Bajo | N64: Bajo | O64: Bajo | Q64: Corvera de Asturias | R64: No aplica | S64: No aplica | T64: No aplica | U64: Bajo | V64: Alto | W64: Alto | X64: Bajo | Y64: Medio | Z64: Alto | AA64: Bajo | AB64: Medio | AC64: Medio
C65: Cudillero | D65: Bajo | E65: Bajo | F65: Bajo | G65: Bajo | H65: Bajo | I65: Bajo | J65: Bajo | K65: Bajo | L65: Medio | M65: Medio | N65: Bajo | O65: Bajo | Q65: Cudillero | R65: Alto | S65: Bajo | T65: Alto | U65: Bajo | V65: Bajo | W65: Bajo | X65: Bajo | Y65: Medio | Z65: Alto | AA65: Medio | AB65: Alto | AC65: Alto
C66: Degaña | D66: No aplica | E66: No aplica | F66: No aplica | G66: Medio | H66: Bajo | I66: Bajo | J66: Bajo | K66: Medio | L66: Alto | M66: Alto | N66: Bajo | O66: Bajo | Q66: Degaña | R66: No aplica | S66: v | T66: No aplica | U66: Medio | V66: Bajo | W66: Bajo | X66: Alto | Y66: Alto | Z66: Alto | AA66: Alto | AB66: Medio | AC66: Medio
C67: El Franco | D67: Bajo | E67: Bajo | F67: Bajo | G67: Bajo | H67: Bajo | I67: Bajo | J67: Bajo | K67: Bajo | L67: Medio | M67: Medio | N67: Bajo | O67: Bajo | Q67: El Franco | R67: Alto | S67: Bajo | T67: Alto | U67: Bajo | V67: Bajo | W67: Bajo | X67: Bajo | Y67: Medio | Z67: Alto | AA67: Medio | AB67: Alto | AC67: Alto
C68: Gijón | D68: Bajo | E68: Bajo | F68: Bajo | G68: Bajo | H68: Alto | I68: Alto | J68: Bajo | K68: Bajo | L68: Medio | M68: Medio | N68: Bajo | O68: Bajo | Q68: Gijón | R68: Alto | S68: Bajo | T68: Alto | U68: Bajo | V68: Alto | W68: Alto | X68: Bajo | Y68: Medio | Z68: Alto | AA68: Medio | AB68: Alto | AC68: Alto
C69: Gozón | D69: Bajo | E69: Bajo | F69: Bajo | G69: Bajo | H69: Bajo | I69: Bajo | J69: Bajo | K69: Bajo | L69: Medio | M69: Bajo | N69: Bajo | O69: Bajo | Q69: Gozón | R69: Alto | S69: Bajo | T69: Alto | U69: Bajo | V69: Bajo | W69: Bajo | X69: Bajo | Y69: Medio | Z69: Alto | AA69: Bajo | AB69: Alto | AC69: Alto
C70: Grado | D70: No aplica | E70: No aplica | F70: No aplica | G70: Bajo | H70: Bajo | I70: Bajo | J70: Bajo | K70: Medio | L70: Alto | M70: Medio | N70: Bajo | O70: Bajo | Q70: Grado | R70: No aplica | S70: No aplica | T70: No aplica | U70: Bajo | V70: Bajo | W70: Bajo | X70: Bajo | Y70: Alto | Z70: Alto | AA70: Medio | AB70: Medio | AC70: Medio
C71: Grandas de Salime | D71: No aplica | E71: No aplica | F71: No aplica | G71: Bajo | H71: Bajo | I71: Bajo | J71: Bajo | K71: Medio | L71: Alto | M71: Medio | N71: Bajo | O71: Bajo | Q71: Grandas de Salime | R71: No aplica | S71: No aplica | T71: No aplica | U71: Bajo | V71: Bajo | W71: Bajo | X71: Bajo | Y71: Alto | Z71: Alto | AA71: Medio | AB71: Medio | AC71: Medio
C72: Ibias | D72: No aplica | E72: No aplica | F72: No aplica | G72: Medio | H72: Bajo | I72: Bajo | J72: Bajo | K72: Alto | L72: Alto | M72: Alto | N72: Bajo | O72: Bajo | Q72: Ibias | R72: No aplica | S72: No aplica | T72: No aplica | U72: Medio | V72: Bajo | W72: Bajo | X72: Alto | Y72: Alto | Z72: Alto | AA72: Alto | AB72: Medio | AC72: Medio
C73: Illano | D73: No aplica | E73: No aplica | F73: No aplica | G73: Medio | H73: Bajo | I73: Bajo | J73: Bajo | K73: Medio | L73: Medio | M73: Alto | N73: Bajo | O73: Bajo | Q73: Illano | R73: No aplica | S73: No aplica | T73: No aplica | U73: Medio | V73: Bajo | W73: Bajo | X73: Bajo | Y73: Alto | Z73: Alto | AA73: Alto | AB73: Medio | AC73: Medio
C74: Illas | D74: No aplica | E74: No aplica | F74: No aplica | G74: Bajo | H74: Bajo | I74: Bajo | J74: Bajo | K74: Bajo | L74: Medio | M74: Medio | N74: Bajo | O74: Bajo | Q74: Illas | R74: No aplica | S74: No aplica | T74: No aplica | U74: Bajo | V74: Bajo | W74: Bajo | X74: Bajo | Y74: Medio | Z74: Alto | AA74: Medio | AB74: Medio | AC74: Medio
C75: Langreo | D75: No aplica | E75: No aplica | F75: No aplica | G75: Medio | H75: Alto | I75: Alto | J75: Bajo | K75: Medio | L75: Medio | M75: Medio | N75: Bajo | O75: Bajo | Q75: Langreo | R75: No aplica | S75: No aplica | T75: No aplica | U75: Medio | V75: Alto | W75: Alto | X75: Bajo | Y75: Alto | Z75: Alto | AA75: Medio | AB75: Medio | AC75: Medio
C76: Laviana | D76: No aplica | E76: No aplica | F76: No aplica | G76: Medio | H76: Bajo | I76: Bajo | J76: Bajo | K76: Medio | L76: Alto | M76: Medio | N76: Bajo | O76: Bajo | Q76: Laviana | R76: No aplica | S76: No aplica | T76: No aplica | U76: Medio | V76: Bajo | W76: Bajo | X76: Bajo | Y76: Alto | Z76: Alto | AA76: Medio | AB76: Medio | AC76: Medio
C77: Lena | D77: No aplica | E77: No aplica | F77: No aplica | G77: Bajo | H77: Bajo | I77: Bajo | J77: Bajo | K77: Alto | L77: Alto | M77: Alto | N77: Bajo | O77: Bajo | Q77: Lena | R77: No aplica | S77: No aplica | T77: No aplica | U77: Bajo | V77: Bajo | W77: Bajo | X77: Alto | Y77: Alto | Z77: Alto | AA77: Alto | AB77: Medio | AC77: Medio
C78: Llanera | D78: No aplica | E78: No aplica | F78: No aplica | G78: Bajo | H78: Medio | I78: Medio | J78: Bajo | K78: Bajo | L78: Medio | M78: Alto | N78: Bajo | O78: Bajo | Q78: Llanera | R78: No aplica | S78: No aplica | T78: No aplica | U78: Bajo | V78: Medio | W78: Medio | X78: Bajo | Y78: Medio | Z78: Alto | AA78: Alto | AB78: Medio | AC78: Medio
C79: Llanes | D79: Bajo | E79: Bajo | F79: Bajo | G79: Medio | H79: Bajo | I79: Bajo | J79: Bajo | K79: Bajo | L79: Medio | M79: Bajo | N79: Bajo | O79: Bajo | Q79: Llanes | R79: Alto | S79: Bajo | T79: Alto | U79: Medio | V79: Bajo | W79: Bajo | X79: Bajo | Y79: Medio | Z79: Alto | AA79: Bajo | AB79: Alto | AC79: Alto
C80: Mieres | D80: No aplica | E80: No aplica | F80: No aplica | G80: Medio | H80: Alto | I80: Alto | J80: Bajo | K80: Medio | L80: Medio | M80: Medio | N80: Bajo | O80: Bajo | Q80: Mieres | R80: No aplica | S80: No aplica | T80: No aplica | U80: Medio | V80: Alto | W80: Alto | X80: Bajo | Y80: Alto | Z80: Alto | AA80: Medio | AB80: Medio | AC80: Medio
C81: Morcín | D81: No aplica | E81: No aplica | F81: No aplica | G81: Bajo | H81: Medio | I81: Medio | J81: Bajo | K81: Medio | L81: Medio | M81: Alto | N81: Bajo | O81: Bajo | Q81: Morcín | R81: No aplica | S81: No aplica | T81: No aplica | U81: Bajo | V81: Medio | W81: Medio | X81: Bajo | Y81: Alto | Z81: Alto | AA81: Alto | AB81: Medio | AC81: Medio
C82: Muros de Nalón | D82: Bajo | E82: Bajo | F82: Bajo | G82: Bajo | H82: Alto | I82: Alto | J82: Bajo | K82: Bajo | L82: Medio | M82: Alto | N82: Bajo | O82: Bajo | Q82: Muros de Nalón | R82: Alto | S82: Bajo | T82: Alto | U82: Bajo | V82: Alto | W82: Alto | X82: Bajo | Y82: Medio | Z82: Alto | AA82: Alto | AB82: Alto | AC82: Alto
C83: Nava | D83: No aplica | E83: No aplica | F83: No aplica | G83: Medio | H83: Bajo | I83: Bajo | J83: Bajo | K83: Medio | L83: Bajo | M83: Medio | N83: Bajo | O83: Bajo | Q83: Nava | R83: No aplica | S83: No aplica | T83: No aplica | U83: Medio | V83: Bajo | W83: Bajo | X83: Bajo | Y83: Alto | Z83: Alto | AA83: Medio | AB83: Medio | AC83: Medio
C84: Navia | D84: Bajo | E84: Bajo | F84: Bajo | G84: Bajo | H84: Alto | I84: Alto | J84: Bajo | K84: Bajo | L84: Medio | M84: Medio | N84: Bajo | O84: Bajo | Q84: Navia | R84: Alto | S84: Bajo | T84: Alto | U84: Bajo | V84: Alto | W84: Alto | X84: Bajo | Y84: Medio | Z84: Alto | AA84: Medio | AB84: Alto | AC84: Alto
C85: Negueira de Muñiz | D85: No aplica | E85: No aplica | F85: No aplica | G85: Bajo | H85: Alto | I85: Alto | J85: Bajo | K85: Medio | L85: Alto | M85: Medio | N85: Bajo | O85: Bajo | Q85: Negueira de Muñiz | R85: No aplica | S85: No aplica | T85: No aplica | U85: Bajo | V85: Alto | W85: Alto | X85: Bajo | Y85: Alto | Z85: Alto | AA85: Medio | AB85: Medio | AC85: Medio
C86: Noreña | D86: No aplica | E86: No aplica | F86: No aplica | G86: Bajo | H86: Bajo | I86: Bajo | J86: Bajo | K86: Medio | L86: Medio | M86: Alto | N86: Bajo | O86: Bajo | Q86: Noreña | R86: No aplica | S86: No aplica | T86: No aplica | U86: Bajo | V86: Bajo | W86: Bajo | X86: Bajo | Y86: Alto | Z86: Alto | AA86: Alto | AB86: Medio | AC86: Medio
C87: Onís | D87: No aplica | E87: No aplica | F87: No aplica | G87: Medio | H87: Alto | I87: Alto | J87: Bajo | K87: Bajo | L87: Medio | M87: Bajo | N87: Bajo | O87: Bajo | Q87: Onís | R87: No aplica | S87: No aplica | T87: No aplica | U87: Medio | V87: Alto | W87: Alto | X87: Alto | Y87: Medio | Z87: Alto | AA87: Bajo | AB87: Medio | AC87: Medio
C88: Oviedo | D88: No aplica | E88: No aplica | F88: No aplica | G88: Bajo | H88: Alto | I88: Alto | J88: Bajo | K88: Medio | L88: Medio | M88: Alto | N88: Bajo | O88: Bajo | Q88: Oviedo | R88: No aplica | S88: No aplica | T88: No aplica | U88: Bajo | V88: Alto | W88: Alto | X88: Bajo | Y88: Alto | Z88: Alto | AA88: Alto | AB88: Medio | AC88: Medio
C89: Parres | D89: No aplica | E89: No aplica | F89: No aplica | G89: Medio | H89: Bajo | I89: Bajo | J89: Bajo | K89: Medio | L89: Bajo | M89: Medio | N89: Bajo | O89: Bajo | Q89: Parres | R89: No aplica | S89: No aplica | T89: No aplica | U89: Medio | V89: Bajo | W89: Bajo | X89: Bajo | Y89: Alto | Z89: Alto | AA89: Medio | AB89: Medio | AC89: Medio
C90: Peñamellera Alta | D90: No aplica | E90: No aplica | F90: No aplica | G90: Medio | H90: Alto | I90: Alto | J90: Bajo | K90: Bajo | L90: Bajo | M90: Medio | N90: Bajo | O90: Bajo | Q90: Peñamellera Alta | R90: No aplica | S90: No aplica | T90: No aplica | U90: Medio | V90: Alto | W90: Alto | X90: Alto | Y90: Medio | Z90: Alto | AA90: Medio | AB90: Medio | AC90: Medio
C91: Peñamellera Baja | D91: No aplica | E91: No aplica | F91: No aplica | G91: Medio | H91: Bajo | I91: Bajo | J91: Bajo | K91: Medio | L91: Medio | M91: Alto | N91: Bajo | O91: Bajo | Q91: Peñamellera Baja | R91: No aplica | S91: No aplica | T91: No aplica | U91: Medio | V91: Bajo | W91: Bajo | X91: Alto | Y91: Alto | Z91: Alto | AA91: Alto | AB91: Medio | AC91: Medio
C92: Pesoz | D92: No aplica | E92: No aplica | F92: No aplica | G92: Bajo | H92: Bajo | I92: Bajo | J92: Bajo | K92: Medio | L92: Alto | M92: Alto | N92: Bajo | O92: Bajo | Q92: Pesoz | R92: No aplica | S92: No aplica | T92: No aplica | U92: Bajo | V92: Bajo | W92: Bajo | X92: Bajo | Y92: Alto | Z92: Alto | AA92: Alto | AB92: Medio | AC92: Medio
C93: Piloña | D93: No aplica | E93: No aplica | F93: No aplica | G93: Medio | H93: Bajo | I93: Bajo | J93: Bajo | K93: Medio | L93: Bajo | M93: Alto | N93: Bajo | O93: Bajo | Q93: Piloña | R93: No aplica | S93: No aplica | T93: No aplica | U93: Medio | V93: Bajo | W93: Bajo | X93: Bajo | Y93: Alto | Z93: Medio | AA93: Alto | AB93: Medio | AC93: Medio
C94: Ponga | D94: No aplica | E94: No aplica | F94: No aplica | G94: Medio | H94: Alto | I94: Alto | J94: Bajo | K94: Alto | L94: Alto | M94: Alto | N94: Bajo | O94: Bajo | Q94: Ponga | R94: No aplica | S94: No aplica | T94: No aplica | U94: Medio | V94: Alto | W94: Alto | X94: Alto | Y94: Alto | Z94: Alto | AA94: Alto | AB94: Medio | AC94: Medio
C95: Pravia | D95: No aplica | E95: No aplica | F95: No aplica | G95: Bajo | H95: Bajo | I95: Bajo | J95: Bajo | K95: Bajo | L95: Medio | M95: Alto | N95: Bajo | O95: Bajo | Q95: Pravia | R95: No aplica | S95: No aplica | T95: No aplica | U95: Bajo | V95: Bajo | W95: Bajo | X95: Bajo | Y95: Medio | Z95: Alto | AA95: Alto | AB95: Medio | AC95: Medio
C96: Proaza | D96: No aplica | E96: No aplica | F96: No aplica | G96: Bajo | H96: Bajo | I96: Bajo | J96: Bajo | K96: Bajo | L96: Alto | M96: Medio | N96: Bajo | O96: Bajo | Q96: Proaza | R96: No aplica | S96: No aplica | T96: No aplica | U96: Bajo | V96: Bajo | W96: Bajo | X96: Bajo | Y96: Medio | Z96: Alto | AA96: Medio | AB96: Medio | AC96: Medio
C97: Quirós | D97: No aplica | E97: No aplica | F97: No aplica | G97: Bajo | H97: Bajo | I97: Bajo | J97: Bajo | K97: Medio | L97: Alto | M97: Alto | N97: Bajo | O97: Bajo | Q97: Quirós | R97: No aplica | S97: No aplica | T97: No aplica | U97: Bajo | V97: Bajo | W97: Bajo | X97: Alto | Y97: Medio | Z97: Alto | AA97: Alto | AB97: Medio | AC97: Medio
C98: Las Regueras | D98: No aplica | E98: No aplica | F98: No aplica | G98: Bajo | H98: Alto | I98: Alto | J98: Bajo | K98: Medio | L98: Medio | M98: Alto | N98: Bajo | O98: Bajo | Q98: Las Regueras | R98: No aplica | S98: No aplica | T98: No aplica | U98: Bajo | V98: Alto | W98: Alto | X98: Bajo | Y98: Alto | Z98: Alto | AA98: Alto | AB98: Medio | AC98: Medio
C99: Ribadedeva | D99: Bajo | E99: Medio | F99: Bajo | G99: Bajo | H99: Alto | I99: Alto | J99: Bajo | K99: Bajo | L99: Medio | M99: Medio | N99: Bajo | O99: Bajo | Q99: Ribadedeva | R99: Alto | S99: Medio | T99: Alto | U99: Bajo | V99: Alto | W99: Alto | X99: Bajo | Y99: Medio | Z99: Alto | AA99: Medio | AB99: Alto | AC99: Alto
C100: Ribadesella | D100: Bajo | E100: Medio | F100: Bajo | G100: Medio | H100: Alto | I100: Alto | J100: Bajo | K100: Bajo | L100: Medio | M100: Medio | N100: Bajo | O100: Bajo | Q100: Ribadesella | R100: Alto | S100: Bajo | T100: Alto | U100: Medio | V100: Alto | W100: Alto | X100: Bajo | Y100: Medio | Z100: Alto | AA100: Medio | AB100: Alto | AC100: Alto
C101: Ribera de Arriba | D101: No aplica | E101: No aplica | F101: No aplica | G101: Bajo | H101: Bajo | I101: Bajo | J101: Bajo | K101: Medio | L101: Bajo | M101: Medio | N101: Bajo | O101: Bajo | Q101: Ribera de Arriba | R101: No aplica | S101: No aplica | T101: No aplica | U101: Bajo | V101: Bajo | W101: Bajo | X101: Bajo | Y101: Alto | Z101: Alto | AA101: Medio | AB101: Medio | AC101: Medio
C102: Riosa | D102: No aplica | E102: No aplica | F102: No aplica | G102: Bajo | H102: Alto | I102: Alto | J102: Bajo | K102: Medio | L102: Alto | M102: Alto | N102: Bajo | O102: Bajo | Q102: Riosa | R102: No aplica | S102: No aplica | T102: No aplica | U102: Bajo | V102: Alto | W102: Alto | X102: Bajo | Y102: Alto | Z102: Alto | AA102: Alto | AB102: Medio | AC102: Medio
C103: Salas | D103: No aplica | E103: No aplica | F103: No aplica | G103: Medio | H103: Alto | I103: Alto | J103: Bajo | K103: Bajo | L103: Medio | M103: Medio | N103: Bajo | O103: Bajo | Q103: Salas | R103: No aplica | S103: No aplica | T103: No aplica | U103: Medio | V103: Alto | W103: Alto | X103: Bajo | Y103: Medio | Z103: Alto | AA103: Medio | AB103: Medio | AC103: Medio
C104: Santa Eulalia de Oscos | D104: No aplica | E104: No aplica | F104: No aplica | G104: Bajo | H104: Bajo | I104: Bajo | J104: Bajo | K104: Medio | L104: Alto | M104: Medio | N104: Bajo | O104: Bajo | Q104: Santa Eulalia de Oscos | R104: No aplica | S104: No aplica | T104: No aplica | U104: Bajo | V104: Bajo | W104: Bajo | X104: Bajo | Y104: Alto | Z104: Alto | AA104: Medio | AB104: Medio | AC104: Medio
C105: San Martín del Rey Aurelio | D105: No aplica | E105: No aplica | F105: No aplica | G105: Medio | H105: Bajo | I105: Bajo | J105: Bajo | K105: Medio | L105: Bajo | M105: Alto | N105: Bajo | O105: Bajo | Q105: San Martín del Rey Aurelio | R105: No aplica | S105: No aplica | T105: No aplica | U105: Medio | V105: Bajo | W105: Bajo | X105: Bajo | Y105: Alto | Z105: Alto | AA105: Alto | AB105: Medio | AC105: Medio
C106: San Martín de Oscos | D106: No aplica | E106: No aplica | F106: No aplica | G106: Bajo | H106: Bajo | I106: Bajo | J106: Bajo | K106: Medio | L106: Alto | M106: Medio | N106: Bajo | O106: Bajo | Q106: San Martín de Oscos | R106: No aplica | S106: No aplica | T106: No aplica | U106: Bajo | V106: Bajo | W106: Bajo | X106: Bajo | Y106: Alto | Z106: Alto | AA106: Medio | AB106: Medio | AC106: Medio
C107: San Tirso de Abres | D107: No aplica | E107: No aplica | F107: No aplica | G107: Bajo | H107: Bajo | I107: Bajo | J107: Bajo | K107: Medio | L107: Medio | M107: Medio | N107: Bajo | O107: Bajo | Q107: San Tirso de Abres | R107: No aplica | S107: No aplica | T107: No aplica | U107: Bajo | V107: Bajo | W107: Bajo | X107: Bajo | Y107: Alto | Z107: Alto | AA107: Medio | AB107: Medio | AC107: Medio
C108: Santo Adriano | D108: No aplica | E108: No aplica | F108: No aplica | G108: Bajo | H108: Medio | I108: Medio | J108: Bajo | K108: Medio | L108: Medio | M108: Alto | N108: Bajo | O108: Bajo | Q108: Santo Adriano | R108: No aplica | S108: No aplica | T108: No aplica | U108: Bajo | V108: Medio | W108: Medio | X108: Bajo | Y108: Alto | Z108: Alto | AA108: Alto | AB108: Medio | AC108: Medio
C109: Sariego | D109: No aplica | E109: No aplica | F109: No aplica | G109: Medio | H109: Alto | I109: Alto | J109: Bajo | K109: Medio | L109: Bajo | M109: Medio | N109: Bajo | O109: Bajo | Q109: Sariego | R109: No aplica | S109: No aplica | T109: No aplica | U109: Medio | V109: Alto | W109: Alto | X109: Bajo | Y109: Alto | Z109: Alto | AA109: Medio | AB109: Medio | AC109: Medio
C110: Siero | D110: No aplica | E110: No aplica | F110: No aplica | G110: Medio | H110: Bajo | I110: Bajo | J110: Bajo | K110: Medio | L110: Medio | M110: Bajo | N110: Bajo | O110: Bajo | Q110: Siero | R110: No aplica | S110: No aplica | T110: No aplica | U110: Medio | V110: Bajo | W110: Bajo | X110: Bajo | Y110: Alto | Z110: Alto | AA110: Bajo | AB110: Medio | AC110: Medio
C111: Sobrescobio | D111: No aplica | E111: No aplica | F111: No aplica | G111: Medio | H111: Bajo | I111: Bajo | J111: Bajo | K111: Alto | L111: Alto | M111: Alto | N111: Bajo | O111: Bajo | Q111: Sobrescobio | R111: No aplica | S111: No aplica | T111: No aplica | U111: Medio | V111: Bajo | W111: Bajo | X111: Alto | Y111: Alto | Z111: Alto | AA111: Alto | AB111: Medio | AC111: Medio
C112: Somiedo | D112: No aplica | E112: No aplica | F112: No aplica | G112: Bajo | H112: Alto | I112: Alto | J112: Bajo | K112: Medio | L112: Alto | M112: Alto | N112: Bajo | O112: Bajo | Q112: Somiedo | R112: No aplica | S112: No aplica | T112: No aplica | U112: Bajo | V112: Alto | W112: Alto | X112: Alto | Y112: Medio | Z112: Alto | AA112: Alto | AB112: Medio | AC112: Medio
C113: Soto del Barco | D113: Bajo | E113: Bajo | F113: Bajo | G113: Bajo | H113: Bajo | I113: Bajo | J113: Bajo | K113: Bajo | L113: Medio | M113: Medio | N113: Bajo | O113: Bajo | Q113: Soto del Barco | R113: Alto | S113: Bajo | T113: Alto | U113: Bajo | V113: Bajo | W113: Bajo | X113: Bajo | Y113: Medio | Z113: Alto | AA113: Medio | AB113: Alto | AC113: Alto
C114: Tapia de Casariego | D114: Bajo | E114: Bajo | F114: Bajo | G114: Bajo | H114: Bajo | I114: Bajo | J114: Bajo | K114: Bajo | L114: Medio | M114: Bajo | N114: Bajo | O114: Bajo | Q114: Tapia de Casariego | R114: Alto | S114: Bajo | T114: Alto | U114: Bajo | V114: Bajo | W114: Bajo | X114: Bajo | Y114: Medio | Z114: Alto | AA114: Bajo | AB114: Alto | AC114: Alto
C115: Taramundi | D115: No aplica | E115: No aplica | F115: No aplica | G115: Bajo | H115: Bajo | I115: Bajo | J115: Bajo | K115: Medio | L115: Medio | M115: Alto | N115: Bajo | O115: Bajo | Q115: Taramundi | R115: No aplica | S115: No aplica | T115: No aplica | U115: Bajo | V115: Bajo | W115: Bajo | X115: Bajo | Y115: Alto | Z115: Alto | AA115: Alto | AB115: Medio | AC115: Medio
C116: Teverga | D116: No aplica | E116: No aplica | F116: No aplica | G116: Bajo | H116: Bajo | I116: Bajo | J116: Bajo | K116: Medio | L116: Alto | M116: Alto | N116: Bajo | O116: Bajo | Q116: Teverga | R116: No aplica | S116: No aplica | T116: No aplica | U116: Bajo | V116: Bajo | W116: Bajo | X116: Alto | Y116: Medio | Z116: Alto | AA116: Alto | AB116: Medio | AC116: Medio
C117: Tineo | D117: No aplica | E117: No aplica | F117: No aplica | G117: Medio | H117: Alto | I117: Alto | J117: Bajo | K117: Medio | L117: Alto | M117: Medio | N117: Bajo | O117: Bajo | Q117: Tineo | R117: No aplica | S117: No aplica | T117: No aplica | U117: Medio | V117: Alto | W117: Alto | X117: Bajo | Y117: Alto | Z117: Alto | AA117: Medio | AB117: Medio | AC117: Medio
C118: Valdés | D118: Bajo | E118: Bajo | F118: Bajo | G118: Medio | H118: Bajo | I118: Bajo | J118: Bajo | K118: Bajo | L118: Medio | M118: Medio | N118: Bajo | O118: Bajo | Q118: Valdés | R118: Alto | S118: Bajo | T118: Alto | U118: Medio | V118: Bajo | W118: Bajo | X118: Bajo | Y118: Medio | Z118: Alto | AA118: Medio | AB118: Alto | AC118: Alto
C119: Vegadeo | D119: No aplica | E119: No aplica | F119: No aplica | G119: Bajo | H119: Bajo | I119: Bajo | J119: Bajo | K119: Bajo | L119: Medio | M119: Medio | N119: Bajo | O119: Bajo | Q119: Vegadeo | R119: No aplica | S119: No aplica | T119: No aplica | U119: Bajo | V119: Bajo | W119: Bajo | X119: Bajo | Y119: Medio | Z119: Alto | AA119: Medio | AB119: Medio | AC119: Medio
C120: Villanueva de Oscos | D120: No aplica | E120: No aplica | F120: No aplica | G120: Bajo | H120: Alto | I120: Alto | J120: Bajo | K120: Medio | L120: Medio | M120: Medio | N120: Bajo | O120: Bajo | Q120: Villanueva de Oscos | R120: No aplica | S120: No aplica | T120: No aplica | U120: Bajo | V120: Alto | W120: Alto | X120: Bajo | Y120: Alto | Z120: Alto | AA120: Medio | AB120: Medio | AC120: Medio
C121: Villaviciosa | D121: Bajo | E121: Bajo | F121: Bajo | G121: Medio | H121: Bajo | I121: Bajo | J121: Bajo | K121: Bajo | L121: Medio | M121: Medio | N121: Bajo | O121: Bajo | Q121: Villaviciosa | R121: Alto | S121: Bajo | T121: Alto | U121: Medio | V121: Bajo | W121: Bajo | X121: Bajo | Y121: Medio | Z121: Alto | AA121: Medio | AB121: Alto | AC121: Alto
C122: Villayón | D122: No aplica | E122: No aplica | F122: No aplica | G122: Medio | H122: Bajo | I122: Bajo | J122: Bajo | K122: Bajo | L122: Medio | M122: Alto | N122: Bajo | O122: Bajo | Q122: Villayón | R122: No aplica | S122: No aplica | T122: No aplica | U122: Medio | V122: Bajo | W122: Bajo | X122: Bajo | Y122: Medio | Z122: Alto | AA122: Alto | AB122: Medio | AC122: Medio
C123: Yernes y Tameza | D123: No aplica | E123: No aplica | F123: No aplica | G123: Bajo | H123: Bajo | I123: Bajo | J123: Bajo | K123: Medio | L123: Medio | M123: Alto | N123: Bajo | O123: Bajo | Q123: Yernes y Tameza | R123: No aplica | S123: No aplica | T123: No aplica | U123: Bajo | V123: Bajo | W123: Bajo | X123: Bajo | Y123: Alto | Z123: Alto | AA123: Alto | AB123: Medio | AC123: Medio
B127: 3. TABLAS DE EQUIVALENCIAS | F127: 4. TABLA DE VULNERABILIDAD
C129: Texto | D129: Valor | H129: EXPOSICIÓN
C130: Bajo | D130: 1 | H130: ALTO | I130: MEDIO | J130: BAJO
C131: Medio | D131: 2 | F131: SENSIBILIDAD (puntuación más alta) | G131: ALTO | H131: Alto | I131: Alto | J131: Medio
C132: Alto | D132: 3 | G132: MEDIO | H132: Alto | I132: Medio | J132: Bajo
G133: BAJO | H133: Medio | I133: Bajo | J133: Bajo
B136: 5. TABLAS DE PROBABILIDAD
G137: Aumento del nivel medio del mar | J137: Movimiento de ladera | M137: Eventos meteorológicos extremos (tormentas y borrascas)
C138: Texto | D138: Valor | E138: % ref. | G138: Municipio | H138: Probabilidad | J138: Municipio | K138: Probabilidad | M138: Municipio | N138: Probabilidad
C139: No aplica | D139: 0 | E139: - | G139: Allande | H139: No aplica | J139: Allande | K139: Raro | M139: Allande | N139: Raro
C140: Raro | D140: 1 | E140: 0.05 | G140: Aller | H140: No aplica | J140: Aller | K140: Raro | M140: Aller | N140: Raro
C141: Improbable | D141: 2 | E141: 0.2 | G141: Amieva | H141: No aplica | J141: Amieva | K141: Raro | M141: Amieva | N141: Raro
C142: Moderado | D142: 3 | E142: 0.5 | G142: Avilés | H142: Casi seguro | J142: Avilés | K142: Raro | M142: Avilés | N142: Raro
C143: Probable | D143: 4 | E143: 0.8 | G143: Belmonte de Miranda | H143: No aplica | J143: Belmonte de Miranda | K143: Raro | M143: Belmonte de Miranda | N143: Raro
C144: Casi seguro | D144: 5 | E144: 0.95 | G144: Bimenes | H144: No aplica | J144: Bimenes | K144: Raro | M144: Bimenes | N144: Raro
G145: Cabrales | H145: No aplica | J145: Cabrales | K145: Raro | M145: Cabrales | N145: Raro
G146: Cabranes | H146: No aplica | J146: Cabranes | K146: Raro | M146: Cabranes | N146: Raro
C147: Inundaciones | G147: Candamo | H147: No aplica | J147: Candamo | K147: Raro | M147: Candamo | N147: Raro
C148: Municipio | D148: Probabilidad | G148: Cangas del Narcea | H148: No aplica | J148: Cangas del Narcea | K148: Raro | M148: Cangas del Narcea | N148: Raro
C149: Allande | D149: Moderado | G149: Cangas de Onís | H149: No aplica | J149: Cangas de Onís | K149: Raro | M149: Cangas de Onís | N149: Raro
C150: Aller | D150: Probable | G150: Caravia | H150: Probable | J150: Caravia | K150: Raro | M150: Caravia | N150: Raro
C151: Amieva | D151: Improbable | G151: Carreño | H151: Probable | J151: Carreño | K151: Moderado | M151: Carreño | N151: Moderado
C152: Avilés | D152: Improbable | G152: Caso | H152: No aplica | J152: Caso | K152: Raro | M152: Caso | N152: Raro
C153: Belmonte de Miranda | D153: Probable | G153: Castrillón | H153: Probable | J153: Castrillón | K153: Raro | M153: Castrillón | N153: Raro
C154: Bimenes | D154: Improbable | G154: Castropol | H154: Probable | J154: Castropol | K154: Raro | M154: Castropol | N154: Raro
C155: Cabrales | D155: Improbable | G155: Coaña | H155: Probable | J155: Coaña | K155: Raro | M155: Coaña | N155: Raro
C156: Cabranes | D156: Raro | G156: Colunga | H156: Probable | J156: Colunga | K156: Raro | M156: Colunga | N156: Raro
C157: Candamo | D157: Moderado | G157: Corvera de Asturias | H157: No aplica | J157: Corvera de Asturias | K157: Raro | M157: Corvera de Asturias | N157: Raro
C158: Cangas del Narcea | D158: Casi seguro | G158: Cudillero | H158: Probable | J158: Cudillero | K158: Moderado | M158: Cudillero | N158: Moderado
C159: Cangas de Onís | D159: Probable | G159: Degaña | H159: No aplica | J159: Degaña | K159: Raro | M159: Degaña | N159: Raro
C160: Caravia | D160: Raro | G160: El Franco | H160: Probable | J160: El Franco | K160: Raro | M160: El Franco | N160: Raro
C161: Carreño | D161: Raro | G161: Gijón | H161: Probable | J161: Gijón | K161: Moderado | M161: Gijón | N161: Moderado
C162: Caso | D162: Improbable | G162: Gozón | H162: Probable | J162: Gozón | K162: Raro | M162: Gozón | N162: Raro
C163: Castrillón | D163: Moderado | G163: Grado | H163: No aplica | J163: Grado | K163: Raro | M163: Grado | N163: Raro
C164: Castropol | D164: Improbable | G164: Grandas de Salime | H164: No aplica | J164: Grandas de Salime | K164: Raro | M164: Grandas de Salime | N164: Raro
C165: Coaña | D165: Moderado | G165: Ibias | H165: No aplica | J165: Ibias | K165: Raro | M165: Ibias | N165: Raro
C166: Colunga | D166: Casi seguro | G166: Illano | H166: No aplica | J166: Illano | K166: Raro | M166: Illano | N166: Raro
C167: Corvera de Asturias | D167: Raro | G167: Illas | H167: No aplica | J167: Illas | K167: Raro | M167: Illas | N167: Raro
C168: Cudillero | D168: Probable | G168: Langreo | H168: No aplica | J168: Langreo | K168: Raro | M168: Langreo | N168: Raro
C169: Degaña | D169: Probable | G169: Laviana | H169: No aplica | J169: Laviana | K169: Raro | M169: Laviana | N169: Raro
C170: El Franco | D170: Moderado | G170: Lena | H170: No aplica | J170: Lena | K170: Raro | M170: Lena | N170: Raro
C171: Gijón | D171: Raro | G171: Llanera | H171: No aplica | J171: Llanera | K171: Raro | M171: Llanera | N171: Raro
C172: Gozón | D172: Raro | G172: Llanes | H172: Probable | J172: Llanes | K172: Moderado | M172: Llanes | N172: Moderado
C173: Grado | D173: Moderado | G173: Mieres | H173: No aplica | J173: Mieres | K173: Raro | M173: Mieres | N173: Raro
C174: Grandas de Salime | D174: Raro | G174: Morcín | H174: No aplica | J174: Morcín | K174: Raro | M174: Morcín | N174: Raro
C175: Ibias | D175: Probable | G175: Muros de Nalón | H175: Casi seguro | J175: Muros de Nalón | K175: Raro | M175: Muros de Nalón | N175: Raro
C176: Illano | D176: Raro | G176: Nava | H176: No aplica | J176: Nava | K176: Raro | M176: Nava | N176: Raro
C177: Illas | D177: Raro | G177: Navia | H177: Casi seguro | J177: Navia | K177: Raro | M177: Navia | N177: Raro
C178: Langreo | D178: Improbable | G178: Negueira de Muñiz | H178: No aplica | J178: Negueira de Muñiz | K178: Raro | M178: Negueira de Muñiz | N178: Raro
C179: Laviana | D179: Moderado | G179: Noreña | H179: No aplica | J179: Noreña | K179: Raro | M179: Noreña | N179: Raro
C180: Lena | D180: Moderado | G180: Onís | H180: No aplica | J180: Onís | K180: Raro | M180: Onís | N180: Raro
C181: Llanera | D181: Improbable | G181: Oviedo | H181: No aplica | J181: Oviedo | K181: Raro | M181: Oviedo | N181: Raro
C182: Llanes | D182: Probable | G182: Parres | H182: No aplica | J182: Parres | K182: Raro | M182: Parres | N182: Raro
C183: Mieres | D183: Moderado | G183: Peñamellera Alta | H183: No aplica | J183: Peñamellera Alta | K183: Raro | M183: Peñamellera Alta | N183: Raro
C184: Morcín | D184: Improbable | G184: Peñamellera Baja | H184: No aplica | J184: Peñamellera Baja | K184: Raro | M184: Peñamellera Baja | N184: Raro
C185: Muros de Nalón | D185: Raro | G185: Pesoz | H185: No aplica | J185: Pesoz | K185: Raro | M185: Pesoz | N185: Raro
C186: Nava | D186: Raro | G186: Piloña | H186: No aplica | J186: Piloña | K186: Raro | M186: Piloña | N186: Raro
C187: Navia | D187: Moderado | G187: Ponga | H187: No aplica | J187: Ponga | K187: Raro | M187: Ponga | N187: Raro
C188: Negueira de Muñiz | D188: Raro | G188: Pravia | H188: No aplica | J188: Pravia | K188: Raro | M188: Pravia | N188: Raro
C189: Noreña | D189: Moderado | G189: Proaza | H189: No aplica | J189: Proaza | K189: Raro | M189: Proaza | N189: Raro
C190: Onís | D190: Improbable | G190: Quirós | H190: No aplica | J190: Quirós | K190: Raro | M190: Quirós | N190: Raro
C191: Oviedo | D191: Casi seguro | G191: Las Regueras | H191: No aplica | J191: Las Regueras | K191: Raro | M191: Las Regueras | N191: Raro
C192: Parres | D192: Moderado | G192: Ribadedeva | H192: Probable | J192: Ribadedeva | K192: Raro | M192: Ribadedeva | N192: Raro
C193: Peñamellera Alta | D193: Improbable | G193: Ribadesella | H193: Casi seguro | J193: Ribadesella | K193: Raro | M193: Ribadesella | N193: Raro
C194: Peñamellera Baja | D194: Moderado | G194: Ribera de Arriba | H194: No aplica | J194: Ribera de Arriba | K194: Raro | M194: Ribera de Arriba | N194: Raro
C195: Pesoz | D195: Raro | G195: Riosa | H195: No aplica | J195: Riosa | K195: Raro | M195: Riosa | N195: Raro
C196: Piloña | D196: Moderado | G196: Salas | H196: No aplica | J196: Salas | K196: Raro | M196: Salas | N196: Raro
C197: Ponga | D197: Improbable | G197: Santa Eulalia de Oscos | H197: No aplica | J197: Santa Eulalia de Oscos | K197: Raro | M197: Santa Eulalia de Oscos | N197: Raro
C198: Pravia | D198: Casi seguro | G198: San Martín del Rey Aurelio | H198: No aplica | J198: San Martín del Rey Aurelio | K198: Raro | M198: San Martín del Rey Aurelio | N198: Raro
C199: Proaza | D199: Improbable | G199: San Martín de Oscos | H199: No aplica | J199: San Martín de Oscos | K199: Raro | M199: San Martín de Oscos | N199: Raro
C200: Quirós | D200: Moderado | G200: San Tirso de Abres | H200: No aplica | J200: San Tirso de Abres | K200: Raro | M200: San Tirso de Abres | N200: Raro
C201: Las Regueras | D201: Improbable | G201: Santo Adriano | H201: No aplica | J201: Santo Adriano | K201: Raro | M201: Santo Adriano | N201: Raro
C202: Ribadedeva | D202: Moderado | G202: Sariego | H202: No aplica | J202: Sariego | K202: Raro | M202: Sariego | N202: Raro
C203: Ribadesella | D203: Moderado | G203: Siero | H203: No aplica | J203: Siero | K203: Raro | M203: Siero | N203: Raro
C204: Ribera de Arriba | D204: Improbable | G204: Sobrescobio | H204: No aplica | J204: Sobrescobio | K204: Raro | M204: Sobrescobio | N204: Raro
C205: Riosa | D205: Raro | G205: Somiedo | H205: No aplica | J205: Somiedo | K205: Raro | M205: Somiedo | N205: Raro
C206: Salas | D206: Casi seguro | G206: Soto del Barco | H206: Casi seguro | J206: Soto del Barco | K206: Raro | M206: Soto del Barco | N206: Raro
C207: Santa Eulalia de Oscos | D207: Raro | G207: Tapia de Casariego | H207: Probable | J207: Tapia de Casariego | K207: Raro | M207: Tapia de Casariego | N207: Raro
C208: San Martín del Rey Aurelio | D208: Improbable | G208: Taramundi | H208: No aplica | J208: Taramundi | K208: Raro | M208: Taramundi | N208: Raro
C209: San Martín de Oscos | D209: Raro | G209: Teverga | H209: No aplica | J209: Teverga | K209: Raro | M209: Teverga | N209: Raro
C210: San Tirso de Abres | D210: Improbable | G210: Tineo | H210: No aplica | J210: Tineo | K210: Raro | M210: Tineo | N210: Raro
C211: Santo Adriano | D211: Improbable | G211: Valdés | H211: Probable | J211: Valdés | K211: Moderado | M211: Valdés | N211: Moderado
C212: Sariego | D212: Raro | G212: Vegadeo | H212: No aplica | J212: Vegadeo | K212: Raro | M212: Vegadeo | N212: Raro
C213: Siero | D213: Casi seguro | G213: Villanueva de Oscos | H213: No aplica | J213: Villanueva de Oscos | K213: Raro | M213: Villanueva de Oscos | N213: Raro
C214: Sobrescobio | D214: Improbable | G214: Villaviciosa | H214: Probable | J214: Villaviciosa | K214: Raro | M214: Villaviciosa | N214: Raro
C215: Somiedo | D215: Raro | G215: Villayón | H215: No aplica | J215: Villayón | K215: Raro | M215: Villayón | N215: Raro
... 123 more rows

Sheet Medidas (hidden)
B2: TABLA MEDIDAS
B3: Área | C3: Categoría de operaciones de infraestructura | D3: Aumento del Nivel del Mar | E3: Inundaciones Costeras | F3: Eventos Extremos Costeros | G3: Cambio Régimen Lluvias | H3: Inundación Fluvio-Marinas | I3: Inundación Torrencial | J3: Cambios Régimen Nival | K3: Aumento Temp. | L3: Olas de Calor | M3: Movimientos de Ladera | N3: Cambios Rég. Vientos | O3: Eventos Meteo. Extremos
B4: Edificios | C4: Mejora de la eficiencia energética en edificios | D4: • Evitar ubicaciones con riesgo potencial, como zonas propensas a inundaciones o con drenaje insuficiente. • Implementar sistemas de drenaje perimetral, incluyendo soluciones sostenibles como zanjas, canales y sistemas urbanos de drenaje sostenible (SUDS). • Utilizar pavimentos duros permeables en áreas ajardinadas y minimizar las superficies exteriores impermeables, promoviendo el uso extensivo de espacios verdes. • Considerar las proyecciones climáticas y la capacidad de las redes de drenaje en el diseño y planificación de las edificaciones. • Aplicar membranas impermeabilizantes en muros y suelos, emplear materiales densos en plantas bajas y soluciones resistentes a la condensación por encima del nivel del terreno, además de mejorar la capacidad estructural. • Elevar las instalaciones sensibles, como tomas eléctricas, al menos un metro por encima del nivel del suelo acabado para prevenir daños por inundación. • Construir barreras físicas, como muros o bancos de tierra, o redirigir los desagües para proteger el edificio frente a la entrada de agua. • Modificar los umbrales de las puertas para permitir la instalación de barreras temporales, como sacos de arena. • Emplear materiales resistentes al agua en cimientos y zapatas, como aditivos para hormigón o bloques/ladrillos de alta densidad. | E4: • Evitar ubicaciones con riesgo potencial, como zonas propensas a inundaciones o con drenaje insuficiente. • Implementar sistemas de drenaje perimetral, incluyendo soluciones sostenibles como zanjas, canales y sistemas urbanos de drenaje sostenible (SUDS). • Utilizar pavimentos duros permeables en áreas ajardinadas y minimizar las superficies exteriores impermeables, promoviendo el uso extensivo de espacios verdes. • Considerar las proyecciones climáticas y la capacidad de las redes de drenaje en el diseño y planificación de las edificaciones. • Aplicar membranas impermeabilizantes en muros y suelos, emplear materiales densos en plantas bajas y soluciones resistentes a la condensación por encima del nivel del terreno, además de mejorar la capacidad estructural. • Elevar las instalaciones sensibles, como tomas eléctricas, al menos un metro por encima del nivel del suelo acabado para prevenir daños por inundación. • Construir barreras físicas, como muros o bancos de tierra, o redirigir los desagües para proteger el edificio frente a la entrada de agua. • Modificar los umbrales de las puertas para permitir la instalación de barreras temporales, como sacos de arena. • Emplear materiales resistentes al agua en cimientos y zapatas, como aditivos para hormigón o bloques/ladrillos de alta densidad. | F4: • Evitar ubicaciones con riesgo potencial, como zonas propensas a inundaciones o con drenaje insuficiente. • Implementar sistemas de drenaje perimetral, incluyendo soluciones sostenibles como zanjas, canales y sistemas urbanos de drenaje sostenible (SUDS). • Utilizar pavimentos duros permeables en áreas ajardinadas y minimizar las superficies exteriores impermeables, promoviendo el uso extensivo de espacios verdes. • Considerar las proyecciones climáticas y la capacidad de las redes de drenaje en el diseño y planificación de las edificaciones. • Aplicar membranas impermeabilizantes en muros y suelos, emplear materiales densos en plantas bajas y soluciones resistentes a la condensación por encima del nivel del terreno, además de mejorar la capacidad estructural. • Elevar las instalaciones sensibles, como tomas eléctricas, al menos un metro por encima del nivel del suelo acabado para prevenir daños por inundación. • Construir barreras físicas, como muros o bancos de tierra, o redirigir los desagües para proteger el edificio frente a la entrada de agua. • Modificar los umbrales de las puertas para permitir la instalación de barreras temporales, como sacos de arena. • Emplear materiales resistentes al agua en cimientos y zapatas, como aditivos para hormigón o bloques/ladrillos de alta densidad. | G4: • Evitar ubicaciones con riesgo potencial, como zonas propensas a inundaciones o con drenaje insuficiente. • Implementar sistemas de drenaje perimetral, incluyendo soluciones sostenibles como zanjas, canales y sistemas urbanos de drenaje sostenible. • Utilizar pavimentos duros permeables en áreas ajardinadas y minimizar las superficies exteriores impermeables, promoviendo el uso extensivo de espacios verdes. • Considerar las proyecciones climáticas y la capacidad de las redes de drenaje en el diseño y planificación de las edificaciones. • Aplicar membranas impermeabilizantes en muros y suelos, emplear materiales densos en plantas bajas y soluciones resistentes a la condensación por encima del nivel del terreno, además de mejorar la capacidad estructural. • Elevar las instalaciones sensibles, como tomas eléctricas, al menos un metro por encima del nivel del suelo acabado para prevenir daños por inundación. • Construir barreras físicas, como muros o bancos de tierra, o redirigir los desagües para proteger el edificio frente a la entrada de agua. • Modificar los umbrales de las puertas para permitir la instalación de barreras temporales, como sacos de arena. • Emplear materiales resistentes al agua en cimientos y zapatas, como aditivos para hormigón o bloques/ladrillos de alta densidad. | H4: • Evitar ubicaciones con riesgo potencial, como zonas propensas a inundaciones o con drenaje insuficiente. • Implementar sistemas de drenaje perimetral, incluyendo soluciones sostenibles como zanjas, canales y sistemas urbanos de drenaje sostenible (SUDS). • Utilizar pavimentos duros permeables en áreas ajardinadas y minimizar las superficies exteriores impermeables, promoviendo el uso extensivo de espacios verdes. • Considerar las proyecciones climáticas y la capacidad de las redes de drenaje en el diseño y planificación de las edificaciones. • Aplicar membranas impermeabilizantes en muros y suelos, emplear materiales densos en plantas bajas y soluciones resistentes a la condensación por encima del nivel del terreno, además de mejorar la capacidad estructural. • Elevar las instalaciones sensibles, como tomas eléctricas, al menos un metro por encima del nivel del suelo acabado para prevenir daños por inundación. • Construir barreras físicas, como muros o bancos de tierra, o redirigir los desagües para proteger el edificio frente a la entrada de agua. • Modificar los umbrales de las puertas para permitir la instalación de barreras temporales, como sacos de arena. • Emplear materiales resistentes al agua en cimientos y zapatas, como aditivos para hormigón o bloques/ladrillos de alta densidad. | I4: • Evitar ubicaciones con riesgo potencial, como zonas propensas a inundaciones o con drenaje insuficiente. • Implementar sistemas de drenaje perimetral, incluyendo soluciones sostenibles como zanjas, canales y sistemas urbanos de drenaje sostenible (SUDS). • Utilizar pavimentos duros permeables en áreas ajardinadas y minimizar las superficies exteriores impermeables, promoviendo el uso extensivo de espacios verdes. • Considerar las proyecciones climáticas y la capacidad de las redes de drenaje en el diseño y planificación de las edificaciones. • Aplicar membranas impermeabilizantes en muros y suelos, emplear materiales densos en plantas bajas y soluciones resistentes a la condensación por encima del nivel del terreno, además de mejorar la capacidad estructural. • Elevar las instalaciones sensibles, como tomas eléctricas, al menos un metro por encima del nivel del suelo acabado para prevenir daños por inundación. • Construir barreras físicas, como muros o bancos de tierra, o redirigir los desagües para proteger el edificio frente a la entrada de agua. • Modificar los umbrales de las puertas para permitir la instalación de barreras temporales, como sacos de arena. • Emplear materiales resistentes al agua en cimientos y zapatas, como aditivos para hormigón o bloques/ladrillos de alta densidad. | J4: • Rediseñar las cubiertas para considerar una carga por nieve variable y una mayor exposición a lluvias intensas y viento. • Incorporar pendientes más pronunciadas y sistemas de drenaje eficientes para evitar acumulaciones de agua por lluvias en lugar de nieve. • Usar revestimientos, selladores y materiales que soporten mejor la exposición prolongada a la lluvia y la humedad ambiental. • Adaptar el aislamiento para responder a inviernos menos fríos pero más húmedos, manteniendo el confort interior. • Incorporar ventilación mecánica controlada y materiales que eviten condensaciones en espacios habitables. • Integrar proyecciones locales sobre el cambio en el régimen nival en el diseño de edificaciones nuevas y en rehabilitaciones. • Incorporar vegetación autóctona resistente a cambios en la humedad y temperatura, y que contribuya a la gestión del agua. | K4: • Refuerzo de la resistencia estructural mediante riostras, contrafuertes y marcos más robustos. • Reducción de carga con pórticos de madera o paneles estructurales aislantes (SIP) que permiten el movimiento del edificio. • Uso de losas de cimentación para limitar el movimiento o losas independientes para permitir que la estructura “flote” y se renivele. • Aumento de la profundidad de los pilotes o extensión hasta el nivel de roca para desacoplar la estructura del terreno. • Sombreado del entorno (natural o artificial) y diseño arquitectónico que incluya parasoles, aleros en voladizo, intradoses profundos o fachadas de doble piel. • Uso de vidrio de alto rendimiento para minimizar la transferencia de calor. • Aumento del aislamiento térmico en la envolvente y las instalaciones del edificio. • Mayor estanqueidad al aire en la envolvente para reducir infiltraciones. • Uso de dispositivos de iluminación de bajo consumo para reducir las ganancias térmicas internas. • Sustitución de la ventilación natural por sistemas de ventilación mecánica controlada. • Incorporación de sistemas de refrigeración de alto rendimiento o mayor eficiencia. | L4: • Refuerzo de la resistencia estructural mediante riostras, contrafuertes y marcos más robustos. • Reducción de carga con pórticos de madera o paneles estructurales aislantes (SIP) que permiten el movimiento del edificio. • Uso de losas de cimentación para limitar el movimiento o losas independientes para permitir que la estructura “flote” y se renivele. • Aumento de la profundidad de los pilotes o extensión hasta el nivel de roca para desacoplar la estructura del terreno. • Sombreado del entorno (natural o artificial) y diseño arquitectónico que incluya parasoles, aleros en voladizo, intradoses profundos o fachadas de doble piel. • Uso de vidrio de alto rendimiento para minimizar la transferencia de calor. • Aumento del aislamiento térmico en la envolvente y las instalaciones del edificio. • Mayor estanqueidad al aire en la envolvente para reducir infiltraciones. • Uso de dispositivos de iluminación de bajo consumo para reducir las ganancias térmicas internas. • Sustitución de la ventilación natural por sistemas de ventilación mecánica controlada. • Incorporación de sistemas de refrigeración de alto rendimiento o mayor eficiencia. | M4: • Uso de materiales ligeros y flexibles: Implementación de pórticos de madera o paneles aislantes estructurales para reducir la carga sobre la estructura y facilitar el movimiento controlado del edificio en respuesta a condiciones externas. • Instalación de losas de cimentación convencionales para restringir el desplazamiento del edificio. • Uso de losas independientes que permiten que la estructura “flote” y se nivele automáticamente ante movimientos del terreno. • Profundización de elementos de cimentación: Extensión de pilotes hasta alcanzar el nivel de roca firme, con el objetivo de desacoplar la estructura del terreno superficial y garantizar una base estable e independiente. | N4: • Refuerzo estructural: Incorporación de elementos como riostras, contrafuertes y marcos de mayor robustez para incrementar la resistencia general de la estructura. • Optimización del revestimiento y soporte: Aplicación de revestimientos especializados para una mejor gestión de cargas, así como reducción del espaciado entre los componentes de soporte para aumentar la estabilidad. • Sistemas de fijación para cubiertas: Instalación de anclajes específicos para el soporte de la cubierta del tejado, incluyendo ganchos o clavos diseñados para asegurar los elementos de cobertura como las tejas. • Mejora en la ventilación: Sustitución de la ventilación natural por sistemas de ventilación mecánica que permitan un control más eficiente del flujo de aire. | O4: • Refuerzo estructural: Incorporación de elementos como riostras, contrafuertes y marcos de mayor robustez para incrementar la resistencia general de la estructura. • Optimización del revestimiento y soporte: Aplicación de revestimientos especializados para una mejor gestión de cargas, así como reducción del espaciado entre los componentes de soporte para aumentar la estabilidad. • Sistemas de fijación para cubiertas: Instalación de anclajes específicos para el soporte de la cubierta del tejado, incluyendo ganchos o clavos diseñados para asegurar los elementos de cobertura como las tejas. • Mejora en la ventilación: Sustitución de la ventilación natural por sistemas de ventilación mecánica que permitan un control más eficiente del flujo de aire.
B5: Edificios | C5: Mejora genérica de edificios | D5: • Evitar ubicaciones con riesgo potencial, como zonas propensas a inundaciones o con drenaje insuficiente. • Implementar sistemas de drenaje perimetral, incluyendo soluciones sostenibles como zanjas, canales y sistemas urbanos de drenaje sostenible (SUDS). • Utilizar pavimentos duros permeables en áreas ajardinadas y minimizar las superficies exteriores impermeables, promoviendo el uso extensivo de espacios verdes. • Considerar las proyecciones climáticas y la capacidad de las redes de drenaje en el diseño y planificación de las edificaciones. • Aplicar membranas impermeabilizantes en muros y suelos, emplear materiales densos en plantas bajas y soluciones resistentes a la condensación por encima del nivel del terreno, además de mejorar la capacidad estructural. • Elevar las instalaciones sensibles, como tomas eléctricas, al menos un metro por encima del nivel del suelo acabado para prevenir daños por inundación. • Construir barreras físicas, como muros o bancos de tierra, o redirigir los desagües para proteger el edificio frente a la entrada de agua. • Modificar los umbrales de las puertas para permitir la instalación de barreras temporales, como sacos de arena. • Emplear materiales resistentes al agua en cimientos y zapatas, como aditivos para hormigón o bloques/ladrillos de alta densidad. | E5: • Evitar ubicaciones con riesgo potencial, como zonas propensas a inundaciones o con drenaje insuficiente. • Implementar sistemas de drenaje perimetral, incluyendo soluciones sostenibles como zanjas, canales y sistemas urbanos de drenaje sostenible (SUDS). • Utilizar pavimentos duros permeables en áreas ajardinadas y minimizar las superficies exteriores impermeables, promoviendo el uso extensivo de espacios verdes. • Considerar las proyecciones climáticas y la capacidad de las redes de drenaje en el diseño y planificación de las edificaciones. • Aplicar membranas impermeabilizantes en muros y suelos, emplear materiales densos en plantas bajas y soluciones resistentes a la condensación por encima del nivel del terreno, además de mejorar la capacidad estructural. • Elevar las instalaciones sensibles, como tomas eléctricas, al menos un metro por encima del nivel del suelo acabado para prevenir daños por inundación. • Construir barreras físicas, como muros o bancos de tierra, o redirigir los desagües para proteger el edificio frente a la entrada de agua. • Modificar los umbrales de las puertas para permitir la instalación de barreras temporales, como sacos de arena. • Emplear materiales resistentes al agua en cimientos y zapatas, como aditivos para hormigón o bloques/ladrillos de alta densidad. | F5: • Evitar ubicaciones con riesgo potencial, como zonas propensas a inundaciones o con drenaje insuficiente. • Implementar sistemas de drenaje perimetral, incluyendo soluciones sostenibles como zanjas, canales y sistemas urbanos de drenaje sostenible (SUDS). • Utilizar pavimentos duros permeables en áreas ajardinadas y minimizar las superficies exteriores impermeables, promoviendo el uso extensivo de espacios verdes. • Considerar las proyecciones climáticas y la capacidad de las redes de drenaje en el diseño y planificación de las edificaciones. • Aplicar membranas impermeabilizantes en muros y suelos, emplear materiales densos en plantas bajas y soluciones resistentes a la condensación por encima del nivel del terreno, además de mejorar la capacidad estructural. • Elevar las instalaciones sensibles, como tomas eléctricas, al menos un metro por encima del nivel del suelo acabado para prevenir daños por inundación. • Construir barreras físicas, como muros o bancos de tierra, o redirigir los desagües para proteger el edificio frente a la entrada de agua. • Modificar los umbrales de las puertas para permitir la instalación de barreras temporales, como sacos de arena. • Emplear materiales resistentes al agua en cimientos y zapatas, como aditivos para hormigón o bloques/ladrillos de alta densidad. | G5: • Evitar ubicaciones con riesgo potencial, como zonas propensas a inundaciones o con drenaje insuficiente. • Implementar sistemas de drenaje perimetral, incluyendo soluciones sostenibles como zanjas, canales y sistemas urbanos de drenaje sostenible. • Utilizar pavimentos duros permeables en áreas ajardinadas y minimizar las superficies exteriores impermeables, promoviendo el uso extensivo de espacios verdes. • Considerar las proyecciones climáticas y la capacidad de las redes de drenaje en el diseño y planificación de las edificaciones. • Aplicar membranas impermeabilizantes en muros y suelos, emplear materiales densos en plantas bajas y soluciones resistentes a la condensación por encima del nivel del terreno, además de mejorar la capacidad estructural. • Elevar las instalaciones sensibles, como tomas eléctricas, al menos un metro por encima del nivel del suelo acabado para prevenir daños por inundación. • Construir barreras físicas, como muros o bancos de tierra, o redirigir los desagües para proteger el edificio frente a la entrada de agua. • Modificar los umbrales de las puertas para permitir la instalación de barreras temporales, como sacos de arena. • Emplear materiales resistentes al agua en cimientos y zapatas, como aditivos para hormigón o bloques/ladrillos de alta densidad. | H5: • Evitar ubicaciones con riesgo potencial, como zonas propensas a inundaciones o con drenaje insuficiente. • Implementar sistemas de drenaje perimetral, incluyendo soluciones sostenibles como zanjas, canales y sistemas urbanos de drenaje sostenible (SUDS). • Utilizar pavimentos duros permeables en áreas ajardinadas y minimizar las superficies exteriores impermeables, promoviendo el uso extensivo de espacios verdes. • Considerar las proyecciones climáticas y la capacidad de las redes de drenaje en el diseño y planificación de las edificaciones. • Aplicar membranas impermeabilizantes en muros y suelos, emplear materiales densos en plantas bajas y soluciones resistentes a la condensación por encima del nivel del terreno, además de mejorar la capacidad estructural. • Elevar las instalaciones sensibles, como tomas eléctricas, al menos un metro por encima del nivel del suelo acabado para prevenir daños por inundación. • Construir barreras físicas, como muros o bancos de tierra, o redirigir los desagües para proteger el edificio frente a la entrada de agua. • Modificar los umbrales de las puertas para permitir la instalación de barreras temporales, como sacos de arena. • Emplear materiales resistentes al agua en cimientos y zapatas, como aditivos para hormigón o bloques/ladrillos de alta densidad. | I5: • Evitar ubicaciones con riesgo potencial, como zonas propensas a inundaciones o con drenaje insuficiente. • Implementar sistemas de drenaje perimetral, incluyendo soluciones sostenibles como zanjas, canales y sistemas urbanos de drenaje sostenible (SUDS). • Utilizar pavimentos duros permeables en áreas ajardinadas y minimizar las superficies exteriores impermeables, promoviendo el uso extensivo de espacios verdes. • Considerar las proyecciones climáticas y la capacidad de las redes de drenaje en el diseño y planificación de las edificaciones. • Aplicar membranas impermeabilizantes en muros y suelos, emplear materiales densos en plantas bajas y soluciones resistentes a la condensación por encima del nivel del terreno, además de mejorar la capacidad estructural. • Elevar las instalaciones sensibles, como tomas eléctricas, al menos un metro por encima del nivel del suelo acabado para prevenir daños por inundación. • Construir barreras físicas, como muros o bancos de tierra, o redirigir los desagües para proteger el edificio frente a la entrada de agua. • Modificar los umbrales de las puertas para permitir la instalación de barreras temporales, como sacos de arena. • Emplear materiales resistentes al agua en cimientos y zapatas, como aditivos para hormigón o bloques/ladrillos de alta densidad. | J5: • Rediseñar las cubiertas para considerar una carga por nieve variable y una mayor exposición a lluvias intensas y viento. • Incorporar pendientes más pronunciadas y sistemas de drenaje eficientes para evitar acumulaciones de agua por lluvias en lugar de nieve. • Usar revestimientos, selladores y materiales que soporten mejor la exposición prolongada a la lluvia y la humedad ambiental. • Adaptar el aislamiento para responder a inviernos menos fríos pero más húmedos, manteniendo el confort interior. • Incorporar ventilación mecánica controlada y materiales que eviten condensaciones en espacios habitables. • Integrar proyecciones locales sobre el cambio en el régimen nival en el diseño de edificaciones nuevas y en rehabilitaciones. • Incorporar vegetación autóctona resistente a cambios en la humedad y temperatura, y que contribuya a la gestión del agua. | K5: • Refuerzo de la resistencia estructural mediante riostras, contrafuertes y marcos más robustos. • Reducción de carga con pórticos de madera o paneles estructurales aislantes (SIP) que permiten el movimiento del edificio. • Uso de losas de cimentación para limitar el movimiento o losas independientes para permitir que la estructura “flote” y se renivele. • Aumento de la profundidad de los pilotes o extensión hasta el nivel de roca para desacoplar la estructura del terreno. • Sombreado del entorno (natural o artificial) y diseño arquitectónico que incluya parasoles, aleros en voladizo, intradoses profundos o fachadas de doble piel. • Uso de vidrio de alto rendimiento para minimizar la transferencia de calor. • Aumento del aislamiento térmico en la envolvente y las instalaciones del edificio. • Mayor estanqueidad al aire en la envolvente para reducir infiltraciones. • Uso de dispositivos de iluminación de bajo consumo para reducir las ganancias térmicas internas. • Sustitución de la ventilación natural por sistemas de ventilación mecánica controlada. • Incorporación de sistemas de refrigeración de alto rendimiento o mayor eficiencia. | L5: • Refuerzo de la resistencia estructural mediante riostras, contrafuertes y marcos más robustos. • Reducción de carga con pórticos de madera o paneles estructurales aislantes (SIP) que permiten el movimiento del edificio. • Uso de losas de cimentación para limitar el movimiento o losas independientes para permitir que la estructura “flote” y se renivele. • Aumento de la profundidad de los pilotes o extensión hasta el nivel de roca para desacoplar la estructura del terreno. • Sombreado del entorno (natural o artificial) y diseño arquitectónico que incluya parasoles, aleros en voladizo, intradoses profundos o fachadas de doble piel. • Uso de vidrio de alto rendimiento para minimizar la transferencia de calor. • Aumento del aislamiento térmico en la envolvente y las instalaciones del edificio. • Mayor estanqueidad al aire en la envolvente para reducir infiltraciones. • Uso de dispositivos de iluminación de bajo consumo para reducir las ganancias térmicas internas. • Sustitución de la ventilación natural por sistemas de ventilación mecánica controlada. • Incorporación de sistemas de refrigeración de alto rendimiento o mayor eficiencia. | M5: • Uso de materiales ligeros y flexibles: Implementación de pórticos de madera o paneles aislantes estructurales para reducir la carga sobre la estructura y facilitar el movimiento controlado del edificio en respuesta a condiciones externas. • Instalación de losas de cimentación convencionales para restringir el desplazamiento del edificio. • Uso de losas independientes que permiten que la estructura “flote” y se nivele automáticamente ante movimientos del terreno. • Profundización de elementos de cimentación: Extensión de pilotes hasta alcanzar el nivel de roca firme, con el objetivo de desacoplar la estructura del terreno superficial y garantizar una base estable e independiente. | N5: • Refuerzo estructural: Incorporación de elementos como riostras, contrafuertes y marcos de mayor robustez para incrementar la resistencia general de la estructura. • Optimización del revestimiento y soporte: Aplicación de revestimientos especializados para una mejor gestión de cargas, así como reducción del espaciado entre los componentes de soporte para aumentar la estabilidad. • Sistemas de fijación para cubiertas: Instalación de anclajes específicos para el soporte de la cubierta del tejado, incluyendo ganchos o clavos diseñados para asegurar los elementos de cobertura como las tejas. • Mejora en la ventilación: Sustitución de la ventilación natural por sistemas de ventilación mecánica que permitan un control más eficiente del flujo de aire. | O5: • Refuerzo estructural: Incorporación de elementos como riostras, contrafuertes y marcos de mayor robustez para incrementar la resistencia general de la estructura. • Optimización del revestimiento y soporte: Aplicación de revestimientos especializados para una mejor gestión de cargas, así como reducción del espaciado entre los componentes de soporte para aumentar la estabilidad. • Sistemas de fijación para cubiertas: Instalación de anclajes específicos para el soporte de la cubierta del tejado, incluyendo ganchos o clavos diseñados para asegurar los elementos de cobertura como las tejas. • Mejora en la ventilación: Sustitución de la ventilación natural por sistemas de ventilación mecánica que permitan un control más eficiente del flujo de aire.
B6: Edificios | C6: Mejoras en el entorno de los edificios | D6: • Evitar ubicaciones con riesgo potencial, como zonas propensas a inundaciones o con drenaje insuficiente. • Implementar sistemas de drenaje perimetral, incluyendo soluciones sostenibles como zanjas, canales y sistemas urbanos de drenaje sostenible (SUDS). • Utilizar pavimentos duros permeables en áreas ajardinadas y minimizar las superficies exteriores impermeables, promoviendo el uso extensivo de espacios verdes. • Considerar las proyecciones climáticas y la capacidad de las redes de drenaje en el diseño y planificación de las edificaciones. • Aplicar membranas impermeabilizantes en muros y suelos, emplear materiales densos en plantas bajas y soluciones resistentes a la condensación por encima del nivel del terreno, además de mejorar la capacidad estructural. • Elevar las instalaciones sensibles, como tomas eléctricas, al menos un metro por encima del nivel del suelo acabado para prevenir daños por inundación. • Construir barreras físicas, como muros o bancos de tierra, o redirigir los desagües para proteger el edificio frente a la entrada de agua. • Modificar los umbrales de las puertas para permitir la instalación de barreras temporales, como sacos de arena. • Emplear materiales resistentes al agua en cimientos y zapatas, como aditivos para hormigón o bloques/ladrillos de alta densidad. | E6: • Evitar ubicaciones con riesgo potencial, como zonas propensas a inundaciones o con drenaje insuficiente. • Implementar sistemas de drenaje perimetral, incluyendo soluciones sostenibles como zanjas, canales y sistemas urbanos de drenaje sostenible (SUDS). • Utilizar pavimentos duros permeables en áreas ajardinadas y minimizar las superficies exteriores impermeables, promoviendo el uso extensivo de espacios verdes. • Considerar las proyecciones climáticas y la capacidad de las redes de drenaje en el diseño y planificación de las edificaciones. • Aplicar membranas impermeabilizantes en muros y suelos, emplear materiales densos en plantas bajas y soluciones resistentes a la condensación por encima del nivel del terreno, además de mejorar la capacidad estructural. • Elevar las instalaciones sensibles, como tomas eléctricas, al menos un metro por encima del nivel del suelo acabado para prevenir daños por inundación. • Construir barreras físicas, como muros o bancos de tierra, o redirigir los desagües para proteger el edificio frente a la entrada de agua. • Modificar los umbrales de las puertas para permitir la instalación de barreras temporales, como sacos de arena. • Emplear materiales resistentes al agua en cimientos y zapatas, como aditivos para hormigón o bloques/ladrillos de alta densidad. | F6: • Evitar ubicaciones con riesgo potencial, como zonas propensas a inundaciones o con drenaje insuficiente. • Implementar sistemas de drenaje perimetral, incluyendo soluciones sostenibles como zanjas, canales y sistemas urbanos de drenaje sostenible (SUDS). • Utilizar pavimentos duros permeables en áreas ajardinadas y minimizar las superficies exteriores impermeables, promoviendo el uso extensivo de espacios verdes. • Considerar las proyecciones climáticas y la capacidad de las redes de drenaje en el diseño y planificación de las edificaciones. • Aplicar membranas impermeabilizantes en muros y suelos, emplear materiales densos en plantas bajas y soluciones resistentes a la condensación por encima del nivel del terreno, además de mejorar la capacidad estructural. • Elevar las instalaciones sensibles, como tomas eléctricas, al menos un metro por encima del nivel del suelo acabado para prevenir daños por inundación. • Construir barreras físicas, como muros o bancos de tierra, o redirigir los desagües para proteger el edificio frente a la entrada de agua. • Modificar los umbrales de las puertas para permitir la instalación de barreras temporales, como sacos de arena. • Emplear materiales resistentes al agua en cimientos y zapatas, como aditivos para hormigón o bloques/ladrillos de alta densidad. | G6: • Evitar ubicaciones con riesgo potencial, como zonas propensas a inundaciones o con drenaje insuficiente. • Implementar sistemas de drenaje perimetral, incluyendo soluciones sostenibles como zanjas, canales y sistemas urbanos de drenaje sostenible. • Utilizar pavimentos duros permeables en áreas ajardinadas y minimizar las superficies exteriores impermeables, promoviendo el uso extensivo de espacios verdes. • Considerar las proyecciones climáticas y la capacidad de las redes de drenaje en el diseño y planificación de las edificaciones. • Aplicar membranas impermeabilizantes en muros y suelos, emplear materiales densos en plantas bajas y soluciones resistentes a la condensación por encima del nivel del terreno, además de mejorar la capacidad estructural. • Elevar las instalaciones sensibles, como tomas eléctricas, al menos un metro por encima del nivel del suelo acabado para prevenir daños por inundación. • Construir barreras físicas, como muros o bancos de tierra, o redirigir los desagües para proteger el edificio frente a la entrada de agua. • Modificar los umbrales de las puertas para permitir la instalación de barreras temporales, como sacos de arena. • Emplear materiales resistentes al agua en cimientos y zapatas, como aditivos para hormigón o bloques/ladrillos de alta densidad. | H6: • Evitar ubicaciones con riesgo potencial, como zonas propensas a inundaciones o con drenaje insuficiente. • Implementar sistemas de drenaje perimetral, incluyendo soluciones sostenibles como zanjas, canales y sistemas urbanos de drenaje sostenible (SUDS). • Utilizar pavimentos duros permeables en áreas ajardinadas y minimizar las superficies exteriores impermeables, promoviendo el uso extensivo de espacios verdes. • Considerar las proyecciones climáticas y la capacidad de las redes de drenaje en el diseño y planificación de las edificaciones. • Aplicar membranas impermeabilizantes en muros y suelos, emplear materiales densos en plantas bajas y soluciones resistentes a la condensación por encima del nivel del terreno, además de mejorar la capacidad estructural. • Elevar las instalaciones sensibles, como tomas eléctricas, al menos un metro por encima del nivel del suelo acabado para prevenir daños por inundación. • Construir barreras físicas, como muros o bancos de tierra, o redirigir los desagües para proteger el edificio frente a la entrada de agua. • Modificar los umbrales de las puertas para permitir la instalación de barreras temporales, como sacos de arena. • Emplear materiales resistentes al agua en cimientos y zapatas, como aditivos para hormigón o bloques/ladrillos de alta densidad. | I6: • Evitar ubicaciones con riesgo potencial, como zonas propensas a inundaciones o con drenaje insuficiente. • Implementar sistemas de drenaje perimetral, incluyendo soluciones sostenibles como zanjas, canales y sistemas urbanos de drenaje sostenible (SUDS). • Utilizar pavimentos duros permeables en áreas ajardinadas y minimizar las superficies exteriores impermeables, promoviendo el uso extensivo de espacios verdes. • Considerar las proyecciones climáticas y la capacidad de las redes de drenaje en el diseño y planificación de las edificaciones. • Aplicar membranas impermeabilizantes en muros y suelos, emplear materiales densos en plantas bajas y soluciones resistentes a la condensación por encima del nivel del terreno, además de mejorar la capacidad estructural. • Elevar las instalaciones sensibles, como tomas eléctricas, al menos un metro por encima del nivel del suelo acabado para prevenir daños por inundación. • Construir barreras físicas, como muros o bancos de tierra, o redirigir los desagües para proteger el edificio frente a la entrada de agua. • Modificar los umbrales de las puertas para permitir la instalación de barreras temporales, como sacos de arena. • Emplear materiales resistentes al agua en cimientos y zapatas, como aditivos para hormigón o bloques/ladrillos de alta densidad. | J6: • Rediseñar las cubiertas para considerar una carga por nieve variable y una mayor exposición a lluvias intensas y viento. • Incorporar pendientes más pronunciadas y sistemas de drenaje eficientes para evitar acumulaciones de agua por lluvias en lugar de nieve. • Usar revestimientos, selladores y materiales que soporten mejor la exposición prolongada a la lluvia y la humedad ambiental. • Adaptar el aislamiento para responder a inviernos menos fríos pero más húmedos, manteniendo el confort interior. • Incorporar ventilación mecánica controlada y materiales que eviten condensaciones en espacios habitables. • Integrar proyecciones locales sobre el cambio en el régimen nival en el diseño de edificaciones nuevas y en rehabilitaciones. • Incorporar vegetación autóctona resistente a cambios en la humedad y temperatura, y que contribuya a la gestión del agua. | K6: • Refuerzo de la resistencia estructural mediante riostras, contrafuertes y marcos más robustos. • Reducción de carga con pórticos de madera o paneles estructurales aislantes (SIP) que permiten el movimiento del edificio. • Uso de losas de cimentación para limitar el movimiento o losas independientes para permitir que la estructura “flote” y se renivele. • Aumento de la profundidad de los pilotes o extensión hasta el nivel de roca para desacoplar la estructura del terreno. • Sombreado del entorno (natural o artificial) y diseño arquitectónico que incluya parasoles, aleros en voladizo, intradoses profundos o fachadas de doble piel. • Uso de vidrio de alto rendimiento para minimizar la transferencia de calor. • Aumento del aislamiento térmico en la envolvente y las instalaciones del edificio. • Mayor estanqueidad al aire en la envolvente para reducir infiltraciones. • Uso de dispositivos de iluminación de bajo consumo para reducir las ganancias térmicas internas. • Sustitución de la ventilación natural por sistemas de ventilación mecánica controlada. • Incorporación de sistemas de refrigeración de alto rendimiento o mayor eficiencia. | L6: • Refuerzo de la resistencia estructural mediante riostras, contrafuertes y marcos más robustos. • Reducción de carga con pórticos de madera o paneles estructurales aislantes (SIP) que permiten el movimiento del edificio. • Uso de losas de cimentación para limitar el movimiento o losas independientes para permitir que la estructura “flote” y se renivele. • Aumento de la profundidad de los pilotes o extensión hasta el nivel de roca para desacoplar la estructura del terreno. • Sombreado del entorno (natural o artificial) y diseño arquitectónico que incluya parasoles, aleros en voladizo, intradoses profundos o fachadas de doble piel. • Uso de vidrio de alto rendimiento para minimizar la transferencia de calor. • Aumento del aislamiento térmico en la envolvente y las instalaciones del edificio. • Mayor estanqueidad al aire en la envolvente para reducir infiltraciones. • Uso de dispositivos de iluminación de bajo consumo para reducir las ganancias térmicas internas. • Sustitución de la ventilación natural por sistemas de ventilación mecánica controlada. • Incorporación de sistemas de refrigeración de alto rendimiento o mayor eficiencia. | M6: • Uso de materiales ligeros y flexibles: Implementación de pórticos de madera o paneles aislantes estructurales para reducir la carga sobre la estructura y facilitar el movimiento controlado del edificio en respuesta a condiciones externas. • Instalación de losas de cimentación convencionales para restringir el desplazamiento del edificio. • Uso de losas independientes que permiten que la estructura “flote” y se nivele automáticamente ante movimientos del terreno. • Profundización de elementos de cimentación: Extensión de pilotes hasta alcanzar el nivel de roca firme, con el objetivo de desacoplar la estructura del terreno superficial y garantizar una base estable e independiente. | N6: • Refuerzo estructural: Incorporación de elementos como riostras, contrafuertes y marcos de mayor robustez para incrementar la resistencia general de la estructura. • Optimización del revestimiento y soporte: Aplicación de revestimientos especializados para una mejor gestión de cargas, así como reducción del espaciado entre los componentes de soporte para aumentar la estabilidad. • Sistemas de fijación para cubiertas: Instalación de anclajes específicos para el soporte de la cubierta del tejado, incluyendo ganchos o clavos diseñados para asegurar los elementos de cobertura como las tejas. • Mejora en la ventilación: Sustitución de la ventilación natural por sistemas de ventilación mecánica que permitan un control más eficiente del flujo de aire. | O6: • Refuerzo estructural: Incorporación de elementos como riostras, contrafuertes y marcos de mayor robustez para incrementar la resistencia general de la estructura. • Optimización del revestimiento y soporte: Aplicación de revestimientos especializados para una mejor gestión de cargas, así como reducción del espaciado entre los componentes de soporte para aumentar la estabilidad. • Sistemas de fijación para cubiertas: Instalación de anclajes específicos para el soporte de la cubierta del tejado, incluyendo ganchos o clavos diseñados para asegurar los elementos de cobertura como las tejas. • Mejora en la ventilación: Sustitución de la ventilación natural por sistemas de ventilación mecánica que permitan un control más eficiente del flujo de aire.
B7: Edificios | C7: Construcción de edificios | D7: • Evitar ubicaciones con riesgo potencial, como zonas propensas a inundaciones o con drenaje insuficiente. • Implementar sistemas de drenaje perimetral, incluyendo soluciones sostenibles como zanjas, canales y sistemas urbanos de drenaje sostenible (SUDS). • Utilizar pavimentos duros permeables en áreas ajardinadas y minimizar las superficies exteriores impermeables, promoviendo el uso extensivo de espacios verdes. • Considerar las proyecciones climáticas y la capacidad de las redes de drenaje en el diseño y planificación de las edificaciones. • Aplicar membranas impermeabilizantes en muros y suelos, emplear materiales densos en plantas bajas y soluciones resistentes a la condensación por encima del nivel del terreno, además de mejorar la capacidad estructural. • Elevar las instalaciones sensibles, como tomas eléctricas, al menos un metro por encima del nivel del suelo acabado para prevenir daños por inundación. • Construir barreras físicas, como muros o bancos de tierra, o redirigir los desagües para proteger el edificio frente a la entrada de agua. • Modificar los umbrales de las puertas para permitir la instalación de barreras temporales, como sacos de arena. • Emplear materiales resistentes al agua en cimientos y zapatas, como aditivos para hormigón o bloques/ladrillos de alta densidad. | E7: • Evitar ubicaciones con riesgo potencial, como zonas propensas a inundaciones o con drenaje insuficiente. • Implementar sistemas de drenaje perimetral, incluyendo soluciones sostenibles como zanjas, canales y sistemas urbanos de drenaje sostenible (SUDS). • Utilizar pavimentos duros permeables en áreas ajardinadas y minimizar las superficies exteriores impermeables, promoviendo el uso extensivo de espacios verdes. • Considerar las proyecciones climáticas y la capacidad de las redes de drenaje en el diseño y planificación de las edificaciones. • Aplicar membranas impermeabilizantes en muros y suelos, emplear materiales densos en plantas bajas y soluciones resistentes a la condensación por encima del nivel del terreno, además de mejorar la capacidad estructural. • Elevar las instalaciones sensibles, como tomas eléctricas, al menos un metro por encima del nivel del suelo acabado para prevenir daños por inundación. • Construir barreras físicas, como muros o bancos de tierra, o redirigir los desagües para proteger el edificio frente a la entrada de agua. • Modificar los umbrales de las puertas para permitir la instalación de barreras temporales, como sacos de arena. • Emplear materiales resistentes al agua en cimientos y zapatas, como aditivos para hormigón o bloques/ladrillos de alta densidad. | F7: • Evitar ubicaciones con riesgo potencial, como zonas propensas a inundaciones o con drenaje insuficiente. • Implementar sistemas de drenaje perimetral, incluyendo soluciones sostenibles como zanjas, canales y sistemas urbanos de drenaje sostenible (SUDS). • Utilizar pavimentos duros permeables en áreas ajardinadas y minimizar las superficies exteriores impermeables, promoviendo el uso extensivo de espacios verdes. • Considerar las proyecciones climáticas y la capacidad de las redes de drenaje en el diseño y planificación de las edificaciones. • Aplicar membranas impermeabilizantes en muros y suelos, emplear materiales densos en plantas bajas y soluciones resistentes a la condensación por encima del nivel del terreno, además de mejorar la capacidad estructural. • Elevar las instalaciones sensibles, como tomas eléctricas, al menos un metro por encima del nivel del suelo acabado para prevenir daños por inundación. • Construir barreras físicas, como muros o bancos de tierra, o redirigir los desagües para proteger el edificio frente a la entrada de agua. • Modificar los umbrales de las puertas para permitir la instalación de barreras temporales, como sacos de arena. • Emplear materiales resistentes al agua en cimientos y zapatas, como aditivos para hormigón o bloques/ladrillos de alta densidad. | G7: • Evitar ubicaciones con riesgo potencial, como zonas propensas a inundaciones o con drenaje insuficiente. • Implementar sistemas de drenaje perimetral, incluyendo soluciones sostenibles como zanjas, canales y sistemas urbanos de drenaje sostenible. • Utilizar pavimentos duros permeables en áreas ajardinadas y minimizar las superficies exteriores impermeables, promoviendo el uso extensivo de espacios verdes. • Considerar las proyecciones climáticas y la capacidad de las redes de drenaje en el diseño y planificación de las edificaciones. • Aplicar membranas impermeabilizantes en muros y suelos, emplear materiales densos en plantas bajas y soluciones resistentes a la condensación por encima del nivel del terreno, además de mejorar la capacidad estructural. • Elevar las instalaciones sensibles, como tomas eléctricas, al menos un metro por encima del nivel del suelo acabado para prevenir daños por inundación. • Construir barreras físicas, como muros o bancos de tierra, o redirigir los desagües para proteger el edificio frente a la entrada de agua. • Modificar los umbrales de las puertas para permitir la instalación de barreras temporales, como sacos de arena. • Emplear materiales resistentes al agua en cimientos y zapatas, como aditivos para hormigón o bloques/ladrillos de alta densidad. | H7: • Evitar ubicaciones con riesgo potencial, como zonas propensas a inundaciones o con drenaje insuficiente. • Implementar sistemas de drenaje perimetral, incluyendo soluciones sostenibles como zanjas, canales y sistemas urbanos de drenaje sostenible (SUDS). • Utilizar pavimentos duros permeables en áreas ajardinadas y minimizar las superficies exteriores impermeables, promoviendo el uso extensivo de espacios verdes. • Considerar las proyecciones climáticas y la capacidad de las redes de drenaje en el diseño y planificación de las edificaciones. • Aplicar membranas impermeabilizantes en muros y suelos, emplear materiales densos en plantas bajas y soluciones resistentes a la condensación por encima del nivel del terreno, además de mejorar la capacidad estructural. • Elevar las instalaciones sensibles, como tomas eléctricas, al menos un metro por encima del nivel del suelo acabado para prevenir daños por inundación. • Construir barreras físicas, como muros o bancos de tierra, o redirigir los desagües para proteger el edificio frente a la entrada de agua. • Modificar los umbrales de las puertas para permitir la instalación de barreras temporales, como sacos de arena. • Emplear materiales resistentes al agua en cimientos y zapatas, como aditivos para hormigón o bloques/ladrillos de alta densidad. | I7: • Evitar ubicaciones con riesgo potencial, como zonas propensas a inundaciones o con drenaje insuficiente. • Implementar sistemas de drenaje perimetral, incluyendo soluciones sostenibles como zanjas, canales y sistemas urbanos de drenaje sostenible (SUDS). • Utilizar pavimentos duros permeables en áreas ajardinadas y minimizar las superficies exteriores impermeables, promoviendo el uso extensivo de espacios verdes. • Considerar las proyecciones climáticas y la capacidad de las redes de drenaje en el diseño y planificación de las edificaciones. • Aplicar membranas impermeabilizantes en muros y suelos, emplear materiales densos en plantas bajas y soluciones resistentes a la condensación por encima del nivel del terreno, además de mejorar la capacidad estructural. • Elevar las instalaciones sensibles, como tomas eléctricas, al menos un metro por encima del nivel del suelo acabado para prevenir daños por inundación. • Construir barreras físicas, como muros o bancos de tierra, o redirigir los desagües para proteger el edificio frente a la entrada de agua. • Modificar los umbrales de las puertas para permitir la instalación de barreras temporales, como sacos de arena. • Emplear materiales resistentes al agua en cimientos y zapatas, como aditivos para hormigón o bloques/ladrillos de alta densidad. | J7: • Rediseñar las cubiertas para considerar una carga por nieve variable y una mayor exposición a lluvias intensas y viento. • Incorporar pendientes más pronunciadas y sistemas de drenaje eficientes para evitar acumulaciones de agua por lluvias en lugar de nieve. • Usar revestimientos, selladores y materiales que soporten mejor la exposición prolongada a la lluvia y la humedad ambiental. • Adaptar el aislamiento para responder a inviernos menos fríos pero más húmedos, manteniendo el confort interior. • Incorporar ventilación mecánica controlada y materiales que eviten condensaciones en espacios habitables. • Integrar proyecciones locales sobre el cambio en el régimen nival en el diseño de edificaciones nuevas y en rehabilitaciones. • Incorporar vegetación autóctona resistente a cambios en la humedad y temperatura, y que contribuya a la gestión del agua. | K7: • Refuerzo de la resistencia estructural mediante riostras, contrafuertes y marcos más robustos. • Reducción de carga con pórticos de madera o paneles estructurales aislantes (SIP) que permiten el movimiento del edificio. • Uso de losas de cimentación para limitar el movimiento o losas independientes para permitir que la estructura “flote” y se renivele. • Aumento de la profundidad de los pilotes o extensión hasta el nivel de roca para desacoplar la estructura del terreno. • Sombreado del entorno (natural o artificial) y diseño arquitectónico que incluya parasoles, aleros en voladizo, intradoses profundos o fachadas de doble piel. • Uso de vidrio de alto rendimiento para minimizar la transferencia de calor. • Aumento del aislamiento térmico en la envolvente y las instalaciones del edificio. • Mayor estanqueidad al aire en la envolvente para reducir infiltraciones. • Uso de dispositivos de iluminación de bajo consumo para reducir las ganancias térmicas internas. • Sustitución de la ventilación natural por sistemas de ventilación mecánica controlada. • Incorporación de sistemas de refrigeración de alto rendimiento o mayor eficiencia. | L7: • Refuerzo de la resistencia estructural mediante riostras, contrafuertes y marcos más robustos. • Reducción de carga con pórticos de madera o paneles estructurales aislantes (SIP) que permiten el movimiento del edificio. • Uso de losas de cimentación para limitar el movimiento o losas independientes para permitir que la estructura “flote” y se renivele. • Aumento de la profundidad de los pilotes o extensión hasta el nivel de roca para desacoplar la estructura del terreno. • Sombreado del entorno (natural o artificial) y diseño arquitectónico que incluya parasoles, aleros en voladizo, intradoses profundos o fachadas de doble piel. • Uso de vidrio de alto rendimiento para minimizar la transferencia de calor. • Aumento del aislamiento térmico en la envolvente y las instalaciones del edificio. • Mayor estanqueidad al aire en la envolvente para reducir infiltraciones. • Uso de dispositivos de iluminación de bajo consumo para reducir las ganancias térmicas internas. • Sustitución de la ventilación natural por sistemas de ventilación mecánica controlada. • Incorporación de sistemas de refrigeración de alto rendimiento o mayor eficiencia. | M7: • Uso de materiales ligeros y flexibles: Implementación de pórticos de madera o paneles aislantes estructurales para reducir la carga sobre la estructura y facilitar el movimiento controlado del edificio en respuesta a condiciones externas. • Instalación de losas de cimentación convencionales para restringir el desplazamiento del edificio. • Uso de losas independientes que permiten que la estructura “flote” y se nivele automáticamente ante movimientos del terreno. • Profundización de elementos de cimentación: Extensión de pilotes hasta alcanzar el nivel de roca firme, con el objetivo de desacoplar la estructura del terreno superficial y garantizar una base estable e independiente. | N7: • Refuerzo estructural: Incorporación de elementos como riostras, contrafuertes y marcos de mayor robustez para incrementar la resistencia general de la estructura. • Optimización del revestimiento y soporte: Aplicación de revestimientos especializados para una mejor gestión de cargas, así como reducción del espaciado entre los componentes de soporte para aumentar la estabilidad. • Sistemas de fijación para cubiertas: Instalación de anclajes específicos para el soporte de la cubierta del tejado, incluyendo ganchos o clavos diseñados para asegurar los elementos de cobertura como las tejas. • Mejora en la ventilación: Sustitución de la ventilación natural por sistemas de ventilación mecánica que permitan un control más eficiente del flujo de aire. | O7: • Refuerzo estructural: Incorporación de elementos como riostras, contrafuertes y marcos de mayor robustez para incrementar la resistencia general de la estructura. • Optimización del revestimiento y soporte: Aplicación de revestimientos especializados para una mejor gestión de cargas, así como reducción del espaciado entre los componentes de soporte para aumentar la estabilidad. • Sistemas de fijación para cubiertas: Instalación de anclajes específicos para el soporte de la cubierta del tejado, incluyendo ganchos o clavos diseñados para asegurar los elementos de cobertura como las tejas. • Mejora en la ventilación: Sustitución de la ventilación natural por sistemas de ventilación mecánica que permitan un control más eficiente del flujo de aire.
B8: Edificios | C8: Ampliación de edificios | D8: • Evitar ubicaciones con riesgo potencial, como zonas propensas a inundaciones o con drenaje insuficiente. • Implementar sistemas de drenaje perimetral, incluyendo soluciones sostenibles como zanjas, canales y sistemas urbanos de drenaje sostenible (SUDS). • Utilizar pavimentos duros permeables en áreas ajardinadas y minimizar las superficies exteriores impermeables, promoviendo el uso extensivo de espacios verdes. • Considerar las proyecciones climáticas y la capacidad de las redes de drenaje en el diseño y planificación de las edificaciones. • Aplicar membranas impermeabilizantes en muros y suelos, emplear materiales densos en plantas bajas y soluciones resistentes a la condensación por encima del nivel del terreno, además de mejorar la capacidad estructural. • Elevar las instalaciones sensibles, como tomas eléctricas, al menos un metro por encima del nivel del suelo acabado para prevenir daños por inundación. • Construir barreras físicas, como muros o bancos de tierra, o redirigir los desagües para proteger el edificio frente a la entrada de agua. • Modificar los umbrales de las puertas para permitir la instalación de barreras temporales, como sacos de arena. • Emplear materiales resistentes al agua en cimientos y zapatas, como aditivos para hormigón o bloques/ladrillos de alta densidad. | E8: • Evitar ubicaciones con riesgo potencial, como zonas propensas a inundaciones o con drenaje insuficiente. • Implementar sistemas de drenaje perimetral, incluyendo soluciones sostenibles como zanjas, canales y sistemas urbanos de drenaje sostenible (SUDS). • Utilizar pavimentos duros permeables en áreas ajardinadas y minimizar las superficies exteriores impermeables, promoviendo el uso extensivo de espacios verdes. • Considerar las proyecciones climáticas y la capacidad de las redes de drenaje en el diseño y planificación de las edificaciones. • Aplicar membranas impermeabilizantes en muros y suelos, emplear materiales densos en plantas bajas y soluciones resistentes a la condensación por encima del nivel del terreno, además de mejorar la capacidad estructural. • Elevar las instalaciones sensibles, como tomas eléctricas, al menos un metro por encima del nivel del suelo acabado para prevenir daños por inundación. • Construir barreras físicas, como muros o bancos de tierra, o redirigir los desagües para proteger el edificio frente a la entrada de agua. • Modificar los umbrales de las puertas para permitir la instalación de barreras temporales, como sacos de arena. • Emplear materiales resistentes al agua en cimientos y zapatas, como aditivos para hormigón o bloques/ladrillos de alta densidad. | F8: • Evitar ubicaciones con riesgo potencial, como zonas propensas a inundaciones o con drenaje insuficiente. • Implementar sistemas de drenaje perimetral, incluyendo soluciones sostenibles como zanjas, canales y sistemas urbanos de drenaje sostenible (SUDS). • Utilizar pavimentos duros permeables en áreas ajardinadas y minimizar las superficies exteriores impermeables, promoviendo el uso extensivo de espacios verdes. • Considerar las proyecciones climáticas y la capacidad de las redes de drenaje en el diseño y planificación de las edificaciones. • Aplicar membranas impermeabilizantes en muros y suelos, emplear materiales densos en plantas bajas y soluciones resistentes a la condensación por encima del nivel del terreno, además de mejorar la capacidad estructural. • Elevar las instalaciones sensibles, como tomas eléctricas, al menos un metro por encima del nivel del suelo acabado para prevenir daños por inundación. • Construir barreras físicas, como muros o bancos de tierra, o redirigir los desagües para proteger el edificio frente a la entrada de agua. • Modificar los umbrales de las puertas para permitir la instalación de barreras temporales, como sacos de arena. • Emplear materiales resistentes al agua en cimientos y zapatas, como aditivos para hormigón o bloques/ladrillos de alta densidad. | G8: • Evitar ubicaciones con riesgo potencial, como zonas propensas a inundaciones o con drenaje insuficiente. • Implementar sistemas de drenaje perimetral, incluyendo soluciones sostenibles como zanjas, canales y sistemas urbanos de drenaje sostenible. • Utilizar pavimentos duros permeables en áreas ajardinadas y minimizar las superficies exteriores impermeables, promoviendo el uso extensivo de espacios verdes. • Considerar las proyecciones climáticas y la capacidad de las redes de drenaje en el diseño y planificación de las edificaciones. • Aplicar membranas impermeabilizantes en muros y suelos, emplear materiales densos en plantas bajas y soluciones resistentes a la condensación por encima del nivel del terreno, además de mejorar la capacidad estructural. • Elevar las instalaciones sensibles, como tomas eléctricas, al menos un metro por encima del nivel del suelo acabado para prevenir daños por inundación. • Construir barreras físicas, como muros o bancos de tierra, o redirigir los desagües para proteger el edificio frente a la entrada de agua. • Modificar los umbrales de las puertas para permitir la instalación de barreras temporales, como sacos de arena. • Emplear materiales resistentes al agua en cimientos y zapatas, como aditivos para hormigón o bloques/ladrillos de alta densidad. | H8: • Evitar ubicaciones con riesgo potencial, como zonas propensas a inundaciones o con drenaje insuficiente. • Implementar sistemas de drenaje perimetral, incluyendo soluciones sostenibles como zanjas, canales y sistemas urbanos de drenaje sostenible (SUDS). • Utilizar pavimentos duros permeables en áreas ajardinadas y minimizar las superficies exteriores impermeables, promoviendo el uso extensivo de espacios verdes. • Considerar las proyecciones climáticas y la capacidad de las redes de drenaje en el diseño y planificación de las edificaciones. • Aplicar membranas impermeabilizantes en muros y suelos, emplear materiales densos en plantas bajas y soluciones resistentes a la condensación por encima del nivel del terreno, además de mejorar la capacidad estructural. • Elevar las instalaciones sensibles, como tomas eléctricas, al menos un metro por encima del nivel del suelo acabado para prevenir daños por inundación. • Construir barreras físicas, como muros o bancos de tierra, o redirigir los desagües para proteger el edificio frente a la entrada de agua. • Modificar los umbrales de las puertas para permitir la instalación de barreras temporales, como sacos de arena. • Emplear materiales resistentes al agua en cimientos y zapatas, como aditivos para hormigón o bloques/ladrillos de alta densidad. | I8: • Evitar ubicaciones con riesgo potencial, como zonas propensas a inundaciones o con drenaje insuficiente. • Implementar sistemas de drenaje perimetral, incluyendo soluciones sostenibles como zanjas, canales y sistemas urbanos de drenaje sostenible (SUDS). • Utilizar pavimentos duros permeables en áreas ajardinadas y minimizar las superficies exteriores impermeables, promoviendo el uso extensivo de espacios verdes. • Considerar las proyecciones climáticas y la capacidad de las redes de drenaje en el diseño y planificación de las edificaciones. • Aplicar membranas impermeabilizantes en muros y suelos, emplear materiales densos en plantas bajas y soluciones resistentes a la condensación por encima del nivel del terreno, además de mejorar la capacidad estructural. • Elevar las instalaciones sensibles, como tomas eléctricas, al menos un metro por encima del nivel del suelo acabado para prevenir daños por inundación. • Construir barreras físicas, como muros o bancos de tierra, o redirigir los desagües para proteger el edificio frente a la entrada de agua. • Modificar los umbrales de las puertas para permitir la instalación de barreras temporales, como sacos de arena. • Emplear materiales resistentes al agua en cimientos y zapatas, como aditivos para hormigón o bloques/ladrillos de alta densidad. | J8: • Rediseñar las cubiertas para considerar una carga por nieve variable y una mayor exposición a lluvias intensas y viento. • Incorporar pendientes más pronunciadas y sistemas de drenaje eficientes para evitar acumulaciones de agua por lluvias en lugar de nieve. • Usar revestimientos, selladores y materiales que soporten mejor la exposición prolongada a la lluvia y la humedad ambiental. • Adaptar el aislamiento para responder a inviernos menos fríos pero más húmedos, manteniendo el confort interior. • Incorporar ventilación mecánica controlada y materiales que eviten condensaciones en espacios habitables. • Integrar proyecciones locales sobre el cambio en el régimen nival en el diseño de edificaciones nuevas y en rehabilitaciones. • Incorporar vegetación autóctona resistente a cambios en la humedad y temperatura, y que contribuya a la gestión del agua. | K8: • Refuerzo de la resistencia estructural mediante riostras, contrafuertes y marcos más robustos. • Reducción de carga con pórticos de madera o paneles estructurales aislantes (SIP) que permiten el movimiento del edificio. • Uso de losas de cimentación para limitar el movimiento o losas independientes para permitir que la estructura “flote” y se renivele. • Aumento de la profundidad de los pilotes o extensión hasta el nivel de roca para desacoplar la estructura del terreno. • Sombreado del entorno (natural o artificial) y diseño arquitectónico que incluya parasoles, aleros en voladizo, intradoses profundos o fachadas de doble piel. • Uso de vidrio de alto rendimiento para minimizar la transferencia de calor. • Aumento del aislamiento térmico en la envolvente y las instalaciones del edificio. • Mayor estanqueidad al aire en la envolvente para reducir infiltraciones. • Uso de dispositivos de iluminación de bajo consumo para reducir las ganancias térmicas internas. • Sustitución de la ventilación natural por sistemas de ventilación mecánica controlada. • Incorporación de sistemas de refrigeración de alto rendimiento o mayor eficiencia. | L8: • Refuerzo de la resistencia estructural mediante riostras, contrafuertes y marcos más robustos. • Reducción de carga con pórticos de madera o paneles estructurales aislantes (SIP) que permiten el movimiento del edificio. • Uso de losas de cimentación para limitar el movimiento o losas independientes para permitir que la estructura “flote” y se renivele. • Aumento de la profundidad de los pilotes o extensión hasta el nivel de roca para desacoplar la estructura del terreno. • Sombreado del entorno (natural o artificial) y diseño arquitectónico que incluya parasoles, aleros en voladizo, intradoses profundos o fachadas de doble piel. • Uso de vidrio de alto rendimiento para minimizar la transferencia de calor. • Aumento del aislamiento térmico en la envolvente y las instalaciones del edificio. • Mayor estanqueidad al aire en la envolvente para reducir infiltraciones. • Uso de dispositivos de iluminación de bajo consumo para reducir las ganancias térmicas internas. • Sustitución de la ventilación natural por sistemas de ventilación mecánica controlada. • Incorporación de sistemas de refrigeración de alto rendimiento o mayor eficiencia. | M8: • Uso de materiales ligeros y flexibles: Implementación de pórticos de madera o paneles aislantes estructurales para reducir la carga sobre la estructura y facilitar el movimiento controlado del edificio en respuesta a condiciones externas. • Instalación de losas de cimentación convencionales para restringir el desplazamiento del edificio. • Uso de losas independientes que permiten que la estructura “flote” y se nivele automáticamente ante movimientos del terreno. • Profundización de elementos de cimentación: Extensión de pilotes hasta alcanzar el nivel de roca firme, con el objetivo de desacoplar la estructura del terreno superficial y garantizar una base estable e independiente. | N8: • Refuerzo estructural: Incorporación de elementos como riostras, contrafuertes y marcos de mayor robustez para incrementar la resistencia general de la estructura. • Optimización del revestimiento y soporte: Aplicación de revestimientos especializados para una mejor gestión de cargas, así como reducción del espaciado entre los componentes de soporte para aumentar la estabilidad. • Sistemas de fijación para cubiertas: Instalación de anclajes específicos para el soporte de la cubierta del tejado, incluyendo ganchos o clavos diseñados para asegurar los elementos de cobertura como las tejas. • Mejora en la ventilación: Sustitución de la ventilación natural por sistemas de ventilación mecánica que permitan un control más eficiente del flujo de aire. | O8: • Refuerzo estructural: Incorporación de elementos como riostras, contrafuertes y marcos de mayor robustez para incrementar la resistencia general de la estructura. • Optimización del revestimiento y soporte: Aplicación de revestimientos especializados para una mejor gestión de cargas, así como reducción del espaciado entre los componentes de soporte para aumentar la estabilidad. • Sistemas de fijación para cubiertas: Instalación de anclajes específicos para el soporte de la cubierta del tejado, incluyendo ganchos o clavos diseñados para asegurar los elementos de cobertura como las tejas. • Mejora en la ventilación: Sustitución de la ventilación natural por sistemas de ventilación mecánica que permitan un control más eficiente del flujo de aire.
B9: Edificios | C9: Rehabilitación integral | D9: • Evitar ubicaciones con riesgo potencial, como zonas propensas a inundaciones o con drenaje insuficiente. • Implementar sistemas de drenaje perimetral, incluyendo soluciones sostenibles como zanjas, canales y sistemas urbanos de drenaje sostenible (SUDS). • Utilizar pavimentos duros permeables en áreas ajardinadas y minimizar las superficies exteriores impermeables, promoviendo el uso extensivo de espacios verdes. • Considerar las proyecciones climáticas y la capacidad de las redes de drenaje en el diseño y planificación de las edificaciones. • Aplicar membranas impermeabilizantes en muros y suelos, emplear materiales densos en plantas bajas y soluciones resistentes a la condensación por encima del nivel del terreno, además de mejorar la capacidad estructural. • Elevar las instalaciones sensibles, como tomas eléctricas, al menos un metro por encima del nivel del suelo acabado para prevenir daños por inundación. • Construir barreras físicas, como muros o bancos de tierra, o redirigir los desagües para proteger el edificio frente a la entrada de agua. • Modificar los umbrales de las puertas para permitir la instalación de barreras temporales, como sacos de arena. • Emplear materiales resistentes al agua en cimientos y zapatas, como aditivos para hormigón o bloques/ladrillos de alta densidad. | E9: • Evitar ubicaciones con riesgo potencial, como zonas propensas a inundaciones o con drenaje insuficiente. • Implementar sistemas de drenaje perimetral, incluyendo soluciones sostenibles como zanjas, canales y sistemas urbanos de drenaje sostenible (SUDS). • Utilizar pavimentos duros permeables en áreas ajardinadas y minimizar las superficies exteriores impermeables, promoviendo el uso extensivo de espacios verdes. • Considerar las proyecciones climáticas y la capacidad de las redes de drenaje en el diseño y planificación de las edificaciones. • Aplicar membranas impermeabilizantes en muros y suelos, emplear materiales densos en plantas bajas y soluciones resistentes a la condensación por encima del nivel del terreno, además de mejorar la capacidad estructural. • Elevar las instalaciones sensibles, como tomas eléctricas, al menos un metro por encima del nivel del suelo acabado para prevenir daños por inundación. • Construir barreras físicas, como muros o bancos de tierra, o redirigir los desagües para proteger el edificio frente a la entrada de agua. • Modificar los umbrales de las puertas para permitir la instalación de barreras temporales, como sacos de arena. • Emplear materiales resistentes al agua en cimientos y zapatas, como aditivos para hormigón o bloques/ladrillos de alta densidad. | F9: • Evitar ubicaciones con riesgo potencial, como zonas propensas a inundaciones o con drenaje insuficiente. • Implementar sistemas de drenaje perimetral, incluyendo soluciones sostenibles como zanjas, canales y sistemas urbanos de drenaje sostenible (SUDS). • Utilizar pavimentos duros permeables en áreas ajardinadas y minimizar las superficies exteriores impermeables, promoviendo el uso extensivo de espacios verdes. • Considerar las proyecciones climáticas y la capacidad de las redes de drenaje en el diseño y planificación de las edificaciones. • Aplicar membranas impermeabilizantes en muros y suelos, emplear materiales densos en plantas bajas y soluciones resistentes a la condensación por encima del nivel del terreno, además de mejorar la capacidad estructural. • Elevar las instalaciones sensibles, como tomas eléctricas, al menos un metro por encima del nivel del suelo acabado para prevenir daños por inundación. • Construir barreras físicas, como muros o bancos de tierra, o redirigir los desagües para proteger el edificio frente a la entrada de agua. • Modificar los umbrales de las puertas para permitir la instalación de barreras temporales, como sacos de arena. • Emplear materiales resistentes al agua en cimientos y zapatas, como aditivos para hormigón o bloques/ladrillos de alta densidad. | G9: • Evitar ubicaciones con riesgo potencial, como zonas propensas a inundaciones o con drenaje insuficiente. • Implementar sistemas de drenaje perimetral, incluyendo soluciones sostenibles como zanjas, canales y sistemas urbanos de drenaje sostenible. • Utilizar pavimentos duros permeables en áreas ajardinadas y minimizar las superficies exteriores impermeables, promoviendo el uso extensivo de espacios verdes. • Considerar las proyecciones climáticas y la capacidad de las redes de drenaje en el diseño y planificación de las edificaciones. • Aplicar membranas impermeabilizantes en muros y suelos, emplear materiales densos en plantas bajas y soluciones resistentes a la condensación por encima del nivel del terreno, además de mejorar la capacidad estructural. • Elevar las instalaciones sensibles, como tomas eléctricas, al menos un metro por encima del nivel del suelo acabado para prevenir daños por inundación. • Construir barreras físicas, como muros o bancos de tierra, o redirigir los desagües para proteger el edificio frente a la entrada de agua. • Modificar los umbrales de las puertas para permitir la instalación de barreras temporales, como sacos de arena. • Emplear materiales resistentes al agua en cimientos y zapatas, como aditivos para hormigón o bloques/ladrillos de alta densidad. | H9: • Evitar ubicaciones con riesgo potencial, como zonas propensas a inundaciones o con drenaje insuficiente. • Implementar sistemas de drenaje perimetral, incluyendo soluciones sostenibles como zanjas, canales y sistemas urbanos de drenaje sostenible (SUDS). • Utilizar pavimentos duros permeables en áreas ajardinadas y minimizar las superficies exteriores impermeables, promoviendo el uso extensivo de espacios verdes. • Considerar las proyecciones climáticas y la capacidad de las redes de drenaje en el diseño y planificación de las edificaciones. • Aplicar membranas impermeabilizantes en muros y suelos, emplear materiales densos en plantas bajas y soluciones resistentes a la condensación por encima del nivel del terreno, además de mejorar la capacidad estructural. • Elevar las instalaciones sensibles, como tomas eléctricas, al menos un metro por encima del nivel del suelo acabado para prevenir daños por inundación. • Construir barreras físicas, como muros o bancos de tierra, o redirigir los desagües para proteger el edificio frente a la entrada de agua. • Modificar los umbrales de las puertas para permitir la instalación de barreras temporales, como sacos de arena. • Emplear materiales resistentes al agua en cimientos y zapatas, como aditivos para hormigón o bloques/ladrillos de alta densidad. | I9: • Evitar ubicaciones con riesgo potencial, como zonas propensas a inundaciones o con drenaje insuficiente. • Implementar sistemas de drenaje perimetral, incluyendo soluciones sostenibles como zanjas, canales y sistemas urbanos de drenaje sostenible (SUDS). • Utilizar pavimentos duros permeables en áreas ajardinadas y minimizar las superficies exteriores impermeables, promoviendo el uso extensivo de espacios verdes. • Considerar las proyecciones climáticas y la capacidad de las redes de drenaje en el diseño y planificación de las edificaciones. • Aplicar membranas impermeabilizantes en muros y suelos, emplear materiales densos en plantas bajas y soluciones resistentes a la condensación por encima del nivel del terreno, además de mejorar la capacidad estructural. • Elevar las instalaciones sensibles, como tomas eléctricas, al menos un metro por encima del nivel del suelo acabado para prevenir daños por inundación. • Construir barreras físicas, como muros o bancos de tierra, o redirigir los desagües para proteger el edificio frente a la entrada de agua. • Modificar los umbrales de las puertas para permitir la instalación de barreras temporales, como sacos de arena. • Emplear materiales resistentes al agua en cimientos y zapatas, como aditivos para hormigón o bloques/ladrillos de alta densidad. | J9: • Rediseñar las cubiertas para considerar una carga por nieve variable y una mayor exposición a lluvias intensas y viento. • Incorporar pendientes más pronunciadas y sistemas de drenaje eficientes para evitar acumulaciones de agua por lluvias en lugar de nieve. • Usar revestimientos, selladores y materiales que soporten mejor la exposición prolongada a la lluvia y la humedad ambiental. • Adaptar el aislamiento para responder a inviernos menos fríos pero más húmedos, manteniendo el confort interior. • Incorporar ventilación mecánica controlada y materiales que eviten condensaciones en espacios habitables. • Integrar proyecciones locales sobre el cambio en el régimen nival en el diseño de edificaciones nuevas y en rehabilitaciones. • Incorporar vegetación autóctona resistente a cambios en la humedad y temperatura, y que contribuya a la gestión del agua. | K9: • Refuerzo de la resistencia estructural mediante riostras, contrafuertes y marcos más robustos. • Reducción de carga con pórticos de madera o paneles estructurales aislantes (SIP) que permiten el movimiento del edificio. • Uso de losas de cimentación para limitar el movimiento o losas independientes para permitir que la estructura “flote” y se renivele. • Aumento de la profundidad de los pilotes o extensión hasta el nivel de roca para desacoplar la estructura del terreno. • Sombreado del entorno (natural o artificial) y diseño arquitectónico que incluya parasoles, aleros en voladizo, intradoses profundos o fachadas de doble piel. • Uso de vidrio de alto rendimiento para minimizar la transferencia de calor. • Aumento del aislamiento térmico en la envolvente y las instalaciones del edificio. • Mayor estanqueidad al aire en la envolvente para reducir infiltraciones. • Uso de dispositivos de iluminación de bajo consumo para reducir las ganancias térmicas internas. • Sustitución de la ventilación natural por sistemas de ventilación mecánica controlada. • Incorporación de sistemas de refrigeración de alto rendimiento o mayor eficiencia. | L9: • Refuerzo de la resistencia estructural mediante riostras, contrafuertes y marcos más robustos. • Reducción de carga con pórticos de madera o paneles estructurales aislantes (SIP) que permiten el movimiento del edificio. • Uso de losas de cimentación para limitar el movimiento o losas independientes para permitir que la estructura “flote” y se renivele. • Aumento de la profundidad de los pilotes o extensión hasta el nivel de roca para desacoplar la estructura del terreno. • Sombreado del entorno (natural o artificial) y diseño arquitectónico que incluya parasoles, aleros en voladizo, intradoses profundos o fachadas de doble piel. • Uso de vidrio de alto rendimiento para minimizar la transferencia de calor. • Aumento del aislamiento térmico en la envolvente y las instalaciones del edificio. • Mayor estanqueidad al aire en la envolvente para reducir infiltraciones. • Uso de dispositivos de iluminación de bajo consumo para reducir las ganancias térmicas internas. • Sustitución de la ventilación natural por sistemas de ventilación mecánica controlada. • Incorporación de sistemas de refrigeración de alto rendimiento o mayor eficiencia. | M9: • Uso de materiales ligeros y flexibles: Implementación de pórticos de madera o paneles aislantes estructurales para reducir la carga sobre la estructura y facilitar el movimiento controlado del edificio en respuesta a condiciones externas. • Instalación de losas de cimentación convencionales para restringir el desplazamiento del edificio. • Uso de losas independientes que permiten que la estructura “flote” y se nivele automáticamente ante movimientos del terreno. • Profundización de elementos de cimentación: Extensión de pilotes hasta alcanzar el nivel de roca firme, con el objetivo de desacoplar la estructura del terreno superficial y garantizar una base estable e independiente. | N9: • Refuerzo estructural: Incorporación de elementos como riostras, contrafuertes y marcos de mayor robustez para incrementar la resistencia general de la estructura. • Optimización del revestimiento y soporte: Aplicación de revestimientos especializados para una mejor gestión de cargas, así como reducción del espaciado entre los componentes de soporte para aumentar la estabilidad. • Sistemas de fijación para cubiertas: Instalación de anclajes específicos para el soporte de la cubierta del tejado, incluyendo ganchos o clavos diseñados para asegurar los elementos de cobertura como las tejas. • Mejora en la ventilación: Sustitución de la ventilación natural por sistemas de ventilación mecánica que permitan un control más eficiente del flujo de aire. | O9: • Refuerzo estructural: Incorporación de elementos como riostras, contrafuertes y marcos de mayor robustez para incrementar la resistencia general de la estructura. • Optimización del revestimiento y soporte: Aplicación de revestimientos especializados para una mejor gestión de cargas, así como reducción del espaciado entre los componentes de soporte para aumentar la estabilidad. • Sistemas de fijación para cubiertas: Instalación de anclajes específicos para el soporte de la cubierta del tejado, incluyendo ganchos o clavos diseñados para asegurar los elementos de cobertura como las tejas. • Mejora en la ventilación: Sustitución de la ventilación natural por sistemas de ventilación mecánica que permitan un control más eficiente del flujo de aire.
B10: Residuos | C10: Puntos de recogida de residuos | D10: • Reubicación estratégica de instalaciones vulnerables • Elevación y protección física de infraestructuras • Sistemas de drenaje adaptados para eventos extremos y posibles intrusiones salinas. • Separación de aguas contaminadas y salinas para evitar daños en procesos de valorización. • Crear nodos logísticos alternativos para la recogida y transporte de residuos en caso de cierre temporal de instalaciones costeras. • Fomentar plantas móviles o modulares de tratamiento. • Integración de sensores de nivel del mar, humedad y presión en instalaciones costeras. • Conexión con redes de protección civil y meteorología regional. | E10: • Evaluación de la exposición al riesgo costero mediante mapas de inundación. • Planificación de nuevas instalaciones en zonas interiores o elevadas. • Elevación y protección física de infraestructuras • Instalación de barreras naturales y artificiales • Rediseño de redes de drenaje en plantas de residuos para manejar grandes volúmenes de agua. • Separación de aguas pluviales y contaminadas para evitar desbordamientos. • Instalación de sensores de nivel del mar, presión atmosférica y humedad en instalaciones costeras. • Integración con redes de protección civil y meteorología regional. | F10: • Evaluación de la exposición al riesgo costero mediante mapas de inundación. • Planificación de nuevas instalaciones en zonas interiores o elevadas. • Elevación y protección física de infraestructuras • Instalación de barreras naturales y artificiales • Rediseño de redes de drenaje en plantas de residuos para manejar grandes volúmenes de agua. • Separación de aguas pluviales y contaminadas para evitar desbordamientos. • Instalación de sensores de nivel del mar, presión atmosférica y humedad en instalaciones costeras. • Integración con redes de protección civil y meteorología regional. | G10: • Instalación de redes de drenaje pluvial con mayor capacidad. • Separación de aguas pluviales y residuales para evitar desbordamientos. • Cubiertas impermeables para residuos almacenados al aire libre. • Barreras físicas para evitar el arrastre de residuos por escorrentías. • Instalación de sensores de lluvia, humedad y presión atmosférica. • Integración con redes de protección civil y meteorología regional. • Plantas de tratamiento con capacidad de adaptación a variaciones climáticas. • Espacios de almacenamiento temporales elevados o móviles. • Zonas verdes de infiltración alrededor de instalaciones. • Jardines de lluvia y vegetación adaptada para absorber escorrentías. | H10: • Evaluación de la exposición al riesgo costero mediante mapas de inundación. • Planificación de nuevas instalaciones en zonas interiores o elevadas. • Elevación y protección física de infraestructuras • Instalación de barreras naturales y artificiales • Rediseño de redes de drenaje en plantas de residuos para manejar grandes volúmenes de agua. • Separación de aguas pluviales y contaminadas para evitar desbordamientos. • Instalación de sensores de nivel del mar, presión atmosférica y humedad en instalaciones costeras. • Integración con redes de protección civil y meteorología regional. | I10: • Evaluación de la exposición al riesgo costero mediante mapas de inundación. • Planificación de nuevas instalaciones en zonas interiores o elevadas. • Elevación y protección física de infraestructuras • Instalación de barreras naturales y artificiales • Rediseño de redes de drenaje en plantas de residuos para manejar grandes volúmenes de agua. • Separación de aguas pluviales y contaminadas para evitar desbordamientos. • Instalación de sensores de nivel del mar, presión atmosférica y humedad en instalaciones costeras. • Integración con redes de protección civil y meteorología regional. | J10: • Instalación de techos reforzados en zonas de almacenamiento y tratamiento para soportar acumulaciones de nieve. • Incorporación de sistemas de calefacción pasiva o activa para evitar congelaciones. • Protección de tuberías, bombas y sistemas de tratamiento con materiales aislantes. • Uso de sensores de temperatura para activar sistemas de protección ante heladas. • Diseño de rutas alternativas para la recogida de residuos en caso de nevadas intensas. • Coordinación con servicios de emergencia y meteorología. • Sistemas de drenaje adaptados para manejar grandes volúmenes de agua por deshielo rápido. • Separación de aguas limpias y contaminadas para evitar sobrecargas. • Instalación de sensores de nieve, temperatura y humedad en instalaciones clave. • Activación de protocolos de emergencia ante alertas meteorológicas. | K10: • Incorporar materiales aislantes en cubiertas y fachadas de plantas de residuos. • Instalar sistemas de ventilación natural y sombreado en zonas operativas. • Optimización energética y uso de energías renovables • Sensores de temperatura y humedad en zonas de trabajo y almacenamiento. • Protocolos de actuación para proteger al personal y evitar fallos operativos. • Integración de vegetación en el entorno de las instalaciones. • Uso de techos verdes para regular la temperatura interior. • Ajuste de turnos de trabajo para evitar las horas de mayor calor. • Planificación de rutas de recogida más eficientes en verano. | L10: • Incorporar materiales aislantes en cubiertas y fachadas de plantas de residuos. • Instalar sistemas de ventilación natural y sombreado en zonas operativas. • Optimización energética y uso de energías renovables • Sensores de temperatura y humedad en zonas de trabajo y almacenamiento. • Protocolos de actuación para proteger al personal y evitar fallos operativos. • Integración de vegetación en el entorno de las instalaciones. • Uso de techos verdes para regular la temperatura interior. • Ajuste de turnos de trabajo para evitar las horas de mayor calor. • Planificación de rutas de recogida más eficientes en verano. | M10: • Refuerzo de taludes mediante muros de contención, mallas metálicas o estructuras de anclaje. • Uso de técnicas de bioingeniería como revegetación con especies de raíces profundas. • Instalación de sistemas de drenaje superficial y subterráneo para evitar acumulación de agua en pendientes. • Canalización segura de escorrentías hacia zonas controladas. • Evitar la construcción de plantas en zonas con riesgo geológico identificado • Priorizar terrenos planos o con pendientes suaves y buena capacidad de carga. • Instalación de sensores de humedad del suelo, inclinación y presión en zonas críticas. • Integración con sistemas de alerta temprana ante lluvias intensas o movimientos sísmicos. • Plantación de vegetación autóctona con capacidad de fijar el suelo. • Mantenimiento de franjas verdes como barreras naturales de protección. | N10: • Refuerzo de cubiertas, fachadas y estructuras metálicas en plantas situadas en zonas abiertas o elevadas. • Uso de materiales resistentes al viento y sistemas de anclaje reforzados. • Construcción de edificios y almacenes con formas que minimicen la resistencia al viento. • Orientación de accesos y zonas de carga en dirección opuesta a los vientos predominantes. • Uso de contenedores cerrados, cubiertas móviles o redes de protección para evitar dispersión de residuos. • Refuerzo de sistemas de sujeción en zonas de almacenamiento temporal. • Plantación de setos, árboles o estructuras verdes alrededor de instalaciones. • Diseño paisajístico que reduzca la velocidad del viento en zonas operativas. | O10: • Refuerzo de cubiertas, fachadas y estructuras metálicas en plantas situadas en zonas abiertas o elevadas. • Uso de materiales resistentes al viento y sistemas de anclaje reforzados. • Construcción de edificios y almacenes con formas que minimicen la resistencia al viento. • Orientación de accesos y zonas de carga en dirección opuesta a los vientos predominantes. • Uso de contenedores cerrados, cubiertas móviles o redes de protección para evitar dispersión de residuos. • Refuerzo de sistemas de sujeción en zonas de almacenamiento temporal. • Plantación de setos, árboles o estructuras verdes alrededor de instalaciones. • Diseño paisajístico que reduzca la velocidad del viento en zonas operativas.
B11: Residuos | C11: Instalación de clasificación y reciclaje | D11: • Reubicación estratégica de instalaciones vulnerables • Elevación y protección física de infraestructuras • Sistemas de drenaje adaptados para eventos extremos y posibles intrusiones salinas. • Separación de aguas contaminadas y salinas para evitar daños en procesos de valorización. • Crear nodos logísticos alternativos para la recogida y transporte de residuos en caso de cierre temporal de instalaciones costeras. • Fomentar plantas móviles o modulares de tratamiento. • Integración de sensores de nivel del mar, humedad y presión en instalaciones costeras. • Conexión con redes de protección civil y meteorología regional. | E11: • Evaluación de la exposición al riesgo costero mediante mapas de inundación. • Planificación de nuevas instalaciones en zonas interiores o elevadas. • Elevación y protección física de infraestructuras • Instalación de barreras naturales y artificiales • Rediseño de redes de drenaje en plantas de residuos para manejar grandes volúmenes de agua. • Separación de aguas pluviales y contaminadas para evitar desbordamientos. • Instalación de sensores de nivel del mar, presión atmosférica y humedad en instalaciones costeras. • Integración con redes de protección civil y meteorología regional. | F11: • Evaluación de la exposición al riesgo costero mediante mapas de inundación. • Planificación de nuevas instalaciones en zonas interiores o elevadas. • Elevación y protección física de infraestructuras • Instalación de barreras naturales y artificiales • Rediseño de redes de drenaje en plantas de residuos para manejar grandes volúmenes de agua. • Separación de aguas pluviales y contaminadas para evitar desbordamientos. • Instalación de sensores de nivel del mar, presión atmosférica y humedad en instalaciones costeras. • Integración con redes de protección civil y meteorología regional. | G11: • Instalación de redes de drenaje pluvial con mayor capacidad. • Separación de aguas pluviales y residuales para evitar desbordamientos. • Cubiertas impermeables para residuos almacenados al aire libre. • Barreras físicas para evitar el arrastre de residuos por escorrentías. • Instalación de sensores de lluvia, humedad y presión atmosférica. • Integración con redes de protección civil y meteorología regional. • Plantas de tratamiento con capacidad de adaptación a variaciones climáticas. • Espacios de almacenamiento temporales elevados o móviles. • Zonas verdes de infiltración alrededor de instalaciones. • Jardines de lluvia y vegetación adaptada para absorber escorrentías. | H11: • Evaluación de la exposición al riesgo costero mediante mapas de inundación. • Planificación de nuevas instalaciones en zonas interiores o elevadas. • Elevación y protección física de infraestructuras • Instalación de barreras naturales y artificiales • Rediseño de redes de drenaje en plantas de residuos para manejar grandes volúmenes de agua. • Separación de aguas pluviales y contaminadas para evitar desbordamientos. • Instalación de sensores de nivel del mar, presión atmosférica y humedad en instalaciones costeras. • Integración con redes de protección civil y meteorología regional. | I11: • Evaluación de la exposición al riesgo costero mediante mapas de inundación. • Planificación de nuevas instalaciones en zonas interiores o elevadas. • Elevación y protección física de infraestructuras • Instalación de barreras naturales y artificiales • Rediseño de redes de drenaje en plantas de residuos para manejar grandes volúmenes de agua. • Separación de aguas pluviales y contaminadas para evitar desbordamientos. • Instalación de sensores de nivel del mar, presión atmosférica y humedad en instalaciones costeras. • Integración con redes de protección civil y meteorología regional. | J11: • Instalación de techos reforzados en zonas de almacenamiento y tratamiento para soportar acumulaciones de nieve. • Incorporación de sistemas de calefacción pasiva o activa para evitar congelaciones. • Protección de tuberías, bombas y sistemas de tratamiento con materiales aislantes. • Uso de sensores de temperatura para activar sistemas de protección ante heladas. • Diseño de rutas alternativas para la recogida de residuos en caso de nevadas intensas. • Coordinación con servicios de emergencia y meteorología. • Sistemas de drenaje adaptados para manejar grandes volúmenes de agua por deshielo rápido. • Separación de aguas limpias y contaminadas para evitar sobrecargas. • Instalación de sensores de nieve, temperatura y humedad en instalaciones clave. • Activación de protocolos de emergencia ante alertas meteorológicas. | K11: • Incorporar materiales aislantes en cubiertas y fachadas de plantas de residuos. • Instalar sistemas de ventilación natural y sombreado en zonas operativas. • Optimización energética y uso de energías renovables • Sensores de temperatura y humedad en zonas de trabajo y almacenamiento. • Protocolos de actuación para proteger al personal y evitar fallos operativos. • Integración de vegetación en el entorno de las instalaciones. • Uso de techos verdes para regular la temperatura interior. • Ajuste de turnos de trabajo para evitar las horas de mayor calor. • Planificación de rutas de recogida más eficientes en verano. | L11: • Incorporar materiales aislantes en cubiertas y fachadas de plantas de residuos. • Instalar sistemas de ventilación natural y sombreado en zonas operativas. • Optimización energética y uso de energías renovables • Sensores de temperatura y humedad en zonas de trabajo y almacenamiento. • Protocolos de actuación para proteger al personal y evitar fallos operativos. • Integración de vegetación en el entorno de las instalaciones. • Uso de techos verdes para regular la temperatura interior. • Ajuste de turnos de trabajo para evitar las horas de mayor calor. • Planificación de rutas de recogida más eficientes en verano. | M11: • Refuerzo de taludes mediante muros de contención, mallas metálicas o estructuras de anclaje. • Uso de técnicas de bioingeniería como revegetación con especies de raíces profundas. • Instalación de sistemas de drenaje superficial y subterráneo para evitar acumulación de agua en pendientes. • Canalización segura de escorrentías hacia zonas controladas. • Evitar la construcción de plantas en zonas con riesgo geológico identificado • Priorizar terrenos planos o con pendientes suaves y buena capacidad de carga. • Instalación de sensores de humedad del suelo, inclinación y presión en zonas críticas. • Integración con sistemas de alerta temprana ante lluvias intensas o movimientos sísmicos. • Plantación de vegetación autóctona con capacidad de fijar el suelo. • Mantenimiento de franjas verdes como barreras naturales de protección. | N11: • Refuerzo de cubiertas, fachadas y estructuras metálicas en plantas situadas en zonas abiertas o elevadas. • Uso de materiales resistentes al viento y sistemas de anclaje reforzados. • Construcción de edificios y almacenes con formas que minimicen la resistencia al viento. • Orientación de accesos y zonas de carga en dirección opuesta a los vientos predominantes. • Uso de contenedores cerrados, cubiertas móviles o redes de protección para evitar dispersión de residuos. • Refuerzo de sistemas de sujeción en zonas de almacenamiento temporal. • Plantación de setos, árboles o estructuras verdes alrededor de instalaciones. • Diseño paisajístico que reduzca la velocidad del viento en zonas operativas. | O11: • Refuerzo de cubiertas, fachadas y estructuras metálicas en plantas situadas en zonas abiertas o elevadas. • Uso de materiales resistentes al viento y sistemas de anclaje reforzados. • Construcción de edificios y almacenes con formas que minimicen la resistencia al viento. • Orientación de accesos y zonas de carga en dirección opuesta a los vientos predominantes. • Uso de contenedores cerrados, cubiertas móviles o redes de protección para evitar dispersión de residuos. • Refuerzo de sistemas de sujeción en zonas de almacenamiento temporal. • Plantación de setos, árboles o estructuras verdes alrededor de instalaciones. • Diseño paisajístico que reduzca la velocidad del viento en zonas operativas.
B12: Residuos | C12: Instalación de gestión de residuos | D12: • Reubicación estratégica de instalaciones vulnerables • Elevación y protección física de infraestructuras • Sistemas de drenaje adaptados para eventos extremos y posibles intrusiones salinas. • Separación de aguas contaminadas y salinas para evitar daños en procesos de valorización. • Crear nodos logísticos alternativos para la recogida y transporte de residuos en caso de cierre temporal de instalaciones costeras. • Fomentar plantas móviles o modulares de tratamiento. • Integración de sensores de nivel del mar, humedad y presión en instalaciones costeras. • Conexión con redes de protección civil y meteorología regional. | E12: • Evaluación de la exposición al riesgo costero mediante mapas de inundación. • Planificación de nuevas instalaciones en zonas interiores o elevadas. • Elevación y protección física de infraestructuras • Instalación de barreras naturales y artificiales • Rediseño de redes de drenaje en plantas de residuos para manejar grandes volúmenes de agua. • Separación de aguas pluviales y contaminadas para evitar desbordamientos. • Instalación de sensores de nivel del mar, presión atmosférica y humedad en instalaciones costeras. • Integración con redes de protección civil y meteorología regional. | F12: • Evaluación de la exposición al riesgo costero mediante mapas de inundación. • Planificación de nuevas instalaciones en zonas interiores o elevadas. • Elevación y protección física de infraestructuras • Instalación de barreras naturales y artificiales • Rediseño de redes de drenaje en plantas de residuos para manejar grandes volúmenes de agua. • Separación de aguas pluviales y contaminadas para evitar desbordamientos. • Instalación de sensores de nivel del mar, presión atmosférica y humedad en instalaciones costeras. • Integración con redes de protección civil y meteorología regional. | G12: • Instalación de redes de drenaje pluvial con mayor capacidad. • Separación de aguas pluviales y residuales para evitar desbordamientos. • Cubiertas impermeables para residuos almacenados al aire libre. • Barreras físicas para evitar el arrastre de residuos por escorrentías. • Instalación de sensores de lluvia, humedad y presión atmosférica. • Integración con redes de protección civil y meteorología regional. • Plantas de tratamiento con capacidad de adaptación a variaciones climáticas. • Espacios de almacenamiento temporales elevados o móviles. • Zonas verdes de infiltración alrededor de instalaciones. • Jardines de lluvia y vegetación adaptada para absorber escorrentías. | H12: • Evaluación de la exposición al riesgo costero mediante mapas de inundación. • Planificación de nuevas instalaciones en zonas interiores o elevadas. • Elevación y protección física de infraestructuras • Instalación de barreras naturales y artificiales • Rediseño de redes de drenaje en plantas de residuos para manejar grandes volúmenes de agua. • Separación de aguas pluviales y contaminadas para evitar desbordamientos. • Instalación de sensores de nivel del mar, presión atmosférica y humedad en instalaciones costeras. • Integración con redes de protección civil y meteorología regional. | I12: • Evaluación de la exposición al riesgo costero mediante mapas de inundación. • Planificación de nuevas instalaciones en zonas interiores o elevadas. • Elevación y protección física de infraestructuras • Instalación de barreras naturales y artificiales • Rediseño de redes de drenaje en plantas de residuos para manejar grandes volúmenes de agua. • Separación de aguas pluviales y contaminadas para evitar desbordamientos. • Instalación de sensores de nivel del mar, presión atmosférica y humedad en instalaciones costeras. • Integración con redes de protección civil y meteorología regional. | J12: • Instalación de techos reforzados en zonas de almacenamiento y tratamiento para soportar acumulaciones de nieve. • Incorporación de sistemas de calefacción pasiva o activa para evitar congelaciones. • Protección de tuberías, bombas y sistemas de tratamiento con materiales aislantes. • Uso de sensores de temperatura para activar sistemas de protección ante heladas. • Diseño de rutas alternativas para la recogida de residuos en caso de nevadas intensas. • Coordinación con servicios de emergencia y meteorología. • Sistemas de drenaje adaptados para manejar grandes volúmenes de agua por deshielo rápido. • Separación de aguas limpias y contaminadas para evitar sobrecargas. • Instalación de sensores de nieve, temperatura y humedad en instalaciones clave. • Activación de protocolos de emergencia ante alertas meteorológicas. | K12: • Incorporar materiales aislantes en cubiertas y fachadas de plantas de residuos. • Instalar sistemas de ventilación natural y sombreado en zonas operativas. • Optimización energética y uso de energías renovables • Sensores de temperatura y humedad en zonas de trabajo y almacenamiento. • Protocolos de actuación para proteger al personal y evitar fallos operativos. • Integración de vegetación en el entorno de las instalaciones. • Uso de techos verdes para regular la temperatura interior. • Ajuste de turnos de trabajo para evitar las horas de mayor calor. • Planificación de rutas de recogida más eficientes en verano. | L12: • Incorporar materiales aislantes en cubiertas y fachadas de plantas de residuos. • Instalar sistemas de ventilación natural y sombreado en zonas operativas. • Optimización energética y uso de energías renovables • Sensores de temperatura y humedad en zonas de trabajo y almacenamiento. • Protocolos de actuación para proteger al personal y evitar fallos operativos. • Integración de vegetación en el entorno de las instalaciones. • Uso de techos verdes para regular la temperatura interior. • Ajuste de turnos de trabajo para evitar las horas de mayor calor. • Planificación de rutas de recogida más eficientes en verano. | M12: • Refuerzo de taludes mediante muros de contención, mallas metálicas o estructuras de anclaje. • Uso de técnicas de bioingeniería como revegetación con especies de raíces profundas. • Instalación de sistemas de drenaje superficial y subterráneo para evitar acumulación de agua en pendientes. • Canalización segura de escorrentías hacia zonas controladas. • Evitar la construcción de plantas en zonas con riesgo geológico identificado • Priorizar terrenos planos o con pendientes suaves y buena capacidad de carga. • Instalación de sensores de humedad del suelo, inclinación y presión en zonas críticas. • Integración con sistemas de alerta temprana ante lluvias intensas o movimientos sísmicos. • Plantación de vegetación autóctona con capacidad de fijar el suelo. • Mantenimiento de franjas verdes como barreras naturales de protección. | N12: • Refuerzo de cubiertas, fachadas y estructuras metálicas en plantas situadas en zonas abiertas o elevadas. • Uso de materiales resistentes al viento y sistemas de anclaje reforzados. • Construcción de edificios y almacenes con formas que minimicen la resistencia al viento. • Orientación de accesos y zonas de carga en dirección opuesta a los vientos predominantes. • Uso de contenedores cerrados, cubiertas móviles o redes de protección para evitar dispersión de residuos. • Refuerzo de sistemas de sujeción en zonas de almacenamiento temporal. • Plantación de setos, árboles o estructuras verdes alrededor de instalaciones. • Diseño paisajístico que reduzca la velocidad del viento en zonas operativas. | O12: • Refuerzo de cubiertas, fachadas y estructuras metálicas en plantas situadas en zonas abiertas o elevadas. • Uso de materiales resistentes al viento y sistemas de anclaje reforzados. • Construcción de edificios y almacenes con formas que minimicen la resistencia al viento. • Orientación de accesos y zonas de carga en dirección opuesta a los vientos predominantes. • Uso de contenedores cerrados, cubiertas móviles o redes de protección para evitar dispersión de residuos. • Refuerzo de sistemas de sujeción en zonas de almacenamiento temporal. • Plantación de setos, árboles o estructuras verdes alrededor de instalaciones. • Diseño paisajístico que reduzca la velocidad del viento en zonas operativas.
B13: Residuos | C13: Plantas de valorización de residuos | D13: • Reubicación estratégica de instalaciones vulnerables • Elevación y protección física de infraestructuras • Sistemas de drenaje adaptados para eventos extremos y posibles intrusiones salinas. • Separación de aguas contaminadas y salinas para evitar daños en procesos de valorización. • Crear nodos logísticos alternativos para la recogida y transporte de residuos en caso de cierre temporal de instalaciones costeras. • Fomentar plantas móviles o modulares de tratamiento. • Integración de sensores de nivel del mar, humedad y presión en instalaciones costeras. • Conexión con redes de protección civil y meteorología regional. | E13: • Evaluación de la exposición al riesgo costero mediante mapas de inundación. • Planificación de nuevas instalaciones en zonas interiores o elevadas. • Elevación y protección física de infraestructuras • Instalación de barreras naturales y artificiales • Rediseño de redes de drenaje en plantas de residuos para manejar grandes volúmenes de agua. • Separación de aguas pluviales y contaminadas para evitar desbordamientos. • Instalación de sensores de nivel del mar, presión atmosférica y humedad en instalaciones costeras. • Integración con redes de protección civil y meteorología regional. | F13: • Evaluación de la exposición al riesgo costero mediante mapas de inundación. • Planificación de nuevas instalaciones en zonas interiores o elevadas. • Elevación y protección física de infraestructuras • Instalación de barreras naturales y artificiales • Rediseño de redes de drenaje en plantas de residuos para manejar grandes volúmenes de agua. • Separación de aguas pluviales y contaminadas para evitar desbordamientos. • Instalación de sensores de nivel del mar, presión atmosférica y humedad en instalaciones costeras. • Integración con redes de protección civil y meteorología regional. | G13: • Instalación de redes de drenaje pluvial con mayor capacidad. • Separación de aguas pluviales y residuales para evitar desbordamientos. • Cubiertas impermeables para residuos almacenados al aire libre. • Barreras físicas para evitar el arrastre de residuos por escorrentías. • Instalación de sensores de lluvia, humedad y presión atmosférica. • Integración con redes de protección civil y meteorología regional. • Plantas de tratamiento con capacidad de adaptación a variaciones climáticas. • Espacios de almacenamiento temporales elevados o móviles. • Zonas verdes de infiltración alrededor de instalaciones. • Jardines de lluvia y vegetación adaptada para absorber escorrentías. | H13: • Evaluación de la exposición al riesgo costero mediante mapas de inundación. • Planificación de nuevas instalaciones en zonas interiores o elevadas. • Elevación y protección física de infraestructuras • Instalación de barreras naturales y artificiales • Rediseño de redes de drenaje en plantas de residuos para manejar grandes volúmenes de agua. • Separación de aguas pluviales y contaminadas para evitar desbordamientos. • Instalación de sensores de nivel del mar, presión atmosférica y humedad en instalaciones costeras. • Integración con redes de protección civil y meteorología regional. | I13: • Evaluación de la exposición al riesgo costero mediante mapas de inundación. • Planificación de nuevas instalaciones en zonas interiores o elevadas. • Elevación y protección física de infraestructuras • Instalación de barreras naturales y artificiales • Rediseño de redes de drenaje en plantas de residuos para manejar grandes volúmenes de agua. • Separación de aguas pluviales y contaminadas para evitar desbordamientos. • Instalación de sensores de nivel del mar, presión atmosférica y humedad en instalaciones costeras. • Integración con redes de protección civil y meteorología regional. | J13: • Instalación de techos reforzados en zonas de almacenamiento y tratamiento para soportar acumulaciones de nieve. • Incorporación de sistemas de calefacción pasiva o activa para evitar congelaciones. • Protección de tuberías, bombas y sistemas de tratamiento con materiales aislantes. • Uso de sensores de temperatura para activar sistemas de protección ante heladas. • Diseño de rutas alternativas para la recogida de residuos en caso de nevadas intensas. • Coordinación con servicios de emergencia y meteorología. • Sistemas de drenaje adaptados para manejar grandes volúmenes de agua por deshielo rápido. • Separación de aguas limpias y contaminadas para evitar sobrecargas. • Instalación de sensores de nieve, temperatura y humedad en instalaciones clave. • Activación de protocolos de emergencia ante alertas meteorológicas. | K13: • Incorporar materiales aislantes en cubiertas y fachadas de plantas de residuos. • Instalar sistemas de ventilación natural y sombreado en zonas operativas. • Optimización energética y uso de energías renovables • Sensores de temperatura y humedad en zonas de trabajo y almacenamiento. • Protocolos de actuación para proteger al personal y evitar fallos operativos. • Integración de vegetación en el entorno de las instalaciones. • Uso de techos verdes para regular la temperatura interior. • Ajuste de turnos de trabajo para evitar las horas de mayor calor. • Planificación de rutas de recogida más eficientes en verano. | L13: • Incorporar materiales aislantes en cubiertas y fachadas de plantas de residuos. • Instalar sistemas de ventilación natural y sombreado en zonas operativas. • Optimización energética y uso de energías renovables • Sensores de temperatura y humedad en zonas de trabajo y almacenamiento. • Protocolos de actuación para proteger al personal y evitar fallos operativos. • Integración de vegetación en el entorno de las instalaciones. • Uso de techos verdes para regular la temperatura interior. • Ajuste de turnos de trabajo para evitar las horas de mayor calor. • Planificación de rutas de recogida más eficientes en verano. | M13: • Refuerzo de taludes mediante muros de contención, mallas metálicas o estructuras de anclaje. • Uso de técnicas de bioingeniería como revegetación con especies de raíces profundas. • Instalación de sistemas de drenaje superficial y subterráneo para evitar acumulación de agua en pendientes. • Canalización segura de escorrentías hacia zonas controladas. • Evitar la construcción de plantas en zonas con riesgo geológico identificado • Priorizar terrenos planos o con pendientes suaves y buena capacidad de carga. • Instalación de sensores de humedad del suelo, inclinación y presión en zonas críticas. • Integración con sistemas de alerta temprana ante lluvias intensas o movimientos sísmicos. • Plantación de vegetación autóctona con capacidad de fijar el suelo. • Mantenimiento de franjas verdes como barreras naturales de protección. | N13: • Refuerzo de cubiertas, fachadas y estructuras metálicas en plantas situadas en zonas abiertas o elevadas. • Uso de materiales resistentes al viento y sistemas de anclaje reforzados. • Construcción de edificios y almacenes con formas que minimicen la resistencia al viento. • Orientación de accesos y zonas de carga en dirección opuesta a los vientos predominantes. • Uso de contenedores cerrados, cubiertas móviles o redes de protección para evitar dispersión de residuos. • Refuerzo de sistemas de sujeción en zonas de almacenamiento temporal. • Plantación de setos, árboles o estructuras verdes alrededor de instalaciones. • Diseño paisajístico que reduzca la velocidad del viento en zonas operativas. | O13: • Refuerzo de cubiertas, fachadas y estructuras metálicas en plantas situadas en zonas abiertas o elevadas. • Uso de materiales resistentes al viento y sistemas de anclaje reforzados. • Construcción de edificios y almacenes con formas que minimicen la resistencia al viento. • Orientación de accesos y zonas de carga en dirección opuesta a los vientos predominantes. • Uso de contenedores cerrados, cubiertas móviles o redes de protección para evitar dispersión de residuos. • Refuerzo de sistemas de sujeción en zonas de almacenamiento temporal. • Plantación de setos, árboles o estructuras verdes alrededor de instalaciones. • Diseño paisajístico que reduzca la velocidad del viento en zonas operativas.
B14: Agua | C14: Pequeñas y medianas estaciones de depuración de aguas residuales
B15: Agua | C15: Grandes estaciones de depuración de aguas residuales | D15: • Impermeabilización y refuerzo de redes de saneamiento • Elevación de equipos críticos • Monitoreo de nivel del mar y salinidad en zonas costeras • Implantación de sistemas inteligentes de control y gestión remota. | E15: • Redimensionamiento de colectores y redes de saneamiento para manejar grandes volúmenes de agua. • Separación de aguas pluviales y residuales para evitar sobrecargas. • Instalación de plataformas elevadas para motores, cuadros eléctricos y sistemas de control. • Sellado de pozos y cámaras para evitar entrada de agua salina. • Instalación de sensores de nivel del mar, presión atmosférica y caudal en zonas costeras. • Integración con sistemas de protección civil y protocolos de emergencia. • Implantación de sistemas inteligentes de control y gestión remota. | F15: • Construcción de diques, muros de contención y barreras vegetales en estaciones de bombeo y depuración cercanas al litoral. • Reforzamiento estructural de instalaciones vulnerables. • Sellado de colectores y pozos para evitar la entrada de agua salina durante marejadas. • Instalación de válvulas antirretorno en zonas de riesgo. • Instalación de plataformas elevadas para motores, cuadros eléctricos y sistemas de control. • Diseño modular que facilite el desmontaje rápido en caso de emergencia. • Instalación de sensores de nivel del mar, presión atmosférica y salinidad en zonas costeras. • Integración con sistemas de alerta temprana y protocolos de emergencia. • Implantación de sistemas inteligentes de control y gestión remota. | G15: • Ampliación de colectores y sistemas de drenaje para manejar caudales más variables y extremos. • Separación de redes de aguas pluviales y residuales • Construcción de tanques de tormenta, balsas de retención y zonas de infiltración. • Integración con estaciones de bombeo y depuración. • Protección frente a infiltraciones y saturación hídrica. • Uso de materiales resistentes y sistemas de sellado. • Instalación de sensores de lluvia, caudal, presión y nivel en puntos estratégicos. • Integración con sistemas de alerta temprana y protocolos de emergencia. • Implantación de sistemas inteligentes para la gestión remota de redes y estaciones. | H15: • Redimensionamiento de colectores y redes de saneamiento para manejar grandes volúmenes de agua. • Separación de aguas pluviales y residuales para evitar sobrecargas. • Instalación de plataformas elevadas para motores, cuadros eléctricos y sistemas de control. • Sellado de pozos y cámaras para evitar entrada de agua salina. • Instalación de sensores de nivel del mar, presión atmosférica y caudal en zonas costeras. • Integración con sistemas de protección civil y protocolos de emergencia. • Implantación de sistemas inteligentes de control y gestión remota. | I15: • Redimensionamiento de colectores y redes de saneamiento para manejar grandes volúmenes de agua. • Separación de aguas pluviales y residuales para evitar sobrecargas. • Instalación de plataformas elevadas para motores, cuadros eléctricos y sistemas de control. • Integración con sistemas de protección civil y protocolos de emergencia. • Implantación de sistemas inteligentes de control y gestión remota. | J15: • Desarrollo de sistemas de captación y almacenamiento de agua subterránea como alternativa a la pérdida de nieve como fuente hídrica. • Construcción de balsas, depósitos y humedales artificiales en zonas de montaña. • Integración con redes de abastecimiento y depuración. • Modernización de tuberías y estaciones de bombeo en concejos con alta dependencia de fuentes nivosas. • Mejora de la eficiencia energética y reducción de pérdidas. • Instalación de sensores de temperatura, acumulación de nieve y velocidad de deshielo. • Integración con sistemas de alerta y planificación de recursos hídrico | K15: • Cubrición de tanques y canales abiertos para reducir la exposición solar. • Aireación controlada para evitar la formación de zonas anaerobias. • Uso de tecnologías de depuración avanzadas que permiten mayor control de temperatura y carga orgánica. • Monitorización continua de parámetros físicoquímicos (temperatura, turbidez, cloro residual). • Uso de materiales resistentes a altas temperaturas (polietileno reticulado, acero inoxidable). • Digitalización del ciclo del agua con sensores inteligentes y telegestión | L15: • Cubrición de tanques y canales abiertos para reducir la exposición solar. • Aireación controlada para evitar la formación de zonas anaerobias. • Uso de tecnologías de depuración avanzadas que permiten mayor control de temperatura y carga orgánica. • Monitorización continua de parámetros físicoquímicos (temperatura, turbidez, cloro residual). • Uso de materiales resistentes a altas temperaturas (polietileno reticulado, acero inoxidable). • Digitalización del ciclo del agua con sensores inteligentes y telegestión | M15: • Impermeabilización de colectores y tanques para evitar infiltraciones en zonas inestables. • Separación de redes de pluviales y residuales para reducir el volumen en episodios de lluvia. • Instalación de sistemas de drenaje sostenible para controlar el escurrimiento superficial. • Uso de tuberías flexibles y articuladas que toleren deformaciones. • Instalación de válvulas de corte sectorizadas para aislar tramos en caso de emergencia. • Diseño de cámaras de válvulas y registros con cimentaciones profundas o flotantes. • Canalización segura de escorrentías para evitar erosión en taludes cercanos. • Sistema de alerta temprana con sensores de inclinación y humedad del suelo. • Protección perimetral con muros de contención y vegetación estabilizadora. | N15: • Cubrición de tanques y canales abiertos para evitar dispersión de olores y aerosoles. • Barreras vegetales o cortavientos artificiales para reducir la velocidad del viento en zonas expuestas. • Refuerzo estructural de elementos expuestos (cubiertas, chimeneas, sistemas de ventilación). • Diseño aerodinámico de depósitos elevados para reducir la resistencia al viento. • Instalación de filtros en entradas de aire para evitar contaminación por partículas. • Anclajes reforzados en estructuras expuestas. • Protección física de registros y válvulas con tapas reforzadas y estructuras antivandálicas. • Mantenimiento preventivo de vegetación cercana para evitar caída de ramas. • Diseño estructural resistente a vientos extremos (según normativa CTE y Eurocódigos). • Protección de sistemas de ventilación y aireación con rejillas antiviento. | O15: • Cubrición de tanques y canales abiertos para evitar dispersión de olores y aerosoles. • Barreras vegetales o cortavientos artificiales para reducir la velocidad del viento en zonas expuestas. • Refuerzo estructural de elementos expuestos (cubiertas, chimeneas, sistemas de ventilación). • Diseño aerodinámico de depósitos elevados para reducir la resistencia al viento. • Instalación de filtros en entradas de aire para evitar contaminación por partículas. • Anclajes reforzados en estructuras expuestas. • Protección física de registros y válvulas con tapas reforzadas y estructuras antivandálicas. • Mantenimiento preventivo de vegetación cercana para evitar caída de ramas. • Diseño estructural resistente a vientos extremos (según normativa CTE y Eurocódigos). • Protección de sistemas de ventilación y aireación con rejillas antiviento.
B16: Agua | C16: Actuaciones sobre sistemas de abastecimiento | D16: • Impermeabilización y refuerzo de redes de saneamiento • Elevación de equipos críticos • Monitoreo de nivel del mar y salinidad en zonas costeras • Implantación de sistemas inteligentes de control y gestión remota. | E16: • Redimensionamiento de colectores y redes de saneamiento para manejar grandes volúmenes de agua. • Separación de aguas pluviales y residuales para evitar sobrecargas. • Instalación de plataformas elevadas para motores, cuadros eléctricos y sistemas de control. • Sellado de pozos y cámaras para evitar entrada de agua salina. • Instalación de sensores de nivel del mar, presión atmosférica y caudal en zonas costeras. • Integración con sistemas de protección civil y protocolos de emergencia. • Implantación de sistemas inteligentes de control y gestión remota. | F16: • Construcción de diques, muros de contención y barreras vegetales en estaciones de bombeo y depuración cercanas al litoral. • Reforzamiento estructural de instalaciones vulnerables. • Sellado de colectores y pozos para evitar la entrada de agua salina durante marejadas. • Instalación de válvulas antirretorno en zonas de riesgo. • Instalación de plataformas elevadas para motores, cuadros eléctricos y sistemas de control. • Diseño modular que facilite el desmontaje rápido en caso de emergencia. • Instalación de sensores de nivel del mar, presión atmosférica y salinidad en zonas costeras. • Integración con sistemas de alerta temprana y protocolos de emergencia. • Implantación de sistemas inteligentes de control y gestión remota. | G16: • Ampliación de colectores y sistemas de drenaje para manejar caudales más variables y extremos. • Separación de redes de aguas pluviales y residuales • Construcción de tanques de tormenta, balsas de retención y zonas de infiltración. • Integración con estaciones de bombeo y depuración. • Protección frente a infiltraciones y saturación hídrica. • Uso de materiales resistentes y sistemas de sellado. • Instalación de sensores de lluvia, caudal, presión y nivel en puntos estratégicos. • Integración con sistemas de alerta temprana y protocolos de emergencia. • Implantación de sistemas inteligentes para la gestión remota de redes y estaciones. | H16: • Redimensionamiento de colectores y redes de saneamiento para manejar grandes volúmenes de agua. • Separación de aguas pluviales y residuales para evitar sobrecargas. • Instalación de plataformas elevadas para motores, cuadros eléctricos y sistemas de control. • Sellado de pozos y cámaras para evitar entrada de agua salina. • Instalación de sensores de nivel del mar, presión atmosférica y caudal en zonas costeras. • Integración con sistemas de protección civil y protocolos de emergencia. • Implantación de sistemas inteligentes de control y gestión remota. | I16: • Redimensionamiento de colectores y redes de saneamiento para manejar grandes volúmenes de agua. • Separación de aguas pluviales y residuales para evitar sobrecargas. • Instalación de plataformas elevadas para motores, cuadros eléctricos y sistemas de control. • Integración con sistemas de protección civil y protocolos de emergencia. • Implantación de sistemas inteligentes de control y gestión remota. | J16: • Desarrollo de sistemas de captación y almacenamiento de agua subterránea como alternativa a la pérdida de nieve como fuente hídrica. • Construcción de balsas, depósitos y humedales artificiales en zonas de montaña. • Integración con redes de abastecimiento y depuración. • Modernización de tuberías y estaciones de bombeo en concejos con alta dependencia de fuentes nivosas. • Mejora de la eficiencia energética y reducción de pérdidas. • Instalación de sensores de temperatura, acumulación de nieve y velocidad de deshielo. • Integración con sistemas de alerta y planificación de recursos hídrico | K16: • Cubrición de tanques y canales abiertos para reducir la exposición solar. • Aireación controlada para evitar la formación de zonas anaerobias. • Uso de tecnologías de depuración avanzadas que permiten mayor control de temperatura y carga orgánica. • Monitorización continua de parámetros físicoquímicos (temperatura, turbidez, cloro residual). • Uso de materiales resistentes a altas temperaturas (polietileno reticulado, acero inoxidable). • Digitalización del ciclo del agua con sensores inteligentes y telegestión | L16: • Cubrición de tanques y canales abiertos para reducir la exposición solar. • Aireación controlada para evitar la formación de zonas anaerobias. • Uso de tecnologías de depuración avanzadas que permiten mayor control de temperatura y carga orgánica. • Monitorización continua de parámetros físicoquímicos (temperatura, turbidez, cloro residual). • Uso de materiales resistentes a altas temperaturas (polietileno reticulado, acero inoxidable). • Digitalización del ciclo del agua con sensores inteligentes y telegestión | M16: • Impermeabilización de colectores y tanques para evitar infiltraciones en zonas inestables. • Separación de redes de pluviales y residuales para reducir el volumen en episodios de lluvia. • Instalación de sistemas de drenaje sostenible para controlar el escurrimiento superficial. • Uso de tuberías flexibles y articuladas que toleren deformaciones. • Instalación de válvulas de corte sectorizadas para aislar tramos en caso de emergencia. • Diseño de cámaras de válvulas y registros con cimentaciones profundas o flotantes. • Canalización segura de escorrentías para evitar erosión en taludes cercanos. • Sistema de alerta temprana con sensores de inclinación y humedad del suelo. • Protección perimetral con muros de contención y vegetación estabilizadora. | N16: • Cubrición de tanques y canales abiertos para evitar dispersión de olores y aerosoles. • Barreras vegetales o cortavientos artificiales para reducir la velocidad del viento en zonas expuestas. • Refuerzo estructural de elementos expuestos (cubiertas, chimeneas, sistemas de ventilación). • Diseño aerodinámico de depósitos elevados para reducir la resistencia al viento. • Instalación de filtros en entradas de aire para evitar contaminación por partículas. • Anclajes reforzados en estructuras expuestas. • Protección física de registros y válvulas con tapas reforzadas y estructuras antivandálicas. • Mantenimiento preventivo de vegetación cercana para evitar caída de ramas. • Diseño estructural resistente a vientos extremos (según normativa CTE y Eurocódigos). • Protección de sistemas de ventilación y aireación con rejillas antiviento. | O16: • Cubrición de tanques y canales abiertos para evitar dispersión de olores y aerosoles. • Barreras vegetales o cortavientos artificiales para reducir la velocidad del viento en zonas expuestas. • Refuerzo estructural de elementos expuestos (cubiertas, chimeneas, sistemas de ventilación). • Diseño aerodinámico de depósitos elevados para reducir la resistencia al viento. • Instalación de filtros en entradas de aire para evitar contaminación por partículas. • Anclajes reforzados en estructuras expuestas. • Protección física de registros y válvulas con tapas reforzadas y estructuras antivandálicas. • Mantenimiento preventivo de vegetación cercana para evitar caída de ramas. • Diseño estructural resistente a vientos extremos (según normativa CTE y Eurocódigos). • Protección de sistemas de ventilación y aireación con rejillas antiviento.
B17: Agua | C17: Actuaciones de preservación, preparación y protección de los recursos hídricos | D17: • Diseño de encauzamientos con capacidad de absorción de crecidas y sistemas de alivio hacia zonas seguras. • Construcción de compuertas y válvulas antirretorno en desembocaduras para evitar entrada de agua marina en crecidas. • Revegetación de márgenes fluviales con especies resistentes a salinidad para estabilizar suelos. • Uso de técnicas blandas de protección costera como barreras vegetales, restauración de dunas y playas | E17: • Diseño de cauces con zonas de expansión controlada para permitir el desbordamiento en áreas seguras. • Encauzamientos con vegetación natural que ralentiza el flujo y mejora la infiltración. • Uso de materiales permeables y flexibles en estructuras para facilitar el drenaje y reducir la presión hidráulica. • Instalación de compuertas antirretorno para evitar la entrada de agua marina en crecidas fluviales. • Elevación de márgenes y muros de contención en zonas urbanas costeras. • Refuerzo de taludes y estructuras con geotextiles y vegetación estabilizadora. • Limpieza periódica de cauces y retirada de obstáculos que puedan agravar el desbordamiento. • Revisión estructural de encauzamientos antiguos para adaptarlos a nuevos escenarios climáticos. | F17: • Diseño de encauzamientos con capacidad de absorción de crecidas y sistemas de alivio hacia zonas seguras. • Construcción de compuertas y válvulas antirretorno en desembocaduras para evitar entrada de agua marina en crecidas. • Revegetación de márgenes fluviales con especies resistentes a salinidad para estabilizar suelos. • Uso de técnicas blandas de protección costera como barreras vegetales, restauración de dunas y playas | G17: • Sobredimensionamiento de secciones de cauce para admitir caudales extremos. • Encauzamientos con borde libre elevado para evitar desbordamientos. • Espigones y defensas ribereñas con materiales flexibles (gaviones, enrocados) que toleren erosión progresiva. • Restauración de riberas y zonas de inundación natural para amortiguar crecidas. • Vegetación estabilizadora en márgenes para reducir erosión y mejorar infiltración. • Zonas de retención temporal (humedales artificiales, llanuras de inundación) para almacenar excedentes. • Instalación de sensores de nivel y caudal en puntos críticos. • Uso de materiales resistentes a la erosión y al impacto hidráulico. • Cimentaciones profundas o flexibles en estructuras expuestas a socavación. • Diseño modular y accesible para mantenimiento frecuente | H17: • Encauzamientos resilientes con borde libre elevado • Instalación de compuertas y válvulas antirretorno • Plantación de vegetación ribereña, restauración de marismas y dunas. • Construcción de depósitos subterráneos o zonas de laminación | I17: • Encauzamientos resilientes con borde libre elevado • Instalación de compuertas y válvulas antirretorno • Plantación de vegetación ribereña, restauración de marismas y dunas. • Construcción de depósitos subterráneos o zonas de laminación | J17: • Construcción de zonas de laminación y retención temporal • Revegetación de cabeceras de cuenca mediante la plantación de especies autóctonas resistentes al frío y a la escorrentía • Adaptar los cauces a variaciones extremas de caudal mediante el uso de materiales adecuados • Monitoreo hidrometeorológico en zonas nivalizadas mediante estaciones automáticas de medición de nieve, temperatura y caudal. | K17: • Plantación de especies adaptadas al clima local que proporcionen sombra y estabilicen los márgenes. • Diseño de encauzamientos con refugios térmico • Instalación de sensores en puntos estratégicos del cauce | L17: • Plantación de especies adaptadas al clima local que proporcionen sombra y estabilicen los márgenes. • Diseño de encauzamientos con refugios térmico • Instalación de sensores en puntos estratégicos del cauce | M17: • Uso de técnicas como fajinas, empalizadas vivas, estacas vegetales y mantas orgánicas para lograr la estabilización de márgenes. • Incorporación de sistemas de drenaje en estructuras de encauzamiento para evitar acumulación de agua en taludes • Plantación de especies arbóreas y arbustivas en zonas de cabecera y laderas inestables • Diseño de estructuras flexibles y adaptativas • Instalación de sensores de humedad, inclinación y presión en zonas críticas de ladera. | N17: • Diseño aerodinámico y reforzado de estructuras expuestas • Uso de vegetación densa (árboles, arbustos) o pantallas físicas en zonas expuestas del cauce. • Protección de taludes y márgenes con bioingeniería • Cubiertas en zonas técnicas, sellado de compuertas y protección de sistemas eléctricos o hidráulicos. | O17: • Diseño aerodinámico y reforzado de estructuras expuestas • Uso de vegetación densa (árboles, arbustos) o pantallas físicas en zonas expuestas del cauce. • Protección de taludes y márgenes con bioingeniería • Cubiertas en zonas técnicas, sellado de compuertas y protección de sistemas eléctricos o hidráulicos.
B18: Agua | C18: Instalaciones de distribución | D18: • Impermeabilización y refuerzo de redes de saneamiento • Elevación de equipos críticos • Monitoreo de nivel del mar y salinidad en zonas costeras • Implantación de sistemas inteligentes de control y gestión remota. | E18: • Redimensionamiento de colectores y redes de saneamiento para manejar grandes volúmenes de agua. • Separación de aguas pluviales y residuales para evitar sobrecargas. • Instalación de plataformas elevadas para motores, cuadros eléctricos y sistemas de control. • Sellado de pozos y cámaras para evitar entrada de agua salina. • Instalación de sensores de nivel del mar, presión atmosférica y caudal en zonas costeras. • Integración con sistemas de protección civil y protocolos de emergencia. • Implantación de sistemas inteligentes de control y gestión remota. | F18: • Construcción de diques, muros de contención y barreras vegetales en estaciones de bombeo y depuración cercanas al litoral. • Reforzamiento estructural de instalaciones vulnerables. • Sellado de colectores y pozos para evitar la entrada de agua salina durante marejadas. • Instalación de válvulas antirretorno en zonas de riesgo. • Instalación de plataformas elevadas para motores, cuadros eléctricos y sistemas de control. • Diseño modular que facilite el desmontaje rápido en caso de emergencia. • Instalación de sensores de nivel del mar, presión atmosférica y salinidad en zonas costeras. • Integración con sistemas de alerta temprana y protocolos de emergencia. • Implantación de sistemas inteligentes de control y gestión remota. | G18: • Ampliación de colectores y sistemas de drenaje para manejar caudales más variables y extremos. • Separación de redes de aguas pluviales y residuales • Construcción de tanques de tormenta, balsas de retención y zonas de infiltración. • Integración con estaciones de bombeo y depuración. • Protección frente a infiltraciones y saturación hídrica. • Uso de materiales resistentes y sistemas de sellado. • Instalación de sensores de lluvia, caudal, presión y nivel en puntos estratégicos. • Integración con sistemas de alerta temprana y protocolos de emergencia. • Implantación de sistemas inteligentes para la gestión remota de redes y estaciones. | H18: • Redimensionamiento de colectores y redes de saneamiento para manejar grandes volúmenes de agua. • Separación de aguas pluviales y residuales para evitar sobrecargas. • Instalación de plataformas elevadas para motores, cuadros eléctricos y sistemas de control. • Sellado de pozos y cámaras para evitar entrada de agua salina. • Instalación de sensores de nivel del mar, presión atmosférica y caudal en zonas costeras. • Integración con sistemas de protección civil y protocolos de emergencia. • Implantación de sistemas inteligentes de control y gestión remota. | I18: • Redimensionamiento de colectores y redes de saneamiento para manejar grandes volúmenes de agua. • Separación de aguas pluviales y residuales para evitar sobrecargas. • Instalación de plataformas elevadas para motores, cuadros eléctricos y sistemas de control. • Integración con sistemas de protección civil y protocolos de emergencia. • Implantación de sistemas inteligentes de control y gestión remota. | J18: • Desarrollo de sistemas de captación y almacenamiento de agua subterránea como alternativa a la pérdida de nieve como fuente hídrica. • Construcción de balsas, depósitos y humedales artificiales en zonas de montaña. • Integración con redes de abastecimiento y depuración. • Modernización de tuberías y estaciones de bombeo en concejos con alta dependencia de fuentes nivosas. • Mejora de la eficiencia energética y reducción de pérdidas. • Instalación de sensores de temperatura, acumulación de nieve y velocidad de deshielo. • Integración con sistemas de alerta y planificación de recursos hídrico | K18: • Cubrición de tanques y canales abiertos para reducir la exposición solar. • Aireación controlada para evitar la formación de zonas anaerobias. • Uso de tecnologías de depuración avanzadas que permiten mayor control de temperatura y carga orgánica. • Monitorización continua de parámetros físicoquímicos (temperatura, turbidez, cloro residual). • Uso de materiales resistentes a altas temperaturas (polietileno reticulado, acero inoxidable). • Digitalización del ciclo del agua con sensores inteligentes y telegestión | L18: • Cubrición de tanques y canales abiertos para reducir la exposición solar. • Aireación controlada para evitar la formación de zonas anaerobias. • Uso de tecnologías de depuración avanzadas que permiten mayor control de temperatura y carga orgánica. • Monitorización continua de parámetros físicoquímicos (temperatura, turbidez, cloro residual). • Uso de materiales resistentes a altas temperaturas (polietileno reticulado, acero inoxidable). • Digitalización del ciclo del agua con sensores inteligentes y telegestión | M18: • Impermeabilización de colectores y tanques para evitar infiltraciones en zonas inestables. • Separación de redes de pluviales y residuales para reducir el volumen en episodios de lluvia. • Instalación de sistemas de drenaje sostenible para controlar el escurrimiento superficial. • Uso de tuberías flexibles y articuladas que toleren deformaciones. • Instalación de válvulas de corte sectorizadas para aislar tramos en caso de emergencia. • Diseño de cámaras de válvulas y registros con cimentaciones profundas o flotantes. • Canalización segura de escorrentías para evitar erosión en taludes cercanos. • Sistema de alerta temprana con sensores de inclinación y humedad del suelo. • Protección perimetral con muros de contención y vegetación estabilizadora. | N18: • Cubrición de tanques y canales abiertos para evitar dispersión de olores y aerosoles. • Barreras vegetales o cortavientos artificiales para reducir la velocidad del viento en zonas expuestas. • Refuerzo estructural de elementos expuestos (cubiertas, chimeneas, sistemas de ventilación). • Diseño aerodinámico de depósitos elevados para reducir la resistencia al viento. • Instalación de filtros en entradas de aire para evitar contaminación por partículas. • Anclajes reforzados en estructuras expuestas. • Protección física de registros y válvulas con tapas reforzadas y estructuras antivandálicas. • Mantenimiento preventivo de vegetación cercana para evitar caída de ramas. • Diseño estructural resistente a vientos extremos (según normativa CTE y Eurocódigos). • Protección de sistemas de ventilación y aireación con rejillas antiviento. | O18: • Cubrición de tanques y canales abiertos para evitar dispersión de olores y aerosoles. • Barreras vegetales o cortavientos artificiales para reducir la velocidad del viento en zonas expuestas. • Refuerzo estructural de elementos expuestos (cubiertas, chimeneas, sistemas de ventilación). • Diseño aerodinámico de depósitos elevados para reducir la resistencia al viento. • Instalación de filtros en entradas de aire para evitar contaminación por partículas. • Anclajes reforzados en estructuras expuestas. • Protección física de registros y válvulas con tapas reforzadas y estructuras antivandálicas. • Mantenimiento preventivo de vegetación cercana para evitar caída de ramas. • Diseño estructural resistente a vientos extremos (según normativa CTE y Eurocódigos). • Protección de sistemas de ventilación y aireación con rejillas antiviento.
B19: Agua | C19: Pantalán | D19: • Aumentar la altura de la estructura para anticiparse a futuros incrementos del nivel del mar y a eventos extremos como marejadas ciclónicas. • Uso de materiales resistentes a la erosión marina • Incorporar formas curvas o escalonadas que disipen la energía del oleaje y reduzcan el desgaste estructural, mejorando la estabilidad frente a temporales. • En el caso de escolleras, utilizar vegetación costera (como marismas o praderas marinas) que actúe como barrera natural y mejore la absorción del impacto del agua. • En el caso de escolleras, instalar sensores para controlar el nivel del mar, la presión del oleaje y el estado estructural, permitiendo intervenciones preventivas y ajustes en tiempo real. | E19: • Aumentar la altura de la estructura para anticiparse a futuros incrementos del nivel del mar y a eventos extremos como marejadas ciclónicas. • Uso de materiales resistentes a la erosión marina • Incorporar formas curvas o escalonadas que disipen la energía del oleaje y reduzcan el desgaste estructural, mejorando la estabilidad frente a temporales. • En el caso de escolleras, utilizar vegetación costera (como marismas o praderas marinas) que actúe como barrera natural y mejore la absorción del impacto del agua. • En el caso de escolleras, instalar sensores para controlar el nivel del mar, la presión del oleaje y el estado estructural, permitiendo intervenciones preventivas y ajustes en tiempo real. | F19: • Aumentar la altura de la estructura para anticiparse a futuros incrementos del nivel del mar y a eventos extremos como marejadas ciclónicas. • Uso de materiales resistentes a la erosión marina • Incorporar formas curvas o escalonadas que disipen la energía del oleaje y reduzcan el desgaste estructural, mejorando la estabilidad frente a temporales. • En el caso de escolleras, utilizar vegetación costera (como marismas o praderas marinas) que actúe como barrera natural y mejore la absorción del impacto del agua. • En el caso de escolleras, instalar sensores para controlar el nivel del mar, la presión del oleaje y el estado estructural, permitiendo intervenciones preventivas y ajustes en tiempo real. | G19: • Incorporar canales, filtros y drenajes en la estructura para facilitar la evacuación del agua de lluvia acumulada y evitar sobrecargas o desbordamientos. • Emplear materiales que permitan cierta infiltración controlada y que resistan la saturación prolongada sin perder estabilidad, como geotextiles o bloques drenantes. • Vegetación estabilizadora en taludes y zonas adyacentes mediante la plantación de especies autóctonas con raíces profundas que ayuden a fijar el terreno y reducir la escorrentía superficial, disminuyendo el riesgo de erosión. • Establecer sistemas de vigilancia para controlar el estado de la escollera tras eventos de lluvia intensa, y realizar inspecciones periódicas para detectar daños o acumulaciones de sedimentos | H19: • Aumentar la altura de la estructura para anticiparse a futuros incrementos del nivel del mar y a eventos extremos como marejadas ciclónicas. • Uso de materiales resistentes a la erosión marina • Incorporar formas curvas o escalonadas que disipen la energía del oleaje y reduzcan el desgaste estructural, mejorando la estabilidad frente a temporales. • En el caso de escolleras, utilizar vegetación costera (como marismas o praderas marinas) que actúe como barrera natural y mejore la absorción del impacto del agua. • En el caso de escolleras, instalar sensores para controlar el nivel del mar, la presión del oleaje y el estado estructural, permitiendo intervenciones preventivas y ajustes en tiempo real. | I19: • Aumentar la altura de la estructura para anticiparse a futuros eventos extremos • Incorporar formas curvas o escalonadas que disipen la energía del oleaje y reduzcan el desgaste estructural, mejorando la estabilidad frente a temporales. • En el caso de escolleras, utilizar vegetación costera (como marismas o praderas marinas) que actúe como barrera natural y mejore la absorción del impacto del agua. • En el caso de escolleras, instalar sensores para controlar el nivel del mar, la presión del oleaje y el estado estructural, permitiendo intervenciones preventivas y ajustes en tiempo real. | J19: • Diseñar los proyectos para resistir el aumento de caudales superficiales provocados por lluvias intensas en lugar de acumulación nival, incluyendo materiales de alta resistencia hidráulica. • Incorporación de sistemas de drenaje eficientes • Reforzar taludes y zonas cercanas con vegetación autóctona, geotextiles o muros de contención para prevenir deslizamientos provocados por saturación del suelo. • Instalar sensores para controlar la humedad del terreno, el nivel de agua y posibles desplazamientos, permitiendo una respuesta temprana ante eventos extremos. • Permitir futuras ampliaciones o ajustes en la estructura según la evolución del clima, | K19: • Uso de materiales resistentes a la expansión térmica: • Incorporar juntas flexibles en la estructura para permitir la expansión controlada de los materiales sin comprometer la estabilidad de la escollera. • Aplicar tratamientos o revestimientos reflectantes en las superficies expuestas para reducir la absorción de calor y prolongar la vida útil de los materiales. • Plantar especies resistentes a temperaturas elevadas en zonas adyacentes para reducir el calentamiento del entorno y mejorar la estabilidad del terreno. • Instalar sensores para controlar la temperatura de los materiales y detectar posibles deformaciones o tensiones que puedan afectar la escollera. | L19: • Uso de materiales resistentes a la expansión térmica: • Incorporar juntas flexibles en la estructura para permitir la expansión controlada de los materiales sin comprometer la estabilidad de la escollera. • Aplicar tratamientos o revestimientos reflectantes en las superficies expuestas para reducir la absorción de calor y prolongar la vida útil de los materiales. • Plantar especies resistentes a temperaturas elevadas en zonas adyacentes para reducir el calentamiento del entorno y mejorar la estabilidad del terreno. • Instalar sensores para controlar la temperatura de los materiales y detectar posibles deformaciones o tensiones que puedan afectar la escollera. | M19: • Realizar análisis detallados del terreno para identificar zonas con alta susceptibilidad a deslizamientos, fallas o saturación hídrica que puedan comprometer la estabilidad de la galería. • Incorporar revestimientos resistentes, sistemas de sostenimiento (como cerchas, bulones o anclajes) y juntas de dilatación que permitan absorber deformaciones del terreno sin comprometer la integridad de la galería. • Instalar drenajes perimetrales y subterráneos para controlar la infiltración de agua y reducir la presión hidrostática que puede desencadenar movimientos de ladera. • Implementar sensores de desplazamiento, inclinómetros y sistemas de alerta temprana para detectar movimientos anómalos y activar protocolos de intervención rápida. • Reforzar taludes cercanos mediante muros de contención, mallas metálicas, vegetación estabilizadora o geotextiles para evitar que los movimientos superficiales afecten la galería subterránea. | N19: • Incorporar formas curvas o inclinadas que reduzcan la resistencia al viento y minimicen el impacto directo sobre la estructura. • Utilizar bloques de hormigón, rocas o elementos prefabricados que soporten la presión del viento y posibles impactos de objetos arrastrados. • Asegurar que los componentes de la escollera estén firmemente anclados al terreno para evitar desplazamientos o colapsos por ráfagas intensas. • Minimizar o reforzar componentes vulnerables como barandillas, señalización o accesos, que puedan desprenderse o deteriorarse por el viento. | O19: • Incorporar formas curvas o inclinadas que reduzcan la resistencia al viento y minimicen el impacto directo sobre la estructura. • Utilizar bloques de hormigón, rocas o elementos prefabricados que soporten la presión del viento y posibles impactos de objetos arrastrados. • Asegurar que los componentes de la escollera estén firmemente anclados al terreno para evitar desplazamientos o colapsos por ráfagas intensas. • Minimizar o reforzar componentes vulnerables como barandillas, señalización o accesos, que puedan desprenderse o deteriorarse por el viento.
B20: Agua | C20: Estructuras marítimas | D20: • Aumentar la altura de la estructura para anticiparse a futuros incrementos del nivel del mar y a eventos extremos como marejadas ciclónicas. • Uso de materiales resistentes a la erosión marina • Incorporar formas curvas o escalonadas que disipen la energía del oleaje y reduzcan el desgaste estructural, mejorando la estabilidad frente a temporales. • En el caso de escolleras, utilizar vegetación costera (como marismas o praderas marinas) que actúe como barrera natural y mejore la absorción del impacto del agua. • En el caso de escolleras, instalar sensores para controlar el nivel del mar, la presión del oleaje y el estado estructural, permitiendo intervenciones preventivas y ajustes en tiempo real. | E20: • Aumentar la altura de la estructura para anticiparse a futuros incrementos del nivel del mar y a eventos extremos como marejadas ciclónicas. • Uso de materiales resistentes a la erosión marina • Incorporar formas curvas o escalonadas que disipen la energía del oleaje y reduzcan el desgaste estructural, mejorando la estabilidad frente a temporales. • En el caso de escolleras, utilizar vegetación costera (como marismas o praderas marinas) que actúe como barrera natural y mejore la absorción del impacto del agua. • En el caso de escolleras, instalar sensores para controlar el nivel del mar, la presión del oleaje y el estado estructural, permitiendo intervenciones preventivas y ajustes en tiempo real. | F20: • Aumentar la altura de la estructura para anticiparse a futuros incrementos del nivel del mar y a eventos extremos como marejadas ciclónicas. • Uso de materiales resistentes a la erosión marina • Incorporar formas curvas o escalonadas que disipen la energía del oleaje y reduzcan el desgaste estructural, mejorando la estabilidad frente a temporales. • En el caso de escolleras, utilizar vegetación costera (como marismas o praderas marinas) que actúe como barrera natural y mejore la absorción del impacto del agua. • En el caso de escolleras, instalar sensores para controlar el nivel del mar, la presión del oleaje y el estado estructural, permitiendo intervenciones preventivas y ajustes en tiempo real. | G20: • Incorporar canales, filtros y drenajes en la estructura para facilitar la evacuación del agua de lluvia acumulada y evitar sobrecargas o desbordamientos. • Emplear materiales que permitan cierta infiltración controlada y que resistan la saturación prolongada sin perder estabilidad, como geotextiles o bloques drenantes. • Vegetación estabilizadora en taludes y zonas adyacentes mediante la plantación de especies autóctonas con raíces profundas que ayuden a fijar el terreno y reducir la escorrentía superficial, disminuyendo el riesgo de erosión. • Establecer sistemas de vigilancia para controlar el estado de la escollera tras eventos de lluvia intensa, y realizar inspecciones periódicas para detectar daños o acumulaciones de sedimentos | H20: • Aumentar la altura de la estructura para anticiparse a futuros incrementos del nivel del mar y a eventos extremos como marejadas ciclónicas. • Uso de materiales resistentes a la erosión marina • Incorporar formas curvas o escalonadas que disipen la energía del oleaje y reduzcan el desgaste estructural, mejorando la estabilidad frente a temporales. • En el caso de escolleras, utilizar vegetación costera (como marismas o praderas marinas) que actúe como barrera natural y mejore la absorción del impacto del agua. • En el caso de escolleras, instalar sensores para controlar el nivel del mar, la presión del oleaje y el estado estructural, permitiendo intervenciones preventivas y ajustes en tiempo real. | I20: • Aumentar la altura de la estructura para anticiparse a futuros eventos extremos • Incorporar formas curvas o escalonadas que disipen la energía del oleaje y reduzcan el desgaste estructural, mejorando la estabilidad frente a temporales. • En el caso de escolleras, utilizar vegetación costera (como marismas o praderas marinas) que actúe como barrera natural y mejore la absorción del impacto del agua. • En el caso de escolleras, instalar sensores para controlar el nivel del mar, la presión del oleaje y el estado estructural, permitiendo intervenciones preventivas y ajustes en tiempo real. | J20: • Diseñar los proyectos para resistir el aumento de caudales superficiales provocados por lluvias intensas en lugar de acumulación nival, incluyendo materiales de alta resistencia hidráulica. • Incorporación de sistemas de drenaje eficientes • Reforzar taludes y zonas cercanas con vegetación autóctona, geotextiles o muros de contención para prevenir deslizamientos provocados por saturación del suelo. • Instalar sensores para controlar la humedad del terreno, el nivel de agua y posibles desplazamientos, permitiendo una respuesta temprana ante eventos extremos. • Permitir futuras ampliaciones o ajustes en la estructura según la evolución del clima, | K20: • Uso de materiales resistentes a la expansión térmica: • Incorporar juntas flexibles en la estructura para permitir la expansión controlada de los materiales sin comprometer la estabilidad de la escollera. • Aplicar tratamientos o revestimientos reflectantes en las superficies expuestas para reducir la absorción de calor y prolongar la vida útil de los materiales. • Plantar especies resistentes a temperaturas elevadas en zonas adyacentes para reducir el calentamiento del entorno y mejorar la estabilidad del terreno. • Instalar sensores para controlar la temperatura de los materiales y detectar posibles deformaciones o tensiones que puedan afectar la escollera. | L20: • Uso de materiales resistentes a la expansión térmica: • Incorporar juntas flexibles en la estructura para permitir la expansión controlada de los materiales sin comprometer la estabilidad de la escollera. • Aplicar tratamientos o revestimientos reflectantes en las superficies expuestas para reducir la absorción de calor y prolongar la vida útil de los materiales. • Plantar especies resistentes a temperaturas elevadas en zonas adyacentes para reducir el calentamiento del entorno y mejorar la estabilidad del terreno. • Instalar sensores para controlar la temperatura de los materiales y detectar posibles deformaciones o tensiones que puedan afectar la escollera. | M20: • Realizar análisis detallados del terreno para identificar zonas con alta susceptibilidad a deslizamientos, fallas o saturación hídrica que puedan comprometer la estabilidad de la galería. • Incorporar revestimientos resistentes, sistemas de sostenimiento (como cerchas, bulones o anclajes) y juntas de dilatación que permitan absorber deformaciones del terreno sin comprometer la integridad de la galería. • Instalar drenajes perimetrales y subterráneos para controlar la infiltración de agua y reducir la presión hidrostática que puede desencadenar movimientos de ladera. • Implementar sensores de desplazamiento, inclinómetros y sistemas de alerta temprana para detectar movimientos anómalos y activar protocolos de intervención rápida. • Reforzar taludes cercanos mediante muros de contención, mallas metálicas, vegetación estabilizadora o geotextiles para evitar que los movimientos superficiales afecten la galería subterránea. | N20: • Incorporar formas curvas o inclinadas que reduzcan la resistencia al viento y minimicen el impacto directo sobre la estructura. • Utilizar bloques de hormigón, rocas o elementos prefabricados que soporten la presión del viento y posibles impactos de objetos arrastrados. • Asegurar que los componentes de la escollera estén firmemente anclados al terreno para evitar desplazamientos o colapsos por ráfagas intensas. • Minimizar o reforzar componentes vulnerables como barandillas, señalización o accesos, que puedan desprenderse o deteriorarse por el viento. | O20: • Incorporar formas curvas o inclinadas que reduzcan la resistencia al viento y minimicen el impacto directo sobre la estructura. • Utilizar bloques de hormigón, rocas o elementos prefabricados que soporten la presión del viento y posibles impactos de objetos arrastrados. • Asegurar que los componentes de la escollera estén firmemente anclados al terreno para evitar desplazamientos o colapsos por ráfagas intensas. • Minimizar o reforzar componentes vulnerables como barandillas, señalización o accesos, que puedan desprenderse o deteriorarse por el viento.
B21: Agua | C21: Estructuras fluviales | D21: • Diseño de encauzamientos con capacidad de absorción de crecidas y sistemas de alivio hacia zonas seguras. • Construcción de compuertas y válvulas antirretorno en desembocaduras para evitar entrada de agua marina en crecidas. • Revegetación de márgenes fluviales con especies resistentes a salinidad para estabilizar suelos. • Uso de técnicas blandas de protección costera como barreras vegetales, restauración de dunas y playas | E21: • Diseño de cauces con zonas de expansión controlada para permitir el desbordamiento en áreas seguras. • Encauzamientos con vegetación natural que ralentiza el flujo y mejora la infiltración. • Uso de materiales permeables y flexibles en estructuras para facilitar el drenaje y reducir la presión hidráulica. • Instalación de compuertas antirretorno para evitar la entrada de agua marina en crecidas fluviales. • Elevación de márgenes y muros de contención en zonas urbanas costeras. • Refuerzo de taludes y estructuras con geotextiles y vegetación estabilizadora. • Limpieza periódica de cauces y retirada de obstáculos que puedan agravar el desbordamiento. • Revisión estructural de encauzamientos antiguos para adaptarlos a nuevos escenarios climáticos. | F21: • Diseño de encauzamientos con capacidad de absorción de crecidas y sistemas de alivio hacia zonas seguras. • Construcción de compuertas y válvulas antirretorno en desembocaduras para evitar entrada de agua marina en crecidas. • Revegetación de márgenes fluviales con especies resistentes a salinidad para estabilizar suelos. • Uso de técnicas blandas de protección costera como barreras vegetales, restauración de dunas y playas | G21: • Sobredimensionamiento de secciones de cauce para admitir caudales extremos. • Encauzamientos con borde libre elevado para evitar desbordamientos. • Espigones y defensas ribereñas con materiales flexibles (gaviones, enrocados) que toleren erosión progresiva. • Restauración de riberas y zonas de inundación natural para amortiguar crecidas. • Vegetación estabilizadora en márgenes para reducir erosión y mejorar infiltración. • Zonas de retención temporal (humedales artificiales, llanuras de inundación) para almacenar excedentes. • Instalación de sensores de nivel y caudal en puntos críticos. • Uso de materiales resistentes a la erosión y al impacto hidráulico. • Cimentaciones profundas o flexibles en estructuras expuestas a socavación. • Diseño modular y accesible para mantenimiento frecuente | H21: • Encauzamientos resilientes con borde libre elevado • Instalación de compuertas y válvulas antirretorno • Plantación de vegetación ribereña, restauración de marismas y dunas. • Construcción de depósitos subterráneos o zonas de laminación | I21: • Encauzamientos resilientes con borde libre elevado • Instalación de compuertas y válvulas antirretorno • Plantación de vegetación ribereña, restauración de marismas y dunas. • Construcción de depósitos subterráneos o zonas de laminación | J21: • Construcción de zonas de laminación y retención temporal • Revegetación de cabeceras de cuenca mediante la plantación de especies autóctonas resistentes al frío y a la escorrentía • Adaptar los cauces a variaciones extremas de caudal mediante el uso de materiales adecuados • Monitoreo hidrometeorológico en zonas nivalizadas mediante estaciones automáticas de medición de nieve, temperatura y caudal. | K21: • Plantación de especies adaptadas al clima local que proporcionen sombra y estabilicen los márgenes. • Diseño de encauzamientos con refugios térmico • Instalación de sensores en puntos estratégicos del cauce | L21: • Plantación de especies adaptadas al clima local que proporcionen sombra y estabilicen los márgenes. • Diseño de encauzamientos con refugios térmico • Instalación de sensores en puntos estratégicos del cauce | M21: • Uso de técnicas como fajinas, empalizadas vivas, estacas vegetales y mantas orgánicas para lograr la estabilización de márgenes. • Incorporación de sistemas de drenaje en estructuras de encauzamiento para evitar acumulación de agua en taludes • Plantación de especies arbóreas y arbustivas en zonas de cabecera y laderas inestables • Diseño de estructuras flexibles y adaptativas • Instalación de sensores de humedad, inclinación y presión en zonas críticas de ladera. | N21: • Diseño aerodinámico y reforzado de estructuras expuestas • Uso de vegetación densa (árboles, arbustos) o pantallas físicas en zonas expuestas del cauce. • Protección de taludes y márgenes con bioingeniería • Cubiertas en zonas técnicas, sellado de compuertas y protección de sistemas eléctricos o hidráulicos. | O21: • Diseño aerodinámico y reforzado de estructuras expuestas • Uso de vegetación densa (árboles, arbustos) o pantallas físicas en zonas expuestas del cauce. • Protección de taludes y márgenes con bioingeniería • Cubiertas en zonas técnicas, sellado de compuertas y protección de sistemas eléctricos o hidráulicos.
B22: Agua | C22: Escollera de protección | D22: • Aumentar la altura de la estructura para anticiparse a futuros incrementos del nivel del mar y a eventos extremos como marejadas ciclónicas. • Uso de materiales resistentes a la erosión marina • Incorporar formas curvas o escalonadas que disipen la energía del oleaje y reduzcan el desgaste estructural, mejorando la estabilidad frente a temporales. • En el caso de escolleras, utilizar vegetación costera (como marismas o praderas marinas) que actúe como barrera natural y mejore la absorción del impacto del agua. • En el caso de escolleras, instalar sensores para controlar el nivel del mar, la presión del oleaje y el estado estructural, permitiendo intervenciones preventivas y ajustes en tiempo real. | E22: • Aumentar la altura de la estructura para anticiparse a futuros incrementos del nivel del mar y a eventos extremos como marejadas ciclónicas. • Uso de materiales resistentes a la erosión marina • Incorporar formas curvas o escalonadas que disipen la energía del oleaje y reduzcan el desgaste estructural, mejorando la estabilidad frente a temporales. • En el caso de escolleras, utilizar vegetación costera (como marismas o praderas marinas) que actúe como barrera natural y mejore la absorción del impacto del agua. • En el caso de escolleras, instalar sensores para controlar el nivel del mar, la presión del oleaje y el estado estructural, permitiendo intervenciones preventivas y ajustes en tiempo real. | F22: • Aumentar la altura de la estructura para anticiparse a futuros incrementos del nivel del mar y a eventos extremos como marejadas ciclónicas. • Uso de materiales resistentes a la erosión marina • Incorporar formas curvas o escalonadas que disipen la energía del oleaje y reduzcan el desgaste estructural, mejorando la estabilidad frente a temporales. • En el caso de escolleras, utilizar vegetación costera (como marismas o praderas marinas) que actúe como barrera natural y mejore la absorción del impacto del agua. • En el caso de escolleras, instalar sensores para controlar el nivel del mar, la presión del oleaje y el estado estructural, permitiendo intervenciones preventivas y ajustes en tiempo real. | G22: • Incorporar canales, filtros y drenajes en la estructura para facilitar la evacuación del agua de lluvia acumulada y evitar sobrecargas o desbordamientos. • Emplear materiales que permitan cierta infiltración controlada y que resistan la saturación prolongada sin perder estabilidad, como geotextiles o bloques drenantes. • Vegetación estabilizadora en taludes y zonas adyacentes mediante la plantación de especies autóctonas con raíces profundas que ayuden a fijar el terreno y reducir la escorrentía superficial, disminuyendo el riesgo de erosión. • Establecer sistemas de vigilancia para controlar el estado de la escollera tras eventos de lluvia intensa, y realizar inspecciones periódicas para detectar daños o acumulaciones de sedimentos | H22: • Aumentar la altura de la estructura para anticiparse a futuros incrementos del nivel del mar y a eventos extremos como marejadas ciclónicas. • Uso de materiales resistentes a la erosión marina • Incorporar formas curvas o escalonadas que disipen la energía del oleaje y reduzcan el desgaste estructural, mejorando la estabilidad frente a temporales. • En el caso de escolleras, utilizar vegetación costera (como marismas o praderas marinas) que actúe como barrera natural y mejore la absorción del impacto del agua. • En el caso de escolleras, instalar sensores para controlar el nivel del mar, la presión del oleaje y el estado estructural, permitiendo intervenciones preventivas y ajustes en tiempo real. | I22: • Aumentar la altura de la estructura para anticiparse a futuros eventos extremos • Incorporar formas curvas o escalonadas que disipen la energía del oleaje y reduzcan el desgaste estructural, mejorando la estabilidad frente a temporales. • En el caso de escolleras, utilizar vegetación costera (como marismas o praderas marinas) que actúe como barrera natural y mejore la absorción del impacto del agua. • En el caso de escolleras, instalar sensores para controlar el nivel del mar, la presión del oleaje y el estado estructural, permitiendo intervenciones preventivas y ajustes en tiempo real. | J22: • Diseñar los proyectos para resistir el aumento de caudales superficiales provocados por lluvias intensas en lugar de acumulación nival, incluyendo materiales de alta resistencia hidráulica. • Incorporación de sistemas de drenaje eficientes • Reforzar taludes y zonas cercanas con vegetación autóctona, geotextiles o muros de contención para prevenir deslizamientos provocados por saturación del suelo. • Instalar sensores para controlar la humedad del terreno, el nivel de agua y posibles desplazamientos, permitiendo una respuesta temprana ante eventos extremos. • Permitir futuras ampliaciones o ajustes en la estructura según la evolución del clima, | K22: • Uso de materiales resistentes a la expansión térmica: • Incorporar juntas flexibles en la estructura para permitir la expansión controlada de los materiales sin comprometer la estabilidad de la escollera. • Aplicar tratamientos o revestimientos reflectantes en las superficies expuestas para reducir la absorción de calor y prolongar la vida útil de los materiales. • Plantar especies resistentes a temperaturas elevadas en zonas adyacentes para reducir el calentamiento del entorno y mejorar la estabilidad del terreno. • Instalar sensores para controlar la temperatura de los materiales y detectar posibles deformaciones o tensiones que puedan afectar la escollera. | L22: • Uso de materiales resistentes a la expansión térmica: • Incorporar juntas flexibles en la estructura para permitir la expansión controlada de los materiales sin comprometer la estabilidad de la escollera. • Aplicar tratamientos o revestimientos reflectantes en las superficies expuestas para reducir la absorción de calor y prolongar la vida útil de los materiales. • Plantar especies resistentes a temperaturas elevadas en zonas adyacentes para reducir el calentamiento del entorno y mejorar la estabilidad del terreno. • Instalar sensores para controlar la temperatura de los materiales y detectar posibles deformaciones o tensiones que puedan afectar la escollera. | M22: • Realizar análisis detallados del terreno para identificar zonas con alta susceptibilidad a deslizamientos, fallas o saturación hídrica que puedan comprometer la estabilidad de la galería. • Incorporar revestimientos resistentes, sistemas de sostenimiento (como cerchas, bulones o anclajes) y juntas de dilatación que permitan absorber deformaciones del terreno sin comprometer la integridad de la galería. • Instalar drenajes perimetrales y subterráneos para controlar la infiltración de agua y reducir la presión hidrostática que puede desencadenar movimientos de ladera. • Implementar sensores de desplazamiento, inclinómetros y sistemas de alerta temprana para detectar movimientos anómalos y activar protocolos de intervención rápida. • Reforzar taludes cercanos mediante muros de contención, mallas metálicas, vegetación estabilizadora o geotextiles para evitar que los movimientos superficiales afecten la galería subterránea. | N22: • Incorporar formas curvas o inclinadas que reduzcan la resistencia al viento y minimicen el impacto directo sobre la estructura. • Utilizar bloques de hormigón, rocas o elementos prefabricados que soporten la presión del viento y posibles impactos de objetos arrastrados. • Asegurar que los componentes de la escollera estén firmemente anclados al terreno para evitar desplazamientos o colapsos por ráfagas intensas. • Minimizar o reforzar componentes vulnerables como barandillas, señalización o accesos, que puedan desprenderse o deteriorarse por el viento. | O22: • Incorporar formas curvas o inclinadas que reduzcan la resistencia al viento y minimicen el impacto directo sobre la estructura. • Utilizar bloques de hormigón, rocas o elementos prefabricados que soporten la presión del viento y posibles impactos de objetos arrastrados. • Asegurar que los componentes de la escollera estén firmemente anclados al terreno para evitar desplazamientos o colapsos por ráfagas intensas. • Minimizar o reforzar componentes vulnerables como barandillas, señalización o accesos, que puedan desprenderse o deteriorarse por el viento.
B23: Agua | C23: Estaciones de tratamiento de aguas potables | D23: • Impermeabilización y refuerzo de redes de saneamiento • Elevación de equipos críticos • Monitoreo de nivel del mar y salinidad en zonas costeras • Implantación de sistemas inteligentes de control y gestión remota. | E23: • Redimensionamiento de colectores y redes de saneamiento para manejar grandes volúmenes de agua. • Separación de aguas pluviales y residuales para evitar sobrecargas. • Instalación de plataformas elevadas para motores, cuadros eléctricos y sistemas de control. • Sellado de pozos y cámaras para evitar entrada de agua salina. • Instalación de sensores de nivel del mar, presión atmosférica y caudal en zonas costeras. • Integración con sistemas de protección civil y protocolos de emergencia. • Implantación de sistemas inteligentes de control y gestión remota. | F23: • Construcción de diques, muros de contención y barreras vegetales en estaciones de bombeo y depuración cercanas al litoral. • Reforzamiento estructural de instalaciones vulnerables. • Sellado de colectores y pozos para evitar la entrada de agua salina durante marejadas. • Instalación de válvulas antirretorno en zonas de riesgo. • Instalación de plataformas elevadas para motores, cuadros eléctricos y sistemas de control. • Diseño modular que facilite el desmontaje rápido en caso de emergencia. • Instalación de sensores de nivel del mar, presión atmosférica y salinidad en zonas costeras. • Integración con sistemas de alerta temprana y protocolos de emergencia. • Implantación de sistemas inteligentes de control y gestión remota. | G23: • Ampliación de colectores y sistemas de drenaje para manejar caudales más variables y extremos. • Separación de redes de aguas pluviales y residuales • Construcción de tanques de tormenta, balsas de retención y zonas de infiltración. • Integración con estaciones de bombeo y depuración. • Protección frente a infiltraciones y saturación hídrica. • Uso de materiales resistentes y sistemas de sellado. • Instalación de sensores de lluvia, caudal, presión y nivel en puntos estratégicos. • Integración con sistemas de alerta temprana y protocolos de emergencia. • Implantación de sistemas inteligentes para la gestión remota de redes y estaciones. | H23: • Redimensionamiento de colectores y redes de saneamiento para manejar grandes volúmenes de agua. • Separación de aguas pluviales y residuales para evitar sobrecargas. • Instalación de plataformas elevadas para motores, cuadros eléctricos y sistemas de control. • Sellado de pozos y cámaras para evitar entrada de agua salina. • Instalación de sensores de nivel del mar, presión atmosférica y caudal en zonas costeras. • Integración con sistemas de protección civil y protocolos de emergencia. • Implantación de sistemas inteligentes de control y gestión remota. | I23: • Redimensionamiento de colectores y redes de saneamiento para manejar grandes volúmenes de agua. • Separación de aguas pluviales y residuales para evitar sobrecargas. • Instalación de plataformas elevadas para motores, cuadros eléctricos y sistemas de control. • Integración con sistemas de protección civil y protocolos de emergencia. • Implantación de sistemas inteligentes de control y gestión remota. | J23: • Desarrollo de sistemas de captación y almacenamiento de agua subterránea como alternativa a la pérdida de nieve como fuente hídrica. • Construcción de balsas, depósitos y humedales artificiales en zonas de montaña. • Integración con redes de abastecimiento y depuración. • Modernización de tuberías y estaciones de bombeo en concejos con alta dependencia de fuentes nivosas. • Mejora de la eficiencia energética y reducción de pérdidas. • Instalación de sensores de temperatura, acumulación de nieve y velocidad de deshielo. • Integración con sistemas de alerta y planificación de recursos hídrico | K23: • Cubrición de tanques y canales abiertos para reducir la exposición solar. • Aireación controlada para evitar la formación de zonas anaerobias. • Uso de tecnologías de depuración avanzadas que permiten mayor control de temperatura y carga orgánica. • Monitorización continua de parámetros físicoquímicos (temperatura, turbidez, cloro residual). • Uso de materiales resistentes a altas temperaturas (polietileno reticulado, acero inoxidable). • Digitalización del ciclo del agua con sensores inteligentes y telegestión | L23: • Cubrición de tanques y canales abiertos para reducir la exposición solar. • Aireación controlada para evitar la formación de zonas anaerobias. • Uso de tecnologías de depuración avanzadas que permiten mayor control de temperatura y carga orgánica. • Monitorización continua de parámetros físicoquímicos (temperatura, turbidez, cloro residual). • Uso de materiales resistentes a altas temperaturas (polietileno reticulado, acero inoxidable). • Digitalización del ciclo del agua con sensores inteligentes y telegestión | M23: • Impermeabilización de colectores y tanques para evitar infiltraciones en zonas inestables. • Separación de redes de pluviales y residuales para reducir el volumen en episodios de lluvia. • Instalación de sistemas de drenaje sostenible para controlar el escurrimiento superficial. • Uso de tuberías flexibles y articuladas que toleren deformaciones. • Instalación de válvulas de corte sectorizadas para aislar tramos en caso de emergencia. • Diseño de cámaras de válvulas y registros con cimentaciones profundas o flotantes. • Canalización segura de escorrentías para evitar erosión en taludes cercanos. • Sistema de alerta temprana con sensores de inclinación y humedad del suelo. • Protección perimetral con muros de contención y vegetación estabilizadora. | N23: • Cubrición de tanques y canales abiertos para evitar dispersión de olores y aerosoles. • Barreras vegetales o cortavientos artificiales para reducir la velocidad del viento en zonas expuestas. • Refuerzo estructural de elementos expuestos (cubiertas, chimeneas, sistemas de ventilación). • Diseño aerodinámico de depósitos elevados para reducir la resistencia al viento. • Instalación de filtros en entradas de aire para evitar contaminación por partículas. • Anclajes reforzados en estructuras expuestas. • Protección física de registros y válvulas con tapas reforzadas y estructuras antivandálicas. • Mantenimiento preventivo de vegetación cercana para evitar caída de ramas. • Diseño estructural resistente a vientos extremos (según normativa CTE y Eurocódigos). • Protección de sistemas de ventilación y aireación con rejillas antiviento. | O23: • Cubrición de tanques y canales abiertos para evitar dispersión de olores y aerosoles. • Barreras vegetales o cortavientos artificiales para reducir la velocidad del viento en zonas expuestas. • Refuerzo estructural de elementos expuestos (cubiertas, chimeneas, sistemas de ventilación). • Diseño aerodinámico de depósitos elevados para reducir la resistencia al viento. • Instalación de filtros en entradas de aire para evitar contaminación por partículas. • Anclajes reforzados en estructuras expuestas. • Protección física de registros y válvulas con tapas reforzadas y estructuras antivandálicas. • Mantenimiento preventivo de vegetación cercana para evitar caída de ramas. • Diseño estructural resistente a vientos extremos (según normativa CTE y Eurocódigos). • Protección de sistemas de ventilación y aireación con rejillas antiviento.
B24: Agua | C24: Estaciones de bombeo | D24: • Impermeabilización y refuerzo de redes de saneamiento • Elevación de equipos críticos • Monitoreo de nivel del mar y salinidad en zonas costeras • Implantación de sistemas inteligentes de control y gestión remota. | E24: • Redimensionamiento de colectores y redes de saneamiento para manejar grandes volúmenes de agua. • Separación de aguas pluviales y residuales para evitar sobrecargas. • Instalación de plataformas elevadas para motores, cuadros eléctricos y sistemas de control. • Sellado de pozos y cámaras para evitar entrada de agua salina. • Instalación de sensores de nivel del mar, presión atmosférica y caudal en zonas costeras. • Integración con sistemas de protección civil y protocolos de emergencia. • Implantación de sistemas inteligentes de control y gestión remota. | F24: • Construcción de diques, muros de contención y barreras vegetales en estaciones de bombeo y depuración cercanas al litoral. • Reforzamiento estructural de instalaciones vulnerables. • Sellado de colectores y pozos para evitar la entrada de agua salina durante marejadas. • Instalación de válvulas antirretorno en zonas de riesgo. • Instalación de plataformas elevadas para motores, cuadros eléctricos y sistemas de control. • Diseño modular que facilite el desmontaje rápido en caso de emergencia. • Instalación de sensores de nivel del mar, presión atmosférica y salinidad en zonas costeras. • Integración con sistemas de alerta temprana y protocolos de emergencia. • Implantación de sistemas inteligentes de control y gestión remota. | G24: • Ampliación de colectores y sistemas de drenaje para manejar caudales más variables y extremos. • Separación de redes de aguas pluviales y residuales • Construcción de tanques de tormenta, balsas de retención y zonas de infiltración. • Integración con estaciones de bombeo y depuración. • Protección frente a infiltraciones y saturación hídrica. • Uso de materiales resistentes y sistemas de sellado. • Instalación de sensores de lluvia, caudal, presión y nivel en puntos estratégicos. • Integración con sistemas de alerta temprana y protocolos de emergencia. • Implantación de sistemas inteligentes para la gestión remota de redes y estaciones. | H24: • Redimensionamiento de colectores y redes de saneamiento para manejar grandes volúmenes de agua. • Separación de aguas pluviales y residuales para evitar sobrecargas. • Instalación de plataformas elevadas para motores, cuadros eléctricos y sistemas de control. • Sellado de pozos y cámaras para evitar entrada de agua salina. • Instalación de sensores de nivel del mar, presión atmosférica y caudal en zonas costeras. • Integración con sistemas de protección civil y protocolos de emergencia. • Implantación de sistemas inteligentes de control y gestión remota. | I24: • Redimensionamiento de colectores y redes de saneamiento para manejar grandes volúmenes de agua. • Separación de aguas pluviales y residuales para evitar sobrecargas. • Instalación de plataformas elevadas para motores, cuadros eléctricos y sistemas de control. • Integración con sistemas de protección civil y protocolos de emergencia. • Implantación de sistemas inteligentes de control y gestión remota. | J24: • Desarrollo de sistemas de captación y almacenamiento de agua subterránea como alternativa a la pérdida de nieve como fuente hídrica. • Construcción de balsas, depósitos y humedales artificiales en zonas de montaña. • Integración con redes de abastecimiento y depuración. • Modernización de tuberías y estaciones de bombeo en concejos con alta dependencia de fuentes nivosas. • Mejora de la eficiencia energética y reducción de pérdidas. • Instalación de sensores de temperatura, acumulación de nieve y velocidad de deshielo. • Integración con sistemas de alerta y planificación de recursos hídrico | K24: • Cubrición de tanques y canales abiertos para reducir la exposición solar. • Aireación controlada para evitar la formación de zonas anaerobias. • Uso de tecnologías de depuración avanzadas que permiten mayor control de temperatura y carga orgánica. • Monitorización continua de parámetros físicoquímicos (temperatura, turbidez, cloro residual). • Uso de materiales resistentes a altas temperaturas (polietileno reticulado, acero inoxidable). • Digitalización del ciclo del agua con sensores inteligentes y telegestión | L24: • Cubrición de tanques y canales abiertos para reducir la exposición solar. • Aireación controlada para evitar la formación de zonas anaerobias. • Uso de tecnologías de depuración avanzadas que permiten mayor control de temperatura y carga orgánica. • Monitorización continua de parámetros físicoquímicos (temperatura, turbidez, cloro residual). • Uso de materiales resistentes a altas temperaturas (polietileno reticulado, acero inoxidable). • Digitalización del ciclo del agua con sensores inteligentes y telegestión | M24: • Impermeabilización de colectores y tanques para evitar infiltraciones en zonas inestables. • Separación de redes de pluviales y residuales para reducir el volumen en episodios de lluvia. • Instalación de sistemas de drenaje sostenible para controlar el escurrimiento superficial. • Uso de tuberías flexibles y articuladas que toleren deformaciones. • Instalación de válvulas de corte sectorizadas para aislar tramos en caso de emergencia. • Diseño de cámaras de válvulas y registros con cimentaciones profundas o flotantes. • Canalización segura de escorrentías para evitar erosión en taludes cercanos. • Sistema de alerta temprana con sensores de inclinación y humedad del suelo. • Protección perimetral con muros de contención y vegetación estabilizadora. | N24: • Cubrición de tanques y canales abiertos para evitar dispersión de olores y aerosoles. • Barreras vegetales o cortavientos artificiales para reducir la velocidad del viento en zonas expuestas. • Refuerzo estructural de elementos expuestos (cubiertas, chimeneas, sistemas de ventilación). • Diseño aerodinámico de depósitos elevados para reducir la resistencia al viento. • Instalación de filtros en entradas de aire para evitar contaminación por partículas. • Anclajes reforzados en estructuras expuestas. • Protección física de registros y válvulas con tapas reforzadas y estructuras antivandálicas. • Mantenimiento preventivo de vegetación cercana para evitar caída de ramas. • Diseño estructural resistente a vientos extremos (según normativa CTE y Eurocódigos). • Protección de sistemas de ventilación y aireación con rejillas antiviento. | O24: • Cubrición de tanques y canales abiertos para evitar dispersión de olores y aerosoles. • Barreras vegetales o cortavientos artificiales para reducir la velocidad del viento en zonas expuestas. • Refuerzo estructural de elementos expuestos (cubiertas, chimeneas, sistemas de ventilación). • Diseño aerodinámico de depósitos elevados para reducir la resistencia al viento. • Instalación de filtros en entradas de aire para evitar contaminación por partículas. • Anclajes reforzados en estructuras expuestas. • Protección física de registros y válvulas con tapas reforzadas y estructuras antivandálicas. • Mantenimiento preventivo de vegetación cercana para evitar caída de ramas. • Diseño estructural resistente a vientos extremos (según normativa CTE y Eurocódigos). • Protección de sistemas de ventilación y aireación con rejillas antiviento.
B25: Agua | C25: Encauzamiento | D25: • Diseño de encauzamientos con capacidad de absorción de crecidas y sistemas de alivio hacia zonas seguras. • Construcción de compuertas y válvulas antirretorno en desembocaduras para evitar entrada de agua marina en crecidas. • Revegetación de márgenes fluviales con especies resistentes a salinidad para estabilizar suelos. • Uso de técnicas blandas de protección costera como barreras vegetales, restauración de dunas y playas | E25: • Diseño de cauces con zonas de expansión controlada para permitir el desbordamiento en áreas seguras. • Encauzamientos con vegetación natural que ralentiza el flujo y mejora la infiltración. • Uso de materiales permeables y flexibles en estructuras para facilitar el drenaje y reducir la presión hidráulica. • Instalación de compuertas antirretorno para evitar la entrada de agua marina en crecidas fluviales. • Elevación de márgenes y muros de contención en zonas urbanas costeras. • Refuerzo de taludes y estructuras con geotextiles y vegetación estabilizadora. • Limpieza periódica de cauces y retirada de obstáculos que puedan agravar el desbordamiento. • Revisión estructural de encauzamientos antiguos para adaptarlos a nuevos escenarios climáticos. | F25: • Diseño de encauzamientos con capacidad de absorción de crecidas y sistemas de alivio hacia zonas seguras. • Construcción de compuertas y válvulas antirretorno en desembocaduras para evitar entrada de agua marina en crecidas. • Revegetación de márgenes fluviales con especies resistentes a salinidad para estabilizar suelos. • Uso de técnicas blandas de protección costera como barreras vegetales, restauración de dunas y playas | G25: • Sobredimensionamiento de secciones de cauce para admitir caudales extremos. • Encauzamientos con borde libre elevado para evitar desbordamientos. • Espigones y defensas ribereñas con materiales flexibles (gaviones, enrocados) que toleren erosión progresiva. • Restauración de riberas y zonas de inundación natural para amortiguar crecidas. • Vegetación estabilizadora en márgenes para reducir erosión y mejorar infiltración. • Zonas de retención temporal (humedales artificiales, llanuras de inundación) para almacenar excedentes. • Instalación de sensores de nivel y caudal en puntos críticos. • Uso de materiales resistentes a la erosión y al impacto hidráulico. • Cimentaciones profundas o flexibles en estructuras expuestas a socavación. • Diseño modular y accesible para mantenimiento frecuente | H25: • Encauzamientos resilientes con borde libre elevado • Instalación de compuertas y válvulas antirretorno • Plantación de vegetación ribereña, restauración de marismas y dunas. • Construcción de depósitos subterráneos o zonas de laminación | I25: • Encauzamientos resilientes con borde libre elevado • Instalación de compuertas y válvulas antirretorno • Plantación de vegetación ribereña, restauración de marismas y dunas. • Construcción de depósitos subterráneos o zonas de laminación | J25: • Construcción de zonas de laminación y retención temporal • Revegetación de cabeceras de cuenca mediante la plantación de especies autóctonas resistentes al frío y a la escorrentía • Adaptar los cauces a variaciones extremas de caudal mediante el uso de materiales adecuados • Monitoreo hidrometeorológico en zonas nivalizadas mediante estaciones automáticas de medición de nieve, temperatura y caudal. | K25: • Plantación de especies adaptadas al clima local que proporcionen sombra y estabilicen los márgenes. • Diseño de encauzamientos con refugios térmico • Instalación de sensores en puntos estratégicos del cauce | L25: • Plantación de especies adaptadas al clima local que proporcionen sombra y estabilicen los márgenes. • Diseño de encauzamientos con refugios térmico • Instalación de sensores en puntos estratégicos del cauce | M25: • Uso de técnicas como fajinas, empalizadas vivas, estacas vegetales y mantas orgánicas para lograr la estabilización de márgenes. • Incorporación de sistemas de drenaje en estructuras de encauzamiento para evitar acumulación de agua en taludes • Plantación de especies arbóreas y arbustivas en zonas de cabecera y laderas inestables • Diseño de estructuras flexibles y adaptativas • Instalación de sensores de humedad, inclinación y presión en zonas críticas de ladera. | N25: • Diseño aerodinámico y reforzado de estructuras expuestas • Uso de vegetación densa (árboles, arbustos) o pantallas físicas en zonas expuestas del cauce. • Protección de taludes y márgenes con bioingeniería • Cubiertas en zonas técnicas, sellado de compuertas y protección de sistemas eléctricos o hidráulicos. | O25: • Diseño aerodinámico y reforzado de estructuras expuestas • Uso de vegetación densa (árboles, arbustos) o pantallas físicas en zonas expuestas del cauce. • Protección de taludes y márgenes con bioingeniería • Cubiertas en zonas técnicas, sellado de compuertas y protección de sistemas eléctricos o hidráulicos.
